Authority,Department,Spending Area,Expense Type,Posting Date,Reference,Amount,Supplier
OXFORDSHIRE CC,SOCIAL AND COMMUNITY SERVICES,CSS WALLINGFORD,CATERING PROVISIONS,28/01/2019,000008285080691,2.20,WAITROSE 675
OXFORDSHIRE CC,SOCIAL AND COMMUNITY SERVICES,CSS WALLINGFORD,MATERIALS,28/01/2019,000008285080693,35.99,DEBENHAMS.COM
OXFORDSHIRE CC,"CHILDRENS, YOUNG PEOPLE AND FAMILIES",NORTH FSS- WITNEY,PAYMENTS TO TRANSPORT OPERATORS,28/01/2019,000008285081091,39.70,GWR CORP WEBBTSECOM
OXFORDSHIRE CC,"CHILDRENS, YOUNG PEOPLE AND FAMILIES",NORTH FSS- WITNEY,PAYMENTS TO TRANSPORT OPERATORS,28/01/2019,000008285081093,76.70,GWR CORP WEBBTSECOM
OXFORDSHIRE CC,"CHILDRENS, YOUNG PEOPLE AND FAMILIES",NORTH FSS- WITNEY,PAYMENTS TO TRANSPORT OPERATORS,28/01/2019,000008285081095,79.40,GWR CORP WEBBTSECOM
OXFORDSHIRE CC,CORPORATE CORE,"	COMMUNICATIONS",IT SOFTWARE,28/01/2019,000008285081107,78.97,ADOBE  CREATIVE CLOUD
OXFORDSHIRE CC,"CHILDRENS, YOUNG PEOPLE AND FAMILIES",DIDCOT MOVE-ON HOME,CATERING PROVISIONS,28/01/2019,000008285080723,15.90,ICELAND
OXFORDSHIRE CC,"CHILDRENS, YOUNG PEOPLE AND FAMILIES",THAME E&A HOME,MATERIALS,28/01/2019,000008285080725,15.00,WLY COMPLETESAVE.CO.UK
OXFORDSHIRE CC,CORPORATE CORE,"	COMMUNICATIONS",MATERIALS,28/01/2019,000008285081109,431.64,GOOGLE  ADS4896546035
OXFORDSHIRE CC,"CHILDRENS, YOUNG PEOPLE AND FAMILIES",EYNSHAM,CATERING,28/01/2019,000008285081111,88.13,TESCO STORES 2008
OXFORDSHIRE CC,"CHILDRENS, YOUNG PEOPLE AND FAMILIES",EYNSHAM,CATERING,28/01/2019,000008285081113,-2.20,TESCO STORES 2008
OXFORDSHIRE CC,SOCIAL AND COMMUNITY SERVICES,CSS - ABINGDON,"BOOKS, DVDS AND CDS",28/01/2019,000008285080743,3.49,PRIME VIDEO MB2027IR4
OXFORDSHIRE CC,"CHILDRENS, YOUNG PEOPLE AND FAMILIES","	RESIDENTIAL STRATEGY","BOOKS, DVDS AND CDS",28/01/2019,000008285080753,50.78,AMZN MKTP UK MB9ZZ9IG4
OXFORDSHIRE CC,"CHILDRENS, YOUNG PEOPLE AND FAMILIES","	MUSIC UNALLOCABLE","BOOKS, DVDS AND CDS",28/01/2019,000008285080751,70.09,BLACKWELL S
OXFORDSHIRE CC,"CHILDRENS, YOUNG PEOPLE AND FAMILIES",THAME E&A HOME,ENTERTAINMENT EXPENSES,28/01/2019,000008285080629,2.95,RUSH - HIGH WYCOMBE
OXFORDSHIRE CC,"CHILDRENS, YOUNG PEOPLE AND FAMILIES",THAME E&A HOME,ENTERTAINMENT EXPENSES,28/01/2019,000008285080631,4.00,RUSH - HIGH WYCOMBE
OXFORDSHIRE CC,"CHILDRENS, YOUNG PEOPLE AND FAMILIES",THAME E&A HOME,CATERING,28/01/2019,000008285080633,70.46,BLACKSMITHS ARMS
OXFORDSHIRE CC,"CHILDRENS, YOUNG PEOPLE AND FAMILIES","	LOOKED AFTER NORTH",ENTERTAINMENT EXPENSES,28/01/2019,000008285081017,8.50,MFA BOWL BANBURY
OXFORDSHIRE CC,"CHILDRENS, YOUNG PEOPLE AND FAMILIES","	LOOKED AFTER NORTH",OTHER TRANSPORT ARRANGEMENTS,28/01/2019,000008285081019,3.60,NCP PARK PASS
OXFORDSHIRE CC,"CHILDRENS, YOUNG PEOPLE AND FAMILIES","	40 THE MOORS",CATERING,28/01/2019,000008285081021,49.46,ED'S EASY DINER
OXFORDSHIRE CC,"CHILDRENS, YOUNG PEOPLE AND FAMILIES","	40 THE MOORS",HIRE OF ACCOMMODATION AND FACILITIES,28/01/2019,000008285081023,10.00,IBIS STYLES BIRMINGHAM
OXFORDSHIRE CC,"CHILDRENS, YOUNG PEOPLE AND FAMILIES","	40 THE MOORS",CLOTHING AND UNIFORMS,28/01/2019,000008285081025,25.00,C M I LTD
OXFORDSHIRE CC,"CHILDRENS, YOUNG PEOPLE AND FAMILIES","	40 THE MOORS",CATERING,28/01/2019,000008285081027,5.20,ARENA BIRMINGHAM
OXFORDSHIRE CC,"CHILDRENS, YOUNG PEOPLE AND FAMILIES","	40 THE MOORS",CATERING PROVISIONS,28/01/2019,000008285081029,145.58,ASDA GROCERIES ONLINE
OXFORDSHIRE CC,"CHILDRENS, YOUNG PEOPLE AND FAMILIES","	40 THE MOORS",CATERING PROVISIONS,28/01/2019,000008285081031,-11.01,ASDA GROCERIES ONLINE
OXFORDSHIRE CC,"CHILDRENS, YOUNG PEOPLE AND FAMILIES",THAME E&A HOME,HOSPITALITY EXPENSES,28/01/2019,000008285081033,3.00,WYCOMBE WANDERERS FC
OXFORDSHIRE CC,"CHILDRENS, YOUNG PEOPLE AND FAMILIES",THAME E&A HOME,HOSPITALITY EXPENSES,28/01/2019,000008285081035,8.00,WYCOMBE WANDERERS FC
OXFORDSHIRE CC,"CHILDRENS, YOUNG PEOPLE AND FAMILIES",THAME E&A HOME,HOSPITALITY EXPENSES,28/01/2019,000008285081037,5.50,WYCOMBE WANDERERS FC
OXFORDSHIRE CC,"CHILDRENS, YOUNG PEOPLE AND FAMILIES","	RIVERSIDE CENTRE",CATERING PROVISIONS,28/01/2019,000008285080655,10.35,SAINSBURYS SACAT 0600
OXFORDSHIRE CC,ENVIRONMENT AND ECONOMY,COUNTY LIBRARY,GENERAL MAINTENANCE,28/01/2019,000008285080639,19.19, WOLSELEY UK
OXFORDSHIRE CC,ENVIRONMENT AND ECONOMY,COUNTY LIBRARY,VEHICLE FUEL,28/01/2019,000008285080641,5.99,TEX COCKHORSE S/S
OXFORDSHIRE CC,"CHILDRENS, YOUNG PEOPLE AND FAMILIES","	LOOKED AFTER NORTH",CATERING PROVISIONS,28/01/2019,000008285080645,20.00,WM MORRISONS STORE
OXFORDSHIRE CC,ENVIRONMENT AND ECONOMY,"	TVERC","BOOKS, DVDS AND CDS",28/01/2019,000008285080647,4.26,AMZN MKTP UK MB08Y4UG4
OXFORDSHIRE CC,"CHILDRENS, YOUNG PEOPLE AND FAMILIES",THAME E&A HOME,HOSPITALITY EXPENSES,28/01/2019,000008285080649,12.40,JS SPORTS BAR
OXFORDSHIRE CC,SOCIAL AND COMMUNITY SERVICES,DIDCOT MOVE-ON HOME,CATERING PROVISIONS,28/01/2019,000008285080651,14.05,SAINSBURYS SACAT 2067
OXFORDSHIRE CC,SOCIAL AND COMMUNITY SERVICES,DIDCOT MOVE-ON HOME,CATERING,28/01/2019,000008285080653,10.10,COSTA COFFEE 43042160
OXFORDSHIRE CC,CORPORATE CORE,,"SUPPLIES, STATIONERY AND MATERIALS",28/01/2019,000008285081043,124.75,LYRECO UK LTD
OXFORDSHIRE CC,"CHILDRENS, YOUNG PEOPLE AND FAMILIES",THAME E&A HOME,CATERING PROVISIONS,28/01/2019,000008285081045,30.80,SAINSBURYS 2096
OXFORDSHIRE CC,"CHILDRENS, YOUNG PEOPLE AND FAMILIES",THAME E&A HOME,VEHICLE FUEL,28/01/2019,000008285081047,2.58,THAME BP SF CONNECT
OXFORDSHIRE CC,"CHILDRENS, YOUNG PEOPLE AND FAMILIES","	LOOKED AFTER CITY 1",OTHER EXPENSES,28/01/2019,000008285081053,9.44,AMAZON.CO.UK MB8O02R44
OXFORDSHIRE CC,"CHILDRENS, YOUNG PEOPLE AND FAMILIES",CNTL EARLY HELP-RHIL,HIRE OF ACCOMMODATION AND FACILITIES,28/01/2019,000008285081061,217.50,PREMIER INN
OXFORDSHIRE CC,"CHILDRENS, YOUNG PEOPLE AND FAMILIES","	LEAVING CARE NORTH",RESIDENTIAL ACTIVITIES,28/01/2019,000008285081055,17.99,THE GYM LTD
OXFORDSHIRE CC,"CHILDRENS, YOUNG PEOPLE AND FAMILIES",NTH EARLY HELP-WITNY,MATERIALS,28/01/2019,000008285081057,7.99,AUDIBLE.CO.UK
OXFORDSHIRE CC,"CHILDRENS, YOUNG PEOPLE AND FAMILIES","	LOOKED AFTER SOUTH",CATERING,28/01/2019,000008285081059,5.13,MCDONALDS
OXFORDSHIRE CC,"CHILDRENS, YOUNG PEOPLE AND FAMILIES",CNTL EARLY HELP-RHIL,AFTER SCHOOL ACTIVITIES,28/01/2019,000008285080665,12.00,THIRSTY MEEPLES
OXFORDSHIRE CC,"CHILDRENS, YOUNG PEOPLE AND FAMILIES","	FAM SUPP CITY 1",MATERIALS,28/01/2019,000008285080667,181.94,WWW.ARGOS.CO.UK
OXFORDSHIRE CC,"CHILDRENS, YOUNG PEOPLE AND FAMILIES","	FAM SUPP CITY 1",MATERIALS,28/01/2019,000008285080669,19.00,WWW.ARGOS.CO.UK
OXFORDSHIRE CC,"CHILDRENS, YOUNG PEOPLE AND FAMILIES",NTH EARLY HELP-BCSTR,"SUPPLIES, STATIONERY AND MATERIALS",28/01/2019,000008285080671,99.90,AMZN MKTP UK MB6XI4US4
OXFORDSHIRE CC,"CHILDRENS, YOUNG PEOPLE AND FAMILIES",NTH FAM SUPRT-BCSTR,OTHER TRANSPORT ARRANGEMENTS,28/01/2019,000008285080673,-47.50,TAXICODE
OXFORDSHIRE CC,ENVIRONMENT AND ECONOMY,"	PROPERTY & PROC MGT",PROFESSIONAL SUBSCRIPTIONS,28/01/2019,000008285080675,-238.80,RICS COM GBP CYBS
OXFORDSHIRE CC,"CHILDRENS, YOUNG PEOPLE AND FAMILIES",CNTL ERLY HELP-BBLEY,MATERIALS,28/01/2019,000008285081065,17.48,AMAZON.CO.UK MB6MB0WC4
OXFORDSHIRE CC,"CHILDRENS, YOUNG PEOPLE AND FAMILIES",CNTL ERLY HELP-BBLEY,CATERING PROVISIONS,28/01/2019,000008285081063,2.78,NISA DELTEYS
OXFORDSHIRE CC,"CHILDRENS, YOUNG PEOPLE AND FAMILIES",DIDCOT MOVE-ON HOME,CATERING PROVISIONS,28/01/2019,000008285080955,14.52,SAINSBURYS SACAT 2067
OXFORDSHIRE CC,"CHILDRENS, YOUNG PEOPLE AND FAMILIES",DIDCOT MOVE-ON HOME,CATERING PROVISIONS,28/01/2019,000008285080957,1.90,SAINSBURYS SACAT 2067
OXFORDSHIRE CC,"CHILDRENS, YOUNG PEOPLE AND FAMILIES",DIDCOT MOVE-ON HOME,CATERING PROVISIONS,28/01/2019,000008285080959,12.10,SAINSBURYS SACAT 2067
OXFORDSHIRE CC,ENVIRONMENT AND ECONOMY,"	LEP","PUBLICITY, PROMOTIONS AND ADVERTISEMENT",28/01/2019,000008285080589,93.65,WORKABLE
OXFORDSHIRE CC,"CHILDRENS, YOUNG PEOPLE AND FAMILIES","	RESIDENTIAL STRATEGY",CATERING,28/01/2019,000008285080571,48.70,PIZZA EXPRESS REST
OXFORDSHIRE CC,"CHILDRENS, YOUNG PEOPLE AND FAMILIES","	RESIDENTIAL STRATEGY",OTHER TRANSPORT ARRANGEMENTS,28/01/2019,000008285080573,2.00,PARKJOCKEY LONDON
OXFORDSHIRE CC,"CHILDRENS, YOUNG PEOPLE AND FAMILIES",CSS WALLINGFORD,MATERIALS,28/01/2019,000008285080575,11.47,WHSMITH.CO.UK
OXFORDSHIRE CC,ENVIRONMENT AND ECONOMY,"	LEP",IT SOFTWARE,28/01/2019,000008285080591,90.63,WORKABLE
OXFORDSHIRE CC,"CHILDRENS, YOUNG PEOPLE AND FAMILIES",MARKETING,"BOOKS, DVDS AND CDS",28/01/2019,000008285080593,97.93,AMZN MKTP UK MB2OM7IV4
OXFORDSHIRE CC,"CHILDRENS, YOUNG PEOPLE AND FAMILIES",CSS WALLINGFORD,MATERIALS,28/01/2019,000008285080577,-4.99,WHSMITH.CO.UK
OXFORDSHIRE CC,"CHILDRENS, YOUNG PEOPLE AND FAMILIES","	RESIDENTIAL STRATEGY",CATERING PROVISIONS,28/01/2019,000008285080587,6.14,CO-OPERATIVE FOOD
OXFORDSHIRE CC,"CHILDRENS, YOUNG PEOPLE AND FAMILIES",ATV ADOPTION OXFORD,DRUGS AND MEDICAL SUPPLIES,28/01/2019,000008285080971,450.00,HEALTH CENTRE
OXFORDSHIRE CC,"CHILDRENS, YOUNG PEOPLE AND FAMILIES","	LOOKED AFTER CITY 2",OTHER EXPENSES,28/01/2019,000008285080985,1.98,WH SMITH
OXFORDSHIRE CC,ENVIRONMENT AND ECONOMY,HARD FM,HARDWARE AND CROCKERY,28/01/2019,000008285080613,36.98,SCREWFIX WITNEY
OXFORDSHIRE CC,SOCIAL AND COMMUNITY SERVICES,CSS - ABINGDON,MATERIALS,28/01/2019,000008285080607,2.00,POUNDLAND LTD
OXFORDSHIRE CC,SOCIAL AND COMMUNITY SERVICES,CSS - ABINGDON,CATERING PROVISIONS,28/01/2019,000008285080609,2.60,TESCO STORES 2413
OXFORDSHIRE CC,ENVIRONMENT AND ECONOMY,HARD FM,HARDWARE AND CROCKERY,28/01/2019,000008285080611,105.15,SCREWFIX ABINGDON
OXFORDSHIRE CC,ENVIRONMENT AND ECONOMY,HARD FM,HARDWARE AND CROCKERY,28/01/2019,000008285080615,35.26,JEWSON LTD
OXFORDSHIRE CC,"CHILDRENS, YOUNG PEOPLE AND FAMILIES","	MALTFIELD HOUSE",CLOTHING AND UNIFORMS,28/01/2019,000008285081005,6.04,SELECT
OXFORDSHIRE CC,"CHILDRENS, YOUNG PEOPLE AND FAMILIES","	MALTFIELD HOUSE",CATERING,28/01/2019,000008285081007,6.85,COSTA TEMPLAR SQUARE O
OXFORDSHIRE CC,"CHILDRENS, YOUNG PEOPLE AND FAMILIES","	MALTFIELD HOUSE",FURNITURE,28/01/2019,000008285081009,26.05,ASDA STORE 4442
OXFORDSHIRE CC,"CHILDRENS, YOUNG PEOPLE AND FAMILIES",WITNEY,CATERING PROVISIONS,28/01/2019,000008285081013,12.90,SAINSBURYS 0632
OXFORDSHIRE CC,"CHILDRENS, YOUNG PEOPLE AND FAMILIES","	FAM GRP CONFERENCES",HIRE OF ACCOMMODATION AND FACILITIES,28/01/2019,000008285081015,153.00,PREMIER INN
OXFORDSHIRE CC,ENVIRONMENT AND ECONOMY,HARD FM,GENERAL MAINTENANCE,28/01/2019,000008285080617,61.69, WOLSELEY UK
OXFORDSHIRE CC,"CHILDRENS, YOUNG PEOPLE AND FAMILIES",THAME E&A HOME,HARDWARE AND CROCKERY,28/01/2019,000008285080619,5.83,MILLETS FARM SHOP
OXFORDSHIRE CC,"CHILDRENS, YOUNG PEOPLE AND FAMILIES",THAME E&A HOME,CATERING,28/01/2019,000008285080621,12.33,MCDONALDS
OXFORDSHIRE CC,"CHILDRENS, YOUNG PEOPLE AND FAMILIES",THAME E&A HOME,HARDWARE AND CROCKERY,28/01/2019,000008285080623,7.99,FROSTS AT MILLETS
OXFORDSHIRE CC,ENVIRONMENT AND ECONOMY,HARD FM,HARDWARE AND CROCKERY,28/01/2019,000008285080635,17.40,HOMEBASE LTD 091
OXFORDSHIRE CC,"CHILDRENS, YOUNG PEOPLE AND FAMILIES",THAME E&A HOME,ENTERTAINMENT EXPENSES,28/01/2019,000008285080625,26.00,RUSH - HIGH WYCOMBE
OXFORDSHIRE CC,"CHILDRENS, YOUNG PEOPLE AND FAMILIES",THAME E&A HOME,ENTERTAINMENT EXPENSES,28/01/2019,000008285080627,3.00,RUSH - HIGH WYCOMBE
OXFORDSHIRE CC,ENVIRONMENT AND ECONOMY,"	FLEET OPERATIONS",VEHICLES REPAIRS AND MAINTENANCE,28/01/2019,000008285080885,101.72,LONDON HIRE LTD
OXFORDSHIRE CC,"CHILDRENS, YOUNG PEOPLE AND FAMILIES","	FAMILY SUPPORT CITY3",HIRE OF ACCOMMODATION AND FACILITIES,28/01/2019,000008285080895,13.50,VIABLES COMMUNITY
OXFORDSHIRE CC,"CHILDRENS, YOUNG PEOPLE AND FAMILIES","	FAMILY SUPPORT CITY3",OTHER EXPENSES,28/01/2019,000008285080897,23.99,JD SPORTS INTERNET
OXFORDSHIRE CC,"CHILDRENS, YOUNG PEOPLE AND FAMILIES",THAME E&A HOME,CATERING PROVISIONS,28/01/2019,000008285080517,18.33,SAINSBURYS SACAT 2096
OXFORDSHIRE CC,"CHILDRENS, YOUNG PEOPLE AND FAMILIES","	PARENT PARTNERSHIP",HIRE OF ACCOMMODATION AND FACILITIES,28/01/2019,000008285080907,49.00,TRAVELODGE
OXFORDSHIRE CC,"CHILDRENS, YOUNG PEOPLE AND FAMILIES","	FAM SUPP CITY 1",SUBSCRIPTIONS,28/01/2019,000008285080911,19.57,AMFBOWLING.CO.UK
OXFORDSHIRE CC,"CHILDRENS, YOUNG PEOPLE AND FAMILIES","	40 THE MOORS",MATERIALS,28/01/2019,000008285080913,4.99,PRODUCT SUPPORT AG
OXFORDSHIRE CC,SOCIAL AND COMMUNITY SERVICES,CSS - BANBURY,"BOOKS, DVDS AND CDS",28/01/2019,000008285080915,21.99,AMZN MKTP UK MB4UX2WE4
OXFORDSHIRE CC,"CHILDRENS, YOUNG PEOPLE AND FAMILIES",EYNSHAM,CATERING PROVISIONS,28/01/2019,000008285080921,3.44,CO-OPERATIVE FOOD
OXFORDSHIRE CC,SOCIAL AND COMMUNITY SERVICES,CSS - BANBURY,"BOOKS, DVDS AND CDS",28/01/2019,000008285080917,50.40,AMZN MKTP UK MB9IL0W04
OXFORDSHIRE CC,"CHILDRENS, YOUNG PEOPLE AND FAMILIES",EYNSHAM,OTHER TRANSPORT ARRANGEMENTS,28/01/2019,000008285080919,1.70,HORIZON SAINSBURYS BIC
OXFORDSHIRE CC,"CHILDRENS, YOUNG PEOPLE AND FAMILIES","	RESIDENTIAL STRATEGY",SUBSCRIPTIONS,28/01/2019,000008285080545,39.95,AMFBOWLING.CO.UK
OXFORDSHIRE CC,SOCIAL AND COMMUNITY SERVICES,LOOKED AFTER SOUTH,HIRE OF ACCOMMODATION AND FACILITIES,28/01/2019,000008285080533,188.25,TRAVELODGE
OXFORDSHIRE CC,"CHILDRENS, YOUNG PEOPLE AND FAMILIES","	RESIDENTIAL STRATEGY",CATERING PROVISIONS,28/01/2019,000008285080541,33.17,TESCO STORE 2640
OXFORDSHIRE CC,"CHILDRENS, YOUNG PEOPLE AND FAMILIES","	RESIDENTIAL STRATEGY",CATERING PROVISIONS,28/01/2019,000008285080543,4.58,TOP PALACE LTD 41483
OXFORDSHIRE CC,"CHILDRENS, YOUNG PEOPLE AND FAMILIES",KINGFISHER,OTHER TRANSPORT ARRANGEMENTS,28/01/2019,000008285080931,1.60,NCP PARK PASS
OXFORDSHIRE CC,"CHILDRENS, YOUNG PEOPLE AND FAMILIES",KINGFISHER,CATERING,28/01/2019,000008285080933,6.49,BURGER KING
OXFORDSHIRE CC,CORPORATE CORE,LIBRARY COLLECTIONS,"PUBLICITY, PROMOTIONS AND ADVERTISEMENT",28/01/2019,000008285080941,624.00,REGIONAL PUBLICATIONS
OXFORDSHIRE CC,"CHILDRENS, YOUNG PEOPLE AND FAMILIES","	RESIDENTIAL STRATEGY",SUBSCRIPTIONS,28/01/2019,000008285080547,8.65,AMF BOWLING
OXFORDSHIRE CC,"CHILDRENS, YOUNG PEOPLE AND FAMILIES","	RESIDENTIAL STRATEGY",CATERING,28/01/2019,000008285080549,3.90,SBLENDED MILKSHAKES
OXFORDSHIRE CC,"CHILDRENS, YOUNG PEOPLE AND FAMILIES","	RESIDENTIAL STRATEGY",SUBSCRIPTIONS,28/01/2019,000008285080551,25.60,AMFBOWLING.CO.UK
OXFORDSHIRE CC,"CHILDRENS, YOUNG PEOPLE AND FAMILIES","	RESIDENTIAL STRATEGY",CATERING PROVISIONS,28/01/2019,000008285080553,4.75,OXFORD STARBUCKS
OXFORDSHIRE CC,"CHILDRENS, YOUNG PEOPLE AND FAMILIES","	RESIDENTIAL STRATEGY",CATERING,28/01/2019,000008285080555,6.60,SUBWAY
OXFORDSHIRE CC,"CHILDRENS, YOUNG PEOPLE AND FAMILIES","	RESIDENTIAL STRATEGY",SUBSCRIPTIONS,28/01/2019,000008285080557,8.65,AMF BOWLING
OXFORDSHIRE CC,"CHILDRENS, YOUNG PEOPLE AND FAMILIES",EYNSHAM,DAY ACTIVITIES,28/01/2019,000008285080559,5.90,TESCO STORE 2064
OXFORDSHIRE CC,ENVIRONMENT AND ECONOMY,HOLDING CODE FOR REA,VEHICLE FUEL,28/01/2019,000008285080569,19.99,ESSO THAME SERVICE ARE
OXFORDSHIRE CC,ENVIRONMENT AND ECONOMY,"	NAT TRAILS GENERAL",VEHICLES REPAIRS AND MAINTENANCE,28/01/2019,000008285080567,375.59,HARTWELL PARTS
OXFORDSHIRE CC,"CHILDRENS, YOUNG PEOPLE AND FAMILIES","	LOOKED AFTER CITY 2",PAYMENTS TO TRANSPORT OPERATORS,28/01/2019,000008285080761,46.90,GWR DIDCOT PKWY TO
OXFORDSHIRE CC,"CHILDRENS, YOUNG PEOPLE AND FAMILIES","	LOOKED AFTER CITY 2",OTHER TRANSPORT ARRANGEMENTS,28/01/2019,000008285080763,6.30,APCOA CONNECT - FGW
OXFORDSHIRE CC,CORPORATE CORE,HISTORY SERVICE,"BOOKS, DVDS AND CDS",28/01/2019,000008285080769,14.99,WALLINGFORD BOOK
OXFORDSHIRE CC,"CHILDRENS, YOUNG PEOPLE AND FAMILIES",CNTL EARLY HELP-RHIL,CATERING PROVISIONS,28/01/2019,000008285080777,41.90,SAINSBURYS SACAT 0600
OXFORDSHIRE CC,CORPORATE CORE,"	PERSONNEL",PAYMENTS TO TRANSPORT OPERATORS,28/01/2019,000008285080775,73.30,GWR CORP WEBBTSECOM
OXFORDSHIRE CC,CORPORATE CORE,"	LEGAL SERVICES",STAFF SUBSISTENCE,28/01/2019,000008285080781,32.50,GWR CORP WEBBTSECOM
OXFORDSHIRE CC,CORPORATE CORE,"	LEGAL SERVICES",STAFF SUBSISTENCE,28/01/2019,000008285080783,156.60,GWR CORP WEBBTSECOM
OXFORDSHIRE CC,CORPORATE CORE,"	LEGAL SERVICES",POSTAGE AND DELIVERY,28/01/2019,000008285080785,18.08,HEART OF ENGLAND DISTR
OXFORDSHIRE CC,CORPORATE CORE,"	CC TRAINING",OTHER TRAINING COURSES AND QUALIFICATION,28/01/2019,000008285080787,222.00,NO 5 CHAMBERS LTD
OXFORDSHIRE CC,"CHILDRENS, YOUNG PEOPLE AND FAMILIES","	RIVERSIDE CENTRE",CATERING PROVISIONS,28/01/2019,000008285080789,8.95,TESCO STORES 4377
OXFORDSHIRE CC,ENVIRONMENT AND ECONOMY,MUSEUM CAFE,MATERIALS,28/01/2019,000008285080805,621.00,AO RETAIL LIMITED
OXFORDSHIRE CC,CORPORATE CORE,"	CORPORATE FINANCE",PAYMENTS TO TRANSPORT OPERATORS,28/01/2019,000008285080817,73.30,GWR CORP WEBBTSECOM
OXFORDSHIRE CC,"CHILDRENS, YOUNG PEOPLE AND FAMILIES","	LEAVING CARE CITY 2",MATERIALS,28/01/2019,000008285080841,136.53,SPORTSDIRECT 436
OXFORDSHIRE CC,"CHILDRENS, YOUNG PEOPLE AND FAMILIES","	MALTFIELD HOUSE",CATERING PROVISIONS,28/01/2019,000008285080849,139.71,SAINSBURYS TO YOU 0600
OXFORDSHIRE CC,"CHILDRENS, YOUNG PEOPLE AND FAMILIES","	MALTFIELD HOUSE",TELEPHONE - EQUIPMENT,28/01/2019,000008285080851,10.00,GIFFGAFF
OXFORDSHIRE CC,SOCIAL AND COMMUNITY SERVICES,CSS WITNEY,"BOOKS, DVDS AND CDS",28/01/2019,000008285080865,19.80,AMZN MKTP UK MB8J42UK4
OXFORDSHIRE CC,SOCIAL AND COMMUNITY SERVICES,CSS WITNEY,MATERIALS,28/01/2019,000008285080867,24.11,AMAZON.CO.UK MB9MB5WJ4
OXFORDSHIRE CC,SOCIAL AND COMMUNITY SERVICES,CSS WANTAGE,CATERING PROVISIONS,28/01/2019,000008285080869,17.60,SAINSBURYS SACAT 2244
OXFORDSHIRE CC,"CHILDRENS, YOUNG PEOPLE AND FAMILIES","	MALTFIELD HOUSE",CATERING PROVISIONS,28/01/2019,000008285080881,6.49,CO-OPERATIVE FOOD
OXFORDSHIRE CC,ENVIRONMENT AND ECONOMY,"	FLEET OPERATIONS",VEHICLES REPAIRS AND MAINTENANCE,28/01/2019,000008285080883,208.10,LONDON HIRE LTD
OXFORDSHIRE CC,"CHILDRENS, YOUNG PEOPLE AND FAMILIES",EYNSHAM,CATERING,25/01/2019,000008277879143,34.24,TESCO STORES 2008
OXFORDSHIRE CC,"CHILDRENS, YOUNG PEOPLE AND FAMILIES",EYNSHAM,POSTAGE AND DELIVERY,25/01/2019,000008277879147,6.99,TESCO DELIVERY SAVER2
OXFORDSHIRE CC,"CHILDRENS, YOUNG PEOPLE AND FAMILIES","	LEAVING CARE NORTH",REGISTRATION AND INSPECTION FEES,25/01/2019,000008277879151,11.50,OCC REGISTRARS (M)
OXFORDSHIRE CC,ENVIRONMENT AND ECONOMY,HARD FM,HARDWARE AND CROCKERY,25/01/2019,000008277878189,6.77,CITY ELECTRICAL FA
OXFORDSHIRE CC,"CHILDRENS, YOUNG PEOPLE AND FAMILIES",THAME E&A HOME,CATERING,25/01/2019,000008277878193,11.50,COSTA COFFEE 43041630
OXFORDSHIRE CC,ENVIRONMENT AND ECONOMY,HARD FM,HARDWARE AND CROCKERY,25/01/2019,000008277878197,8.00,WICKES
OXFORDSHIRE CC,ENVIRONMENT AND ECONOMY,HARD FM,HARDWARE AND CROCKERY,25/01/2019,000008277878199,12.79,WICKES
OXFORDSHIRE CC,ENVIRONMENT AND ECONOMY,HARD FM,HARDWARE AND CROCKERY,25/01/2019,000008277878203,40.99,SCREWFIX BICESTER
OXFORDSHIRE CC,ENVIRONMENT AND ECONOMY,COUNTY LIBRARY,TECHNICAL AND PROFESSIONAL CONSULTANT F,25/01/2019,000008277878209,9.42,JASON HYDRAULICS
OXFORDSHIRE CC,ENVIRONMENT AND ECONOMY,COUNTY LIBRARY,GENERAL MAINTENANCE,25/01/2019,000008277878211,44.39, WOLSELEY UK
OXFORDSHIRE CC,ENVIRONMENT AND ECONOMY,COUNTY LIBRARY,HARDWARE AND CROCKERY,25/01/2019,000008277878217,29.58,CITY PLUMBING
OXFORDSHIRE CC,"CHILDRENS, YOUNG PEOPLE AND FAMILIES","	LEAVING CARE NORTH",CATERING PROVISIONS,25/01/2019,000008277878221,11.82,ICELAND
OXFORDSHIRE CC,ENVIRONMENT AND ECONOMY,"	TVERC",STATIONERY,25/01/2019,000008277878227,9.99,AMZN MKTP UK MB0UM7U04
OXFORDSHIRE CC,SOCIAL AND COMMUNITY SERVICES,CSS BICESTER,CATERING PROVISIONS,25/01/2019,000008277878231,9.40,SAINSBURYS (2243)
OXFORDSHIRE CC,"CHILDRENS, YOUNG PEOPLE AND FAMILIES",THAME E&A HOME,CATERING PROVISIONS,25/01/2019,000008277878237,7.64,CO-OP GROUP 350035
OXFORDSHIRE CC,"CHILDRENS, YOUNG PEOPLE AND FAMILIES","	RIVERSIDE CENTRE",CATERING PROVISIONS,25/01/2019,000008277878251,2.45,SAINSBURYS SACAT 0631
OXFORDSHIRE CC,"CHILDRENS, YOUNG PEOPLE AND FAMILIES","	RIVERSIDE CENTRE",DAY ACTIVITIES,25/01/2019,000008277878255,6.50,SPORTS CENTRE
OXFORDSHIRE CC,"CHILDRENS, YOUNG PEOPLE AND FAMILIES",NTH FAM SUPRT-BCSTR,PAYMENTS TO TRANSPORT OPERATORS,25/01/2019,000008277878277,71.30,GWR CORP WEBBTSECOM
OXFORDSHIRE CC,"CHILDRENS, YOUNG PEOPLE AND FAMILIES",NTH FAM SUPRT-BCSTR,PAYMENTS TO TRANSPORT OPERATORS,25/01/2019,000008277878281,41.75,GWR CORP WEBBTSECOM
OXFORDSHIRE CC,"CHILDRENS, YOUNG PEOPLE AND FAMILIES",NTH FAM SUPRT-BCSTR,PAYMENTS TO TRANSPORT OPERATORS,25/01/2019,000008277878285,142.60,GWR CORP WEBBTSECOM
OXFORDSHIRE CC,"CHILDRENS, YOUNG PEOPLE AND FAMILIES",NTH FAM SUPRT-BCSTR,PAYMENTS TO TRANSPORT OPERATORS,25/01/2019,000008277878289,105.45,GWR CORP WEBBTSECOM
OXFORDSHIRE CC,"CHILDRENS, YOUNG PEOPLE AND FAMILIES",NTH FAM SUPRT-BCSTR,OTHER TRANSPORT ARRANGEMENTS,25/01/2019,000008277878293,47.50,TAXICODE
OXFORDSHIRE CC,SOCIAL AND COMMUNITY SERVICES,CSS WALLINGFORD,PAYMENTS TO VOLUNTARY BODIES,25/01/2019,000008277878303,14.99,SUE RYDER 5061
OXFORDSHIRE CC,SOCIAL AND COMMUNITY SERVICES,CSS WALLINGFORD,MEDICAL AND COUNSELLING FEES,25/01/2019,000008277878307,89.10,TRUE MOBILITY
OXFORDSHIRE CC,SOCIAL AND COMMUNITY SERVICES,CSS WALLINGFORD,CATERING PROVISIONS,25/01/2019,000008277878313,9.01,WAITROSE 675
OXFORDSHIRE CC,ENVIRONMENT AND ECONOMY,AREA OPERATIONS SOUTH STAFF,EQUIPMENT,25/01/2019,000008277878319,81.79,RS COMPONENTS
OXFORDSHIRE CC,ENVIRONMENT AND ECONOMY,AREA OPERATIONS SOUTH STAFF,HARDWARE AND CROCKERY,25/01/2019,000008277878323,39.43,WWW.ASPLI.COM
OXFORDSHIRE CC,"CHILDRENS, YOUNG PEOPLE AND FAMILIES","	FAMILY SUPPORT CITY3",CATERING,25/01/2019,000008277878057,6.35,THE PARLOUR TEA ROOMS
OXFORDSHIRE CC,"CHILDRENS, YOUNG PEOPLE AND FAMILIES","	FAMILY SUPPORT CITY3",CATERING PROVISIONS,25/01/2019,000008277878061,15.18,WELCOME BREAK OXFORD N
OXFORDSHIRE CC,"CHILDRENS, YOUNG PEOPLE AND FAMILIES","	FAMILY SUPPORT CITY3",VEHICLE FUEL,25/01/2019,000008277878067,28.70,ASDA PETROL/UPT
OXFORDSHIRE CC,"CHILDRENS, YOUNG PEOPLE AND FAMILIES","	LOOKED AFTER SOUTH",OTHER TRANSPORT ARRANGEMENTS,25/01/2019,000008277878071,-75.00,STAGECOACH SERVICE
OXFORDSHIRE CC,"CHILDRENS, YOUNG PEOPLE AND FAMILIES",THAME E&A HOME,VEHICLE FUEL,25/01/2019,000008277878993,1.74,STADHAMPTON SF CONNECT
OXFORDSHIRE CC,CORPORATE CORE,,"SUPPLIES, STATIONERY AND MATERIALS",25/01/2019,000008277879019,23.90,LYRECO UK LTD
OXFORDSHIRE CC,"CHILDRENS, YOUNG PEOPLE AND FAMILIES",FAMILY SUPPORT 2,PAYMENTS TO TRANSPORT OPERATORS,25/01/2019,000008277879027,67.50,GWR CORP WEBBTSECOM
OXFORDSHIRE CC,ENTERPRISEVC,,CAR LEASING - PRIVATE RENTALS,25/01/2019,000008277879031,508.37,ENTERPRISE RENT-A-CAR
OXFORDSHIRE CC,ENTERPRISEVC,,CAR LEASING - PRIVATE RENTALS,25/01/2019,000008277879035,508.37,ENTERPRISE RENT-A-CAR
OXFORDSHIRE CC,ENTERPRISEVC,,CAR LEASING - PRIVATE RENTALS,25/01/2019,000008277879043,364.32,ENTERPRISE RENT-A-CAR
OXFORDSHIRE CC,ENTERPRISEVC,,CAR LEASING - PRIVATE RENTALS,25/01/2019,000008277879047,508.74,ENTERPRISE RENT-A-CAR
OXFORDSHIRE CC,"CHILDRENS, YOUNG PEOPLE AND FAMILIES",CSS WALLINGFORD,MATERIALS,25/01/2019,000008277878115,26.94,FIRSTAID4LESS.CO.UK
OXFORDSHIRE CC,"CHILDRENS, YOUNG PEOPLE AND FAMILIES",CSS WALLINGFORD,MATERIALS,25/01/2019,000008277878119,26.50,HALFORDS 0567
OXFORDSHIRE CC,"CHILDRENS, YOUNG PEOPLE AND FAMILIES",CSS WALLINGFORD,CATERING PROVISIONS,25/01/2019,000008277878121,1.15,TESCO STORES
OXFORDSHIRE CC,"CHILDRENS, YOUNG PEOPLE AND FAMILIES","	RESIDENTIAL STRATEGY",CATERING PROVISIONS,25/01/2019,000008277878129,17.38,WAITROSE LTD
OXFORDSHIRE CC,"CHILDRENS, YOUNG PEOPLE AND FAMILIES","	RESIDENTIAL STRATEGY",CATERING,25/01/2019,000008277878133,8.79,MCDONALDS
OXFORDSHIRE CC,"CHILDRENS, YOUNG PEOPLE AND FAMILIES","	RESIDENTIAL STRATEGY",OTHER TRANSPORT ARRANGEMENTS,25/01/2019,000008277878137,1.00,PARKJOCKEY LONDON
OXFORDSHIRE CC,"CHILDRENS, YOUNG PEOPLE AND FAMILIES","	LOOKED AFTER NORTH",OTHER TRANSPORT ARRANGEMENTS,25/01/2019,000008277878141,2.00,3C_ PRINCESS SQUARE MS
OXFORDSHIRE CC,ENTERPRISEVC,,CAR LEASING - PRIVATE RENTALS,25/01/2019,000008277879051,508.37,ENTERPRISE RENT-A-CAR
OXFORDSHIRE CC,ENTERPRISEVC,,CAR LEASING - PRIVATE RENTALS,25/01/2019,000008277879055,406.73,ENTERPRISE RENT-A-CAR
OXFORDSHIRE CC,ENTERPRISEVC,,CAR LEASING - PRIVATE RENTALS,25/01/2019,000008277879063,514.97,ENTERPRISE RENT-A-CAR
OXFORDSHIRE CC,ENTERPRISEVC,,CAR LEASING - PRIVATE RENTALS,25/01/2019,000008277879067,367.92,ENTERPRISE RENT-A-CAR
OXFORDSHIRE CC,ENTERPRISEVC,,CAR LEASING - PRIVATE RENTALS,25/01/2019,000008277879071,514.97,ENTERPRISE RENT-A-CAR
OXFORDSHIRE CC,"CHILDRENS, YOUNG PEOPLE AND FAMILIES","	LEAVING CARE NORTH",OTHER TRANSPORT ARRANGEMENTS,25/01/2019,000008277879079,6.80,BANBURY SSTP
OXFORDSHIRE CC,"CHILDRENS, YOUNG PEOPLE AND FAMILIES","	LEAVING CARE NORTH",CLOTHING AND UNIFORMS,25/01/2019,000008277879083,3.50,CO-OPERATIVE FOOD
OXFORDSHIRE CC,"CHILDRENS, YOUNG PEOPLE AND FAMILIES","	LEAVING CARE NORTH",CLOTHING AND UNIFORMS,25/01/2019,000008277879087,93.04,SPORTSDIRECT.COM
OXFORDSHIRE CC,"CHILDRENS, YOUNG PEOPLE AND FAMILIES","	LOOKED AFTER SOUTH",OTHER TRANSPORT ARRANGEMENTS,25/01/2019,000008277879093,3.00,WESTGATE OXFORD CAR PA
OXFORDSHIRE CC,"CHILDRENS, YOUNG PEOPLE AND FAMILIES",CNTL EARLY HELP-RHIL,CATERING PROVISIONS,25/01/2019,000008277879101,24.66,ALDI STORES 775-142
OXFORDSHIRE CC,ENVIRONMENT AND ECONOMY,HARD FM,HARDWARE AND CROCKERY,25/01/2019,000008277878167,80.88,TRAVIS PERKINS
OXFORDSHIRE CC,ENVIRONMENT AND ECONOMY,HARD FM,HARDWARE AND CROCKERY,25/01/2019,000008277878173,31.81,WICKES
OXFORDSHIRE CC,ENVIRONMENT AND ECONOMY,HARD FM,HARDWARE AND CROCKERY,25/01/2019,000008277878177,60.00,CITY PLUMBING
OXFORDSHIRE CC,ENVIRONMENT AND ECONOMY,HARD FM,HARDWARE AND CROCKERY,25/01/2019,000008277878181,-60.00,CITY PLUMBING
OXFORDSHIRE CC,ENVIRONMENT AND ECONOMY,HARD FM,MATERIALS,25/01/2019,000008277878185,6.98,TOOLSTATION LTD
OXFORDSHIRE CC,"CHILDRENS, YOUNG PEOPLE AND FAMILIES",MANAGEMENT,PAYMENTS TO TRANSPORT OPERATORS,25/01/2019,000008277879113,141.23,TRAINLINE
OXFORDSHIRE CC,CORPORATE CORE,SNR LEADERSHIP TEAM,PAYMENTS TO VOLUNTARY BODIES,25/01/2019,000008277879139,499.00,WWW.ADASS.ORG.UK
OXFORDSHIRE CC,ENVIRONMENT AND ECONOMY,"	FLEET OPERATIONS",POSTAGE AND DELIVERY,25/01/2019,000008277878695,8.04,POST OFFICE COUNTER
OXFORDSHIRE CC,SOCIAL AND COMMUNITY SERVICES,"	FAMILY SUPPORT N'TH2",NON-STAFF SUBSISTENCE AND EXPENSES,25/01/2019,000008277878743,64.90,HOTEL ON BOOKING.COM
OXFORDSHIRE CC,"CHILDRENS, YOUNG PEOPLE AND FAMILIES","	SENSS TRAINING",EDUCATIONAL AND VOCATIONAL TRAINING ,25/01/2019,000008277878749,65.86,EB  YOUTH IN MIND CONF
OXFORDSHIRE CC,"CHILDRENS, YOUNG PEOPLE AND FAMILIES","	40 THE MOORS",PAYMENTS TO TRANSPORT OPERATORS,25/01/2019,000008277878755,3.35,OXFORD PARKWAY SSTP
OXFORDSHIRE CC,ENVIRONMENT AND ECONOMY,FARINGDON LIBRARY,CATERING PROVISIONS,25/01/2019,000008277878779,6.25,ASDA SUPERSTORE
OXFORDSHIRE CC,"CHILDRENS, YOUNG PEOPLE AND FAMILIES","	40 THE MOORS",CATERING,25/01/2019,000008277878805,2.95,COSTA COFFEE 43036290
OXFORDSHIRE CC,ENVIRONMENT AND ECONOMY,"	BUSINESS SYST STAFF",OTHER TRANSPORT ARRANGEMENTS,25/01/2019,000008277878815,9.00,WESTGATE OXFORD CAR PA
OXFORDSHIRE CC,"CHILDRENS, YOUNG PEOPLE AND FAMILIES",DIDCOT MOVE-ON HOME,POSTAGE AND DELIVERY,25/01/2019,000008277878831,8.04,POST OFFICE COUNTER
OXFORDSHIRE CC,"CHILDRENS, YOUNG PEOPLE AND FAMILIES",DIDCOT MOVE-ON HOME,CATERING PROVISIONS,25/01/2019,000008277878841,46.10,SAINSBURYS 2067
OXFORDSHIRE CC,"CHILDRENS, YOUNG PEOPLE AND FAMILIES",0-5 STDS & PROGRESS,"BOOKS, DVDS AND CDS",25/01/2019,000008277878845,48.48,AMAZON.CO.UK MB31379K4
OXFORDSHIRE CC,"CHILDRENS, YOUNG PEOPLE AND FAMILIES",VULNERABLE LEARNERS,"BOOKS, DVDS AND CDS",25/01/2019,000008277878849,18.32,AMAZON.CO.UK MB5D379U4
OXFORDSHIRE CC,"CHILDRENS, YOUNG PEOPLE AND FAMILIES",VULNERABLE LEARNERS,"BOOKS, DVDS AND CDS",25/01/2019,000008277878853,19.68,AMAZON.CO.UK MB9PN19B4
OXFORDSHIRE CC,"CHILDRENS, YOUNG PEOPLE AND FAMILIES",VULNERABLE LEARNERS,"BOOKS, DVDS AND CDS",25/01/2019,000008277878857,33.64,AMAZON.CO.UK MB75O7UC4
OXFORDSHIRE CC,"CHILDRENS, YOUNG PEOPLE AND FAMILIES",VULNERABLE LEARNERS,"BOOKS, DVDS AND CDS",25/01/2019,000008277878861,225.00,AMAZON.CO.UK MB7FM5UY4
OXFORDSHIRE CC,"CHILDRENS, YOUNG PEOPLE AND FAMILIES","	MUSIC UNALLOCABLE",MATERIALS,25/01/2019,000008277878901,401.17,WWW.THOMANN.DE
OXFORDSHIRE CC,"CHILDRENS, YOUNG PEOPLE AND FAMILIES","	MUSIC UNALLOCABLE",MATERIALS,25/01/2019,000008277878905,241.86,WWW.THOMANN.DE
OXFORDSHIRE CC,"CHILDRENS, YOUNG PEOPLE AND FAMILIES",THAME E&A HOME,CATERING PROVISIONS,25/01/2019,000008277877957,6.45,COSTA THAME
OXFORDSHIRE CC,"CHILDRENS, YOUNG PEOPLE AND FAMILIES",KINGFISHER,CATERING,25/01/2019,000008277877961,4.40,COSTA TEMPLAR SQUARE O
OXFORDSHIRE CC,"CHILDRENS, YOUNG PEOPLE AND FAMILIES","	FAMILY SUPPORT S'TH2",STAFF USE OF PUBLIC TRANSPORT,25/01/2019,000008277877995,58.50,WWW.WIGHTLINK.CO.UK
OXFORDSHIRE CC,SOCIAL AND COMMUNITY SERVICES,LOOKED AFTER SOUTH,VEHICLE FUEL,25/01/2019,000008277878015,23.78,MARLBOROUGH RD 395
OXFORDSHIRE CC,"CHILDRENS, YOUNG PEOPLE AND FAMILIES","	LOOKED AFTER NORTH",VEHICLE FUEL,25/01/2019,000008277878985,28.00,ESSO ACORN SSTN
OXFORDSHIRE CC,ENVIRONMENT AND ECONOMY,"	R & A STAFF & OPS",PAYMENTS TO TRANSPORT OPERATORS,25/01/2019,000008277878417,27.60,CROSS COUNTRY TRAINS
OXFORDSHIRE CC,"CHILDRENS, YOUNG PEOPLE AND FAMILIES",NTH EARLY HELP-BCSTR,CATERING PROVISIONS,25/01/2019,000008277878419,7.82,MILK&MORE
OXFORDSHIRE CC,"CHILDRENS, YOUNG PEOPLE AND FAMILIES","	RESIDENTIAL STRATEGY","BOOKS, DVDS AND CDS",25/01/2019,000008277878425,19.98,AMZN MKTP UK MB36Z2UK4
OXFORDSHIRE CC,ENVIRONMENT AND ECONOMY,"	BRIDGES GENERAL","BOOKS, DVDS AND CDS",25/01/2019,000008277878431,20.99,AMZN MKTP UK MB0Z22UP4
OXFORDSHIRE CC,SOCIAL AND COMMUNITY SERVICES,"	MUSEUMS COLLECTIONS","BOOKS, DVDS AND CDS",25/01/2019,000008277878467,6.70,AMZN MKTP UK MB4D149K4
OXFORDSHIRE CC,"CHILDRENS, YOUNG PEOPLE AND FAMILIES","	LEAVING CARE CITY 2",CLOTHING AND UNIFORMS,25/01/2019,000008277878473,40.04,T K MAXX
OXFORDSHIRE CC,"CHILDRENS, YOUNG PEOPLE AND FAMILIES","	LOOKED AFTER CITY 2",PAYMENTS TO TRANSPORT OPERATORS,25/01/2019,000008277878485,6.80,THE CHILTERN RLYWY
OXFORDSHIRE CC,"CHILDRENS, YOUNG PEOPLE AND FAMILIES","	LOOKED AFTER CITY 2",OTHER TRANSPORT ARRANGEMENTS,25/01/2019,000008277878489,2.10,APCOA CONNECT - FGW
OXFORDSHIRE CC,"CHILDRENS, YOUNG PEOPLE AND FAMILIES","	RIVERSIDE CENTRE",MATERIALS,25/01/2019,000008277878543,6.95,SMITH & LOW LTD
OXFORDSHIRE CC,"CHILDRENS, YOUNG PEOPLE AND FAMILIES","	LEAVING CARE NORTH",OTHER TRANSPORT ARRANGEMENTS,25/01/2019,000008277878551,10.10,GWR DIDCOT PKWY TO
OXFORDSHIRE CC,CORPORATE CORE,"	CORPORATE FINANCE",PAYMENTS TO TRANSPORT OPERATORS,25/01/2019,000008277878579,73.30,GWR CORP WEBBTSECOM
OXFORDSHIRE CC,"CHILDRENS, YOUNG PEOPLE AND FAMILIES","	LEAVING CARE CITY 1",CLOTHING AND UNIFORMS,25/01/2019,000008277878621,70.00,NEW LOOK
OXFORDSHIRE CC,"CHILDRENS, YOUNG PEOPLE AND FAMILIES","	LEAVING CARE CITY 1",CATERING PROVISIONS,25/01/2019,000008277878625,20.96,ALDI 99 775
OXFORDSHIRE CC,"CHILDRENS, YOUNG PEOPLE AND FAMILIES","	LEAVING CARE NORTH",CATERING PROVISIONS,25/01/2019,000008277878631,5.44,WM MORRISONS STORE
OXFORDSHIRE CC,"CHILDRENS, YOUNG PEOPLE AND FAMILIES","	LEAVING CARE NORTH",CATERING PROVISIONS,25/01/2019,000008277878635,10.00,WM MORRISONS STORE
OXFORDSHIRE CC,SOCIAL AND COMMUNITY SERVICES,CSS WITNEY,"BOOKS, DVDS AND CDS",25/01/2019,000008277878663,19.99,AMZN MKTP UK MB2JV99C4
OXFORDSHIRE CC,"CHILDRENS, YOUNG PEOPLE AND FAMILIES","	LEAVING CARE CITY 2",OTHER EXPENSES,24/01/2019,000008272585827,11.00,SAINSBURYS 0600
OXFORDSHIRE CC,"CHILDRENS, YOUNG PEOPLE AND FAMILIES","	LEAVING CARE CITY 2",OTHER EXPENSES,24/01/2019,000008272585833,10.00,SAINSBURYS 0600
OXFORDSHIRE CC,"CHILDRENS, YOUNG PEOPLE AND FAMILIES","	LEAVING CARE CITY 2",VEHICLE FUEL,24/01/2019,000008272585837,25.00,MEMBURY MWSA EAST
OXFORDSHIRE CC,"CHILDRENS, YOUNG PEOPLE AND FAMILIES","	LEAVING CARE CITY 2",VEHICLE FUEL,24/01/2019,000008272585843,26.94,SHELL COWLEY
OXFORDSHIRE CC,"CHILDRENS, YOUNG PEOPLE AND FAMILIES","	FAMILY SUPPORT CITY3",CATERING,24/01/2019,000008272586433,5.90,COSTA @ TESCO
OXFORDSHIRE CC,"CHILDRENS, YOUNG PEOPLE AND FAMILIES","	RIVERSIDE CENTRE",CATERING PROVISIONS,24/01/2019,000008272586441,5.50,TESCO STORE 2124
OXFORDSHIRE CC,CORPORATE CORE,SNR LEADERSHIP TEAM,PAYMENTS TO VOLUNTARY BODIES,24/01/2019,000008272586451,499.00,WWW.ADASS.ORG.UK
OXFORDSHIRE CC,"CHILDRENS, YOUNG PEOPLE AND FAMILIES",NORTH FSS- WITNEY,MATERIALS,24/01/2019,000008272586455,195.95,WWW.ARGOS.CO.UK
OXFORDSHIRE CC,CORPORATE CORE,"	COMMUNICATIONS",MATERIALS,24/01/2019,000008272586459,21.31,AMAZON.CO.UK MB4QD67V4
OXFORDSHIRE CC,CORPORATE CORE,INFORMATION & ADVICE,"PUBLICITY, PROMOTIONS AND ADVERTISEMENT",24/01/2019,000008272586461,97.39,FACEBK  UGPRFKE9Z2
OXFORDSHIRE CC,CORPORATE CORE,COMM FIRE SAFETY,"PUBLICITY, PROMOTIONS AND ADVERTISEMENT",24/01/2019,000008272586461,172.35,FACEBK  UGPRFKE9Z2
OXFORDSHIRE CC,CORPORATE CORE,"	COMMUNICATIONS","PUBLICITY, PROMOTIONS AND ADVERTISEMENT",24/01/2019,000008272586461,230.26,FACEBK  UGPRFKE9Z2
OXFORDSHIRE CC,ENVIRONMENT AND ECONOMY,HARD FM,GENERAL MAINTENANCE,24/01/2019,000008272585557,23.94, WOLSELEY UK
OXFORDSHIRE CC,ENVIRONMENT AND ECONOMY,HARD FM,HARDWARE AND CROCKERY,24/01/2019,000008272585561,27.84,TRAVIS PERKINS
OXFORDSHIRE CC,ENVIRONMENT AND ECONOMY,HARD FM,HARDWARE AND CROCKERY,24/01/2019,000008272585565,36.48,SCREWFIX BICESTER
OXFORDSHIRE CC,ENVIRONMENT AND ECONOMY,HARD FM,CLOTHING AND UNIFORMS,24/01/2019,000008272585569,30.00,SEWORKWEAR.COM
OXFORDSHIRE CC,ENVIRONMENT AND ECONOMY,HARD FM,HARDWARE AND CROCKERY,24/01/2019,000008272585573,47.64,B & Q 1156
OXFORDSHIRE CC,"CHILDRENS, YOUNG PEOPLE AND FAMILIES","	FAM SUPP CITY 1",IT SOFTWARE,24/01/2019,000008272586129,56.70,ERIC
OXFORDSHIRE CC,"CHILDRENS, YOUNG PEOPLE AND FAMILIES","	40 THE MOORS",TELEPHONE - EQUIPMENT,24/01/2019,000008272586135,27.50,WWW.THREE.CO.UK
OXFORDSHIRE CC,"CHILDRENS, YOUNG PEOPLE AND FAMILIES",EYNSHAM,ENTERTAINMENT EXPENSES,24/01/2019,000008272586145,4.15,BARTHOLOMEW SPORTS CEN
OXFORDSHIRE CC,"CHILDRENS, YOUNG PEOPLE AND FAMILIES",EYNSHAM,ENTERTAINMENT EXPENSES,24/01/2019,000008272586149,4.15,BARTHOLOMEW SPORTS CEN
OXFORDSHIRE CC,"CHILDRENS, YOUNG PEOPLE AND FAMILIES","	40 THE MOORS",CATERING PROVISIONS,24/01/2019,000008272586163,35.00,TESCO STORE 2788
OXFORDSHIRE CC,"CHILDRENS, YOUNG PEOPLE AND FAMILIES","	40 THE MOORS",CATERING PROVISIONS,24/01/2019,000008272586169,3.90,TESCO STORE 2788
OXFORDSHIRE CC,"CHILDRENS, YOUNG PEOPLE AND FAMILIES","	40 THE MOORS",CATERING PROVISIONS,24/01/2019,000008272586173,.85,TESCO STORE 2788
OXFORDSHIRE CC,ENVIRONMENT AND ECONOMY,"	BUSINESS SYST STAFF",MATERIALS,24/01/2019,000008272586177,65.98,ARGOS LTD
OXFORDSHIRE CC,ENVIRONMENT AND ECONOMY,"	BUSINESS SYST STAFF",MATERIALS,24/01/2019,000008272586179,19.99,ARGOS LTD
OXFORDSHIRE CC,ENVIRONMENT AND ECONOMY,STRATEGY AND INFRASTRUCTURE PLANNING,PAYMENTS TO TRANSPORT OPERATORS,24/01/2019,000008272586191,95.40,GWR WEBSALES
OXFORDSHIRE CC,"CHILDRENS, YOUNG PEOPLE AND FAMILIES",DIDCOT MOVE-ON HOME,CATERING PROVISIONS,24/01/2019,000008272586215,17.15,SAINSBURYS SACAT 2067
OXFORDSHIRE CC,"CHILDRENS, YOUNG PEOPLE AND FAMILIES",VULNERABLE LEARNERS,"BOOKS, DVDS AND CDS",24/01/2019,000008272586227,59.20,AMZN MKTP UK MB6TT37U4
OXFORDSHIRE CC,"CHILDRENS, YOUNG PEOPLE AND FAMILIES",VULNERABLE LEARNERS,"BOOKS, DVDS AND CDS",24/01/2019,000008272586231,35.16,AMZN MKTP UK MB8YN7704
OXFORDSHIRE CC,"CHILDRENS, YOUNG PEOPLE AND FAMILIES",VULNERABLE LEARNERS,"BOOKS, DVDS AND CDS",24/01/2019,000008272586237,145.24,AMAZON.CO.UK MB70P97X4
OXFORDSHIRE CC,SOCIAL AND COMMUNITY SERVICES,"	FAMILY SUPPORT N'TH2",CLIENT LODGINGS AND ACCOMMODATION,24/01/2019,000008272586101,64.90,HOTEL ON BOOKING.COM
OXFORDSHIRE CC,SOCIAL AND COMMUNITY SERVICES,"	FAMILY SUPPORT N'TH2",NON-STAFF SUBSISTENCE AND EXPENSES,24/01/2019,000008272586107,15.00,TESCO PFS 3920
OXFORDSHIRE CC,SOCIAL AND COMMUNITY SERVICES,"	FAMILY SUPPORT N'TH2",NON-STAFF SUBSISTENCE AND EXPENSES,24/01/2019,000008272586111,4.00,WENDOVER ARMS
OXFORDSHIRE CC,"CHILDRENS, YOUNG PEOPLE AND FAMILIES",FAMILY SUPPORT 2,PAYMENTS TO TRANSPORT OPERATORS,24/01/2019,000008272586361,20.20,GWR CORP WEBBTSECOM
OXFORDSHIRE CC,"CHILDRENS, YOUNG PEOPLE AND FAMILIES",FAMILY SUPPORT 2,EDUCATIONAL AND VOCATIONAL TRAINING ,24/01/2019,000008272586363,12.00,FREEDOM PROGRAMME LIMI
OXFORDSHIRE CC,"CHILDRENS, YOUNG PEOPLE AND FAMILIES","	LEAVING CARE NORTH",OTHER EXPENSES,24/01/2019,000008272586373,10.00,WITNEY INSIDE SAINSBUR
OXFORDSHIRE CC,"CHILDRENS, YOUNG PEOPLE AND FAMILIES","	LOOKED AFTER SOUTH",REGISTRATION AND INSPECTION FEES,24/01/2019,000008272585459,40.00,OCC REGISTRARS (M)
OXFORDSHIRE CC,"CHILDRENS, YOUNG PEOPLE AND FAMILIES","	MALTFIELD HOUSE",CATERING,24/01/2019,000008272585467,2.70,CO-OPERATIVE FOOD
OXFORDSHIRE CC,"CHILDRENS, YOUNG PEOPLE AND FAMILIES","	OSCB",HIRE OF ACCOMMODATION AND FACILITIES,24/01/2019,000008272585473,450.00,MALMAISON OXFORD
OXFORDSHIRE CC,"CHILDRENS, YOUNG PEOPLE AND FAMILIES",THAME E&A HOME,DRUGS AND MEDICAL SUPPLIES,24/01/2019,000008272585481,8.99,FROSTS PHARMACY LTD
OXFORDSHIRE CC,"CHILDRENS, YOUNG PEOPLE AND FAMILIES",THAME E&A HOME,CATERING PROVISIONS,24/01/2019,000008272585489,5.02,CO-OPERATIVE FOOD
OXFORDSHIRE CC,"CHILDRENS, YOUNG PEOPLE AND FAMILIES","	RESIDENTIAL STRATEGY",CATERING,24/01/2019,000008272585495,26.85,KFC -  WYCOMBE RETAIL
OXFORDSHIRE CC,"CHILDRENS, YOUNG PEOPLE AND FAMILIES",THAME E&A HOME,OTHER TRANSPORT ARRANGEMENTS,24/01/2019,000008272585733,3.40,IPSGROUP.COM
OXFORDSHIRE CC,ENVIRONMENT AND ECONOMY,"	MINERALS & WASTE",PAYMENTS TO TRANSPORT OPERATORS,24/01/2019,000008272585783,71.50,GWR CORP WEBBTSECOM
OXFORDSHIRE CC,CORPORATE CORE,LIBRARY COLLECTIONS,"BOOKS, DVDS AND CDS",24/01/2019,000008272585791,13.18,AMAZON.CO.UK MB1MJ4704
OXFORDSHIRE CC,SOCIAL AND COMMUNITY SERVICES,CSS - OXFORD,EQUIPMENT,24/01/2019,000008272585797,15.90,AMAZON.CO.UK MB5955914
OXFORDSHIRE CC,"CHILDRENS, YOUNG PEOPLE AND FAMILIES","	LEAVING CARE NORTH","SUPPLIES, STATIONERY AND MATERIALS",24/01/2019,000008272586377,6.10,WH SMITH
OXFORDSHIRE CC,"CHILDRENS, YOUNG PEOPLE AND FAMILIES","	LOOKED AFTER SOUTH",CLOTHING AND UNIFORMS,24/01/2019,000008272586381,11.00,PRIMARK 440
OXFORDSHIRE CC,"CHILDRENS, YOUNG PEOPLE AND FAMILIES","	LOOKED AFTER SOUTH",OTHER TRANSPORT ARRANGEMENTS,24/01/2019,000008272586383,5.00,WESTGATE OXFORD CAR PA
OXFORDSHIRE CC,"CHILDRENS, YOUNG PEOPLE AND FAMILIES","	RESIDENTIAL STRATEGY",OTHER TRANSPORT ARRANGEMENTS,24/01/2019,000008272585499,3.00,3C_ INDIGO PARK HIGH S
OXFORDSHIRE CC,"CHILDRENS, YOUNG PEOPLE AND FAMILIES","	RESIDENTIAL STRATEGY",SUBSCRIPTIONS,24/01/2019,000008272585503,43.80,CORAL REEF WATERWORLD
OXFORDSHIRE CC,"CHILDRENS, YOUNG PEOPLE AND FAMILIES","	RESIDENTIAL STRATEGY",CATERING,24/01/2019,000008272585507,16.80,SUBWAY
OXFORDSHIRE CC,"CHILDRENS, YOUNG PEOPLE AND FAMILIES","	LOOKED AFTER NORTH",OTHER TRANSPORT ARRANGEMENTS,24/01/2019,000008272585515,2.60,NCP PARK PASS
OXFORDSHIRE CC,"CHILDRENS, YOUNG PEOPLE AND FAMILIES","	LOOKED AFTER CITY 1",FURNITURE,24/01/2019,000008272585521,8.00,HELEN & DOUGLAS HOUSE
OXFORDSHIRE CC,SOCIAL AND COMMUNITY SERVICES,CSS - OXFORD,EQUIPMENT,24/01/2019,000008272585539,32.99,ARGOS RETAIL GROUP
OXFORDSHIRE CC,ENVIRONMENT AND ECONOMY,HARD FM,GENERAL MAINTENANCE,24/01/2019,000008272585551,51.62, WOLSELEY UK
OXFORDSHIRE CC,ENVIRONMENT AND ECONOMY,"	LPP MANAGEMENT",PAYMENTS TO TRANSPORT OPERATORS,24/01/2019,000008272585819,125.00,GWR CORP WEBBTSECOM
OXFORDSHIRE CC,"CHILDRENS, YOUNG PEOPLE AND FAMILIES",THAME E&A HOME,MATERIALS,24/01/2019,000008272585411,3.75,M & S SIMPLY FOOD
OXFORDSHIRE CC,"CHILDRENS, YOUNG PEOPLE AND FAMILIES","	RIVERSIDE CENTRE",EQUIPMENT,24/01/2019,000008272585647,3.99,CO-OPERATIVE FOOD
OXFORDSHIRE CC,"CHILDRENS, YOUNG PEOPLE AND FAMILIES",THAME E&A HOME,CATERING PROVISIONS,24/01/2019,000008272585653,124.83,TESCO STORE 2132
OXFORDSHIRE CC,"CHILDRENS, YOUNG PEOPLE AND FAMILIES",THAME E&A HOME,ENTERTAINMENT EXPENSES,24/01/2019,000008272585659,89.00,IZ  BEE THREE ZERO
OXFORDSHIRE CC,"CHILDRENS, YOUNG PEOPLE AND FAMILIES",LOCALITY & COMMUNITY SUPPORT SERVICE,CATERING PROVISIONS,24/01/2019,000008272585663,24.01,TESCO STORE 2064
OXFORDSHIRE CC,"CHILDRENS, YOUNG PEOPLE AND FAMILIES",CNTL EARLY HELP-RHIL,MATERIALS,24/01/2019,000008272585667,63.99,AMZN MKTP UK MB04I77A4
OXFORDSHIRE CC,"CHILDRENS, YOUNG PEOPLE AND FAMILIES",CNTL EARLY HELP-RHIL,OTHER SERVICES,24/01/2019,000008272585673,80.00,OXFORD DISTRICT SERVIC
OXFORDSHIRE CC,ENVIRONMENT AND ECONOMY,CPD TRAINING,OTHER TRAINING COURSES AND QUALIFICATION,24/01/2019,000008272585681,414.00,PEOPLECERT
OXFORDSHIRE CC,ENVIRONMENT AND ECONOMY,AREA OPERATIONS SOUTH STAFF,"BOOKS, DVDS AND CDS",24/01/2019,000008272585697,36.50,AMZN MKTP UK MB2NX4714
OXFORDSHIRE CC,ENVIRONMENT AND ECONOMY,AREA OPERATIONS SOUTH STAFF,HARDWARE AND CROCKERY,24/01/2019,000008272585701,36.99,SCREWFIX ABINGDON
OXFORDSHIRE CC,CORPORATE CORE,ICT OPERATIONS & MAI,PAYMENTS TO TRANSPORT OPERATORS,24/01/2019,000008272586287,293.20,GWR CORP WEBBTSECOM
OXFORDSHIRE CC,"CHILDRENS, YOUNG PEOPLE AND FAMILIES","	FAM GRP CONFERENCES",VEHICLE FUEL,24/01/2019,000008272586299,7.65,BP MILTON HEIGHTS S/SE
OXFORDSHIRE CC,ENVIRONMENT AND ECONOMY,"	COMMERCIAL MANAGEMEN",PAYMENTS TO TRANSPORT OPERATORS,24/01/2019,000008272586305,212.66,TRAINLINE
OXFORDSHIRE CC,"CHILDRENS, YOUNG PEOPLE AND FAMILIES","	40 THE MOORS",CLOTHING AND UNIFORMS,24/01/2019,000008272586311,86.30,MILITARY1ST
OXFORDSHIRE CC,"CHILDRENS, YOUNG PEOPLE AND FAMILIES","	40 THE MOORS",CATERING PROVISIONS,24/01/2019,000008272586315,174.79,ASDA GROCERIES ONLINE
OXFORDSHIRE CC,"CHILDRENS, YOUNG PEOPLE AND FAMILIES","	40 THE MOORS",CATERING PROVISIONS,24/01/2019,000008272586317,-1.00,ASDA GROCERIES ONLINE
OXFORDSHIRE CC,CORPORATE CORE,,"SUPPLIES, STATIONERY AND MATERIALS",24/01/2019,000008272586329,186.11,LYRECO UK LTD
OXFORDSHIRE CC,CORPORATE CORE,,"SUPPLIES, STATIONERY AND MATERIALS",24/01/2019,000008272586335,25.66,LYRECO UK LTD
OXFORDSHIRE CC,"CHILDRENS, YOUNG PEOPLE AND FAMILIES",THAME E&A HOME,MATERIALS,24/01/2019,000008272585415,10.00,WH SMITH TRAVEL
OXFORDSHIRE CC,"CHILDRENS, YOUNG PEOPLE AND FAMILIES",THAME E&A HOME,MATERIALS,24/01/2019,000008272585417,-10.00,WH SMITH TRAVEL
OXFORDSHIRE CC,"CHILDRENS, YOUNG PEOPLE AND FAMILIES","	LEAVING CARE CITY 1",CATERING PROVISIONS,24/01/2019,000008272585985,7.65,SAINSBURYS SACAT 0631
OXFORDSHIRE CC,CORPORATE CORE,,"SUPPLIES, STATIONERY AND MATERIALS",24/01/2019,000008272586341,105.43,LYRECO UK LTD
OXFORDSHIRE CC,"CHILDRENS, YOUNG PEOPLE AND FAMILIES",THAME E&A HOME,CATERING,24/01/2019,000008272586343,9.75,PRET A MANGER
OXFORDSHIRE CC,"CHILDRENS, YOUNG PEOPLE AND FAMILIES",THAME E&A HOME,CATERING,24/01/2019,000008272586347,7.25,PRET A MANGER
OXFORDSHIRE CC,"CHILDRENS, YOUNG PEOPLE AND FAMILIES","	LOOKED AFTER CITY 1",OTHER EXPENSES,24/01/2019,000008272586353,25.05,WILKO RETAIL LIMIT
OXFORDSHIRE CC,CORPORATE CORE,CENTRAL BUYING TEAM,VEHICLE FUEL,24/01/2019,000008272586357,25.02,TESCO PFS 3700
OXFORDSHIRE CC,ENVIRONMENT AND ECONOMY,"	FLEET OPERATIONS",VEHICLE FUEL,24/01/2019,000008272586023,649.28,ALLSTAR BUSINESS SOLUT
OXFORDSHIRE CC,ENVIRONMENT AND ECONOMY,"	FLEET OPERATIONS",TRAINING RELATED EXPENDITURE,24/01/2019,000008272586029,456.55,COMMUNITY TRANSPORT AS
OXFORDSHIRE CC,ENVIRONMENT AND ECONOMY,AREA OPERATIONS SOUTH STAFF,HARDWARE AND CROCKERY,24/01/2019,000008272585705,36.99,SCREWFIX DIRECT
OXFORDSHIRE CC,"CHILDRENS, YOUNG PEOPLE AND FAMILIES","	LOOKED AFTER CITY 1",OTHER TRANSPORT ARRANGEMENTS,24/01/2019,000008272585709,5.00,OCC ON-STREET PARKING
OXFORDSHIRE CC,ENTERPRISEVC,OTFC TEAM,FURNITURE,24/01/2019,000008272585715,3.40,DUNELM LTD
OXFORDSHIRE CC,SOCIAL AND COMMUNITY SERVICES,WITNEY MOVE ON HOME,CATERING PROVISIONS,24/01/2019,000008272585727,17.09,SAINSBURYS 0632
OXFORDSHIRE CC,"CHILDRENS, YOUNG PEOPLE AND FAMILIES",THAME E&A HOME,CATERING PROVISIONS,24/01/2019,000008272585731,8.15,OXFORD W H SMITH
OXFORDSHIRE CC,"CHILDRENS, YOUNG PEOPLE AND FAMILIES","	FAMILY SUPPORT CITY3",HIRE OF ACCOMMODATION AND FACILITIES,24/01/2019,000008272586063,13.50,VIABLES COMMUNITY
OXFORDSHIRE CC,ENVIRONMENT AND ECONOMY,HARD FM,HARDWARE AND CROCKERY,24/01/2019,000008272585577,40.99,OXON FASTENING SYSTEMS
OXFORDSHIRE CC,ENVIRONMENT AND ECONOMY,HARD FM,MATERIALS,24/01/2019,000008272585585,100.98,TLC SOUTHERN LTD
OXFORDSHIRE CC,"CHILDRENS, YOUNG PEOPLE AND FAMILIES",THAME E&A HOME,CATERING PROVISIONS,24/01/2019,000008272585589,21.30,SAINSBURYS SACAT 2096
OXFORDSHIRE CC,"CHILDRENS, YOUNG PEOPLE AND FAMILIES",EET SERVICE,MATERIALS,24/01/2019,000008272585937,4.99,WH SMITH
OXFORDSHIRE CC,"CHILDRENS, YOUNG PEOPLE AND FAMILIES","	LEAVING CARE CITY 2",NON-STAFF SUBSISTENCE AND EXPENSES,24/01/2019,000008272585943,18.18,SAINSBURYS 2067
OXFORDSHIRE CC,"CHILDRENS, YOUNG PEOPLE AND FAMILIES","	LEAVING CARE CITY 2",CATERING,24/01/2019,000008272585947,3.75,STARBUCKS COFFEE
OXFORDSHIRE CC,"CHILDRENS, YOUNG PEOPLE AND FAMILIES",THAME E&A HOME,MATERIALS,24/01/2019,000008272585593,14.84,ROBERT DYAS HOLDNG LTD
OXFORDSHIRE CC,ENVIRONMENT AND ECONOMY,HARD FM,HARDWARE AND CROCKERY,24/01/2019,000008272585595,17.00,WICKES
OXFORDSHIRE CC,"CHILDRENS, YOUNG PEOPLE AND FAMILIES",THAME E&A HOME,CATERING PROVISIONS,24/01/2019,000008272585611,9.80,COSTA THAME
OXFORDSHIRE CC,"CHILDRENS, YOUNG PEOPLE AND FAMILIES","	RIVERSIDE CENTRE",CATERING PROVISIONS,24/01/2019,000008272585643,14.07,CO-OPERATIVE FOOD
OXFORDSHIRE CC,CORPORATE CORE,"	CORPORATE FINANCE",PAYMENTS TO TRANSPORT OPERATORS,24/01/2019,000008272585969,65.90,GWR CORP WEBBTSECOM
OXFORDSHIRE CC,SOCIAL AND COMMUNITY SERVICES,"	LEADERSHIP TEAM",PAYMENTS TO TRANSPORT OPERATORS,24/01/2019,000008272586245,73.30,GWR CORP WEBBTSECOM
OXFORDSHIRE CC,"CHILDRENS, YOUNG PEOPLE AND FAMILIES",UASC POST 18,CATERING PROVISIONS,24/01/2019,000008272586251,75.02,T K MAXX
OXFORDSHIRE CC,"CHILDRENS, YOUNG PEOPLE AND FAMILIES","	MUSIC UNALLOCABLE","BOOKS, DVDS AND CDS",24/01/2019,000008272586255,60.72,AMZN MKTP UK MB8RO5KD4
OXFORDSHIRE CC,"CHILDRENS, YOUNG PEOPLE AND FAMILIES","	MUSIC UNALLOCABLE","BOOKS, DVDS AND CDS",24/01/2019,000008272586257,2.45,AMZN MKTP UK MB84P2KQ4
OXFORDSHIRE CC,"CHILDRENS, YOUNG PEOPLE AND FAMILIES","	MUSIC UNALLOCABLE",IT SOFTWARE,24/01/2019,000008272586261,.79,ITUNES.COM/BILL
OXFORDSHIRE CC,SOCIAL AND COMMUNITY SERVICES,ABINGDON LIBRARY,"NEWSPAPERS, PERIODICALS AND PUBLICATIONS",24/01/2019,000008272586265,12.00,ER GOFF
OXFORDSHIRE CC,"CHILDRENS, YOUNG PEOPLE AND FAMILIES",FAMILY SUPPORT 2,IT SOFTWARE,24/01/2019,000008272586269,8.40,SP   CHARFLEET BOOKS
OXFORDSHIRE CC,"CHILDRENS, YOUNG PEOPLE AND FAMILIES","	LEAVING CARE SOUTH",OTHER TRANSPORT ARRANGEMENTS,24/01/2019,000008272586283,1.60,NCP PARK PASS
OXFORDSHIRE CC,SOCIAL AND COMMUNITY SERVICES,CSS - DIDCOT,CATERING PROVISIONS,24/01/2019,000008272585365,9.00,MILK&MORE
OXFORDSHIRE CC,"CHILDRENS, YOUNG PEOPLE AND FAMILIES",KINGFISHER,MATERIALS,24/01/2019,000008272585371,22.17,WH SMITH
OXFORDSHIRE CC,"CHILDRENS, YOUNG PEOPLE AND FAMILIES",CSS WALLINGFORD,MATERIALS,24/01/2019,000008272585387,7.98,CHAMPION
OXFORDSHIRE CC,"CHILDRENS, YOUNG PEOPLE AND FAMILIES","	FAMILY SUPPORT S'TH2",CHILDCARE MANAGEMENT FEES,24/01/2019,000008272585393,500.00,MONKEY PUZZLE IRTHLING
OXFORDSHIRE CC,"CHILDRENS, YOUNG PEOPLE AND FAMILIES","	FAMILY SUPPORT S'TH2",CHILDCARE MANAGEMENT FEES,24/01/2019,000008272585399,219.04,MONKEY PUZZLE IRTHLING
OXFORDSHIRE CC,SOCIAL AND COMMUNITY SERVICES,LOOKED AFTER SOUTH,VEHICLE FUEL,24/01/2019,000008272585403,33.33,SHELL BRACKNELL
OXFORDSHIRE CC,"CHILDRENS, YOUNG PEOPLE AND FAMILIES","	SENSS TRAINING",EDUCATIONAL AND VOCATIONAL TRAINING ,23/01/2019,000008267880777,20.00,PAYPAL  OXPIP
OXFORDSHIRE CC,ENVIRONMENT AND ECONOMY,"	BRIDGES GENERAL",HARDWARE AND CROCKERY,23/01/2019,000008267880795,23.90,HOMEBASE LTD
OXFORDSHIRE CC,"CHILDRENS, YOUNG PEOPLE AND FAMILIES","	MALTFIELD HOUSE",OTHER EXPENSES,23/01/2019,000008267880843,798.19,AIRBNB   HMEK2Z8W4A
OXFORDSHIRE CC,"CHILDRENS, YOUNG PEOPLE AND FAMILIES",CNTL EARLY HELP-RHIL,CATERING PROVISIONS,23/01/2019,000008267880869,3.25,TESCO STORE 3377
OXFORDSHIRE CC,CORPORATE CORE,"	LEGAL SERVICES",STAFF SUBSISTENCE,23/01/2019,000008267880873,55.90,GWR CORP WEBBTSECOM
OXFORDSHIRE CC,CORPORATE CORE,"	LEGAL SERVICES",STAFF SUBSISTENCE,23/01/2019,000008267880877,51.70,GWR CORP WEBBTSECOM
OXFORDSHIRE CC,"CHILDRENS, YOUNG PEOPLE AND FAMILIES","	LEAVING CARE NORTH",OTHER EXPENSES,23/01/2019,000008267880889,187.75,TESCO STORE 2064
OXFORDSHIRE CC,"CHILDRENS, YOUNG PEOPLE AND FAMILIES","	LEAVING CARE NORTH",OTHER EXPENSES,23/01/2019,000008267880893,10.00,TESCO STORE 2064
OXFORDSHIRE CC,"CHILDRENS, YOUNG PEOPLE AND FAMILIES","	LEAVING CARE NORTH",CATERING PROVISIONS,23/01/2019,000008267880897,3.10,TESCO STORE 2064
OXFORDSHIRE CC,"CHILDRENS, YOUNG PEOPLE AND FAMILIES","	LEAVING CARE NORTH",OTHER EXPENSES,23/01/2019,000008267880901,57.00,ARGOS LTD
OXFORDSHIRE CC,CORPORATE CORE,HISTORY SERVICE,HIRED AND CONTRACTED SERVICES,23/01/2019,000008267880921,227.57,WWW.PRESERVATIONEQUIPM
OXFORDSHIRE CC,ENTERPRISEVC,,CAR LEASING - PRIVATE RENTALS,23/01/2019,000008267881323,69.55,ENTERPRISE RENT-A-CAR
OXFORDSHIRE CC,SOCIAL AND COMMUNITY SERVICES,CSS - OXFORD,CATERING PROVISIONS,23/01/2019,000008267880603,19.03,ALDI STORES 775-142
OXFORDSHIRE CC,"CHILDRENS, YOUNG PEOPLE AND FAMILIES",THAME E&A HOME,CATERING,23/01/2019,000008267880615,9.32,COSTA TEMPLAR SQUARE O
OXFORDSHIRE CC,SOCIAL AND COMMUNITY SERVICES,CSS - OXFORD,CATERING PROVISIONS,23/01/2019,000008267880621,4.20,ALDI STORES 775-142
OXFORDSHIRE CC,SOCIAL AND COMMUNITY SERVICES,CSS - OXFORD,MATERIALS,23/01/2019,000008267880623,18.12,ALDI STORES 775-142
OXFORDSHIRE CC,SOCIAL AND COMMUNITY SERVICES,DIDCOT MOVE-ON HOME,CATERING PROVISIONS,23/01/2019,000008267880627,23.25,SAINSBURYS SACAT 2067
OXFORDSHIRE CC,ENTERPRISEVC,,CAR LEASING - PRIVATE RENTALS,23/01/2019,000008267881333,26.38,ENTERPRISE RENT-A-CAR
OXFORDSHIRE CC,ENTERPRISEVC,,CAR LEASING - PRIVATE RENTALS,23/01/2019,000008267881339,42.96,ENTERPRISE RENT-A-CAR
OXFORDSHIRE CC,ENTERPRISEVC,,CAR LEASING - PRIVATE RENTALS,23/01/2019,000008267881341,147.42,ENTERPRISE RENT-A-CAR
OXFORDSHIRE CC,ENTERPRISEVC,,CAR LEASING - PRIVATE RENTALS,23/01/2019,000008267881345,42.96,ENTERPRISE RENT-A-CAR
OXFORDSHIRE CC,ENTERPRISEVC,,CAR LEASING - PRIVATE RENTALS,23/01/2019,000008267881347,42.96,ENTERPRISE RENT-A-CAR
OXFORDSHIRE CC,"CHILDRENS, YOUNG PEOPLE AND FAMILIES","	LEAVING CARE NORTH",PAYMENTS TO TRANSPORT OPERATORS,23/01/2019,000008267881351,423.97,FLYBEBKBE BKBE0K
OXFORDSHIRE CC,"CHILDRENS, YOUNG PEOPLE AND FAMILIES","	LOOKED AFTER SOUTH",OTHER TRANSPORT ARRANGEMENTS,23/01/2019,000008267881357,4.00,WESTGATE OXFORD CAR PA
OXFORDSHIRE CC,"CHILDRENS, YOUNG PEOPLE AND FAMILIES","	LOOKED AFTER SOUTH",CLOTHING AND UNIFORMS,23/01/2019,000008267881363,51.96,NEW LOOK
OXFORDSHIRE CC,"CHILDRENS, YOUNG PEOPLE AND FAMILIES","	LOOKED AFTER SOUTH",CATERING,23/01/2019,000008267881365,6.09,MCDONALDS
OXFORDSHIRE CC,"CHILDRENS, YOUNG PEOPLE AND FAMILIES",FAMILY SUPPORT 2,CATERING PROVISIONS,23/01/2019,000008267881369,5.57,TESCO STORE 2990
OXFORDSHIRE CC,"CHILDRENS, YOUNG PEOPLE AND FAMILIES",NORTH FSS- BANBURY,PAYMENT TO GOVERNMENT DEPARTMENTS,23/01/2019,000008267880643,-23.40,GRO HM PASSPORT OFFICE
OXFORDSHIRE CC,"CHILDRENS, YOUNG PEOPLE AND FAMILIES",NTH EARLY HELP-BCSTR,HARDWARE AND CROCKERY,23/01/2019,000008267880651,6.78,WICKES
OXFORDSHIRE CC,ENTERPRISEVC,OPERATIONAL COSTS,"BOOKS, DVDS AND CDS",23/01/2019,000008267880655,18.98,AMZN MKTP UK MB5Q162Q4
OXFORDSHIRE CC,ENTERPRISEVC,OPERATIONAL COSTS,CATERING PROVISIONS,23/01/2019,000008267880659,8.00,SAINSBURYS SACAT 0730
OXFORDSHIRE CC,"CHILDRENS, YOUNG PEOPLE AND FAMILIES","	SM QUALITY ASSURANCE",FURNITURE,23/01/2019,000008267880667,191.40,MACOI  LIMITED
OXFORDSHIRE CC,"CHILDRENS, YOUNG PEOPLE AND FAMILIES","	LEAVING CARE CITY 1",OTHER TRANSPORT ARRANGEMENTS,23/01/2019,000008267881391,4.00,WORCESTER STREET CAR P
OXFORDSHIRE CC,"CHILDRENS, YOUNG PEOPLE AND FAMILIES","	RIVERSIDE CENTRE",CATERING PROVISIONS,23/01/2019,000008267881403,7.95,TESCO STORES 4377
OXFORDSHIRE CC,"CHILDRENS, YOUNG PEOPLE AND FAMILIES",EYNSHAM,CATERING,23/01/2019,000008267881417,87.00,TESCO STORES 2008
OXFORDSHIRE CC,"CHILDRENS, YOUNG PEOPLE AND FAMILIES","	FAMILY SUPPORT CITY3",OTHER TRANSPORT ARRANGEMENTS,23/01/2019,000008267880395,4.00,WESTGATE OXFORD CAR PA
OXFORDSHIRE CC,SOCIAL AND COMMUNITY SERVICES,LOOKED AFTER NORTH,PAYMENTS TO TRANSPORT OPERATORS,23/01/2019,000008267880403,76.90,BICESTER VIL SSTP
OXFORDSHIRE CC,SOCIAL AND COMMUNITY SERVICES,LOOKED AFTER NORTH,OTHER TRANSPORT ARRANGEMENTS,23/01/2019,000008267880407,1.50,TFL TRAVEL CH
OXFORDSHIRE CC,"CHILDRENS, YOUNG PEOPLE AND FAMILIES","	LOOKED AFTER SOUTH",OTHER TRANSPORT ARRANGEMENTS,23/01/2019,000008267880413,85.00,STAGECOACH SERVICE
OXFORDSHIRE CC,"CHILDRENS, YOUNG PEOPLE AND FAMILIES","	LOOKED AFTER SOUTH",OTHER TRANSPORT ARRANGEMENTS,23/01/2019,000008267880419,85.00,STAGECOACH SERVICE
OXFORDSHIRE CC,"CHILDRENS, YOUNG PEOPLE AND FAMILIES","	LOOKED AFTER SOUTH",PAYMENT TO GOVERNMENT DEPARTMENTS,23/01/2019,000008267880423,23.40,GRO HM PASSPORT OFFICE
OXFORDSHIRE CC,ENVIRONMENT AND ECONOMY,"	NAT TRAILS GENERAL",OTHER TRANSPORT ARRANGEMENTS,23/01/2019,000008267880459,2.30,APCOA CONNECT - FGW
OXFORDSHIRE CC,ENVIRONMENT AND ECONOMY,"	NAT TRAILS GENERAL",OTHER TRANSPORT ARRANGEMENTS,23/01/2019,000008267880453,2.30,APCOA CONNECT - FGW
OXFORDSHIRE CC,"CHILDRENS, YOUNG PEOPLE AND FAMILIES",VULNERABLE LEARNERS,MATERIALS,23/01/2019,000008267881169,62.39,THE CONSORTIUM/WMS
OXFORDSHIRE CC,"CHILDRENS, YOUNG PEOPLE AND FAMILIES","	MUSIC UNALLOCABLE",MATERIALS,23/01/2019,000008267881211,156.00,ANDERTONS MUSIC
OXFORDSHIRE CC,"CHILDRENS, YOUNG PEOPLE AND FAMILIES","	LEAVING CARE CITY 1",MATERIALS,23/01/2019,000008267881191,75.00,J D SPORTS
OXFORDSHIRE CC,"CHILDRENS, YOUNG PEOPLE AND FAMILIES","	MUSIC UNALLOCABLE",MATERIALS,23/01/2019,000008267881201,11.97,WWW.GEAR4MUSIC.COM
OXFORDSHIRE CC,"CHILDRENS, YOUNG PEOPLE AND FAMILIES","	MUSIC UNALLOCABLE",HARDWARE AND CROCKERY,23/01/2019,000008267881205,27.15,SCREWFIX DIRECT
OXFORDSHIRE CC,"CHILDRENS, YOUNG PEOPLE AND FAMILIES","	MUSIC UNALLOCABLE",MATERIALS,23/01/2019,000008267881209,9.94,ANDERTONS MUSIC
OXFORDSHIRE CC,"CHILDRENS, YOUNG PEOPLE AND FAMILIES",WITNEY,OTHER TRANSPORT ARRANGEMENTS,23/01/2019,000008267880473,5.20,STGCOACH/CTYLINK
OXFORDSHIRE CC,"CHILDRENS, YOUNG PEOPLE AND FAMILIES",WITNEY,CATERING PROVISIONS,23/01/2019,000008267880479,10.38,ASDA STORES 4920
OXFORDSHIRE CC,"CHILDRENS, YOUNG PEOPLE AND FAMILIES",WITNEY,CATERING PROVISIONS,23/01/2019,000008267880485,6.34,ASDA STORES 4920
OXFORDSHIRE CC,"CHILDRENS, YOUNG PEOPLE AND FAMILIES",WITNEY,CATERING PROVISIONS,23/01/2019,000008267880489,3.55,ASDA STORES 4920
OXFORDSHIRE CC,"CHILDRENS, YOUNG PEOPLE AND FAMILIES","	LOOKED AFTER CITY 1",AFTER SCHOOL ACTIVITIES,23/01/2019,000008267880495,29.99,SPORTSDIRECT 436
OXFORDSHIRE CC,"CHILDRENS, YOUNG PEOPLE AND FAMILIES","	LEAVING CARE CITY 1",HIRE OF ACCOMMODATION AND FACILITIES,23/01/2019,000008267880501,138.00,TRAVELODGE
OXFORDSHIRE CC,"CHILDRENS, YOUNG PEOPLE AND FAMILIES","	LEAVING CARE CITY 1",HIRE OF ACCOMMODATION AND FACILITIES,23/01/2019,000008267880501,10.50,TRAVELODGE
OXFORDSHIRE CC,"CHILDRENS, YOUNG PEOPLE AND FAMILIES",CNTL ERLY HELP-BBLEY,POSTAGE AND DELIVERY,23/01/2019,000008267881215,3.95,POST OFFICE COUNTER
OXFORDSHIRE CC,ENVIRONMENT AND ECONOMY,"	KNIGHTS COURT",CATERING PROVISIONS,23/01/2019,000008267881229,24.53,AMZN MKTP UK MB63072K4
OXFORDSHIRE CC,ENVIRONMENT AND ECONOMY,"	KNIGHTS COURT",CATERING PROVISIONS,23/01/2019,000008267881233,11.98,B&M RETAIL LTD
OXFORDSHIRE CC,CORPORATE CORE,ICT OPERATIONS & MAI,PAYMENTS TO TRANSPORT OPERATORS,23/01/2019,000008267881255,73.30,GWR CORP WEBBTSECOM
OXFORDSHIRE CC,"CHILDRENS, YOUNG PEOPLE AND FAMILIES","	FAM SUPP CITY 1",REGISTRATION AND INSPECTION FEES,23/01/2019,000008267881267,16.00,OCC REGISTRARS (M)
OXFORDSHIRE CC,SOCIAL AND COMMUNITY SERVICES,CSS - OXFORD,MATERIALS,23/01/2019,000008267880523,15.49,AMZN MKTP UK MB5HW72Y4
OXFORDSHIRE CC,ENVIRONMENT AND ECONOMY,HARD FM,HARDWARE AND CROCKERY,23/01/2019,000008267880589,12.00,WICKES
OXFORDSHIRE CC,SOCIAL AND COMMUNITY SERVICES,CSS - OXFORD,MATERIALS,23/01/2019,000008267880529,19.98,AMZN MKTP UK MB6I95K24
OXFORDSHIRE CC,SOCIAL AND COMMUNITY SERVICES,CSS - OXFORD,EQUIPMENT,23/01/2019,000008267880545,263.91,WWW.ARGOS.CO.UK
OXFORDSHIRE CC,ENVIRONMENT AND ECONOMY,HARD FM,EQUIPMENT,23/01/2019,000008267880549,279.01,ZIP HEATERS
OXFORDSHIRE CC,ENVIRONMENT AND ECONOMY,HARD FM,HARDWARE AND CROCKERY,23/01/2019,000008267880563,19.99,HOMEBASE
OXFORDSHIRE CC,ENVIRONMENT AND ECONOMY,HARD FM,HARDWARE AND CROCKERY,23/01/2019,000008267880565,192.51,TRAVIS PERKINS
OXFORDSHIRE CC,ENVIRONMENT AND ECONOMY,HARD FM,HARDWARE AND CROCKERY,23/01/2019,000008267880569,44.68,WWW.FIRESEALSDIRECT.CO
OXFORDSHIRE CC,ENVIRONMENT AND ECONOMY,HARD FM,HARDWARE AND CROCKERY,23/01/2019,000008267880577,103.91,CITY PLUMBING
OXFORDSHIRE CC,ENVIRONMENT AND ECONOMY,HARD FM,HARDWARE AND CROCKERY,23/01/2019,000008267880581,13.66,CITY PLUMBING
OXFORDSHIRE CC,ENVIRONMENT AND ECONOMY,HARD FM,GENERAL MAINTENANCE,23/01/2019,000008267880587,118.49, WOLSELEY UK
OXFORDSHIRE CC,"CHILDRENS, YOUNG PEOPLE AND FAMILIES",WITNEY,CATERING PROVISIONS,23/01/2019,000008267881283,10.37,SAINSBURYS 0632
OXFORDSHIRE CC,"CHILDRENS, YOUNG PEOPLE AND FAMILIES","	LOOKED AFTER SOUTH",VEHICLE FUEL,23/01/2019,000008267881295,75.06,SHOW MEADOW SF CONNECT
OXFORDSHIRE CC,"CHILDRENS, YOUNG PEOPLE AND FAMILIES",THAME E&A HOME,ENTERTAINMENT EXPENSES,23/01/2019,000008267881299,21.00,TLORD WYCOMBE WANDERER
OXFORDSHIRE CC,"CHILDRENS, YOUNG PEOPLE AND FAMILIES",FAMILY SUPPORT 2,PAYMENTS TO TRANSPORT OPERATORS,23/01/2019,000008267881311,79.70,GWR CORP WEBBTSECOM
OXFORDSHIRE CC,ENTERPRISEVC,,CAR LEASING - PRIVATE RENTALS,23/01/2019,000008267881315,411.60,ENTERPRISE RENT-A-CAR
OXFORDSHIRE CC,ENTERPRISEVC,,CAR LEASING - PRIVATE RENTALS,23/01/2019,000008267881325,43.18,ENTERPRISE RENT-A-CAR
OXFORDSHIRE CC,ENTERPRISEVC,,CAR LEASING - PRIVATE RENTALS,23/01/2019,000008267881319,83.83,ENTERPRISE RENT-A-CAR
OXFORDSHIRE CC,SOCIAL AND COMMUNITY SERVICES,"	MTFC",CATERING PROVISIONS,23/01/2019,000008267880953,6.67,TESCO STORES 2994
OXFORDSHIRE CC,CORPORATE CORE,"	CORPORATE FINANCE",PAYMENTS TO TRANSPORT OPERATORS,23/01/2019,000008267880965,73.30,GWR CORP WEBBTSECOM
OXFORDSHIRE CC,CORPORATE CORE,"	CORPORATE FINANCE",PAYMENTS TO TRANSPORT OPERATORS,23/01/2019,000008267880969,73.30,GWR CORP WEBBTSECOM
OXFORDSHIRE CC,CORPORATE CORE,"	CORPORATE FINANCE",PAYMENTS TO TRANSPORT OPERATORS,23/01/2019,000008267880973,70.50,GWR CORP WEBBTSECOM
OXFORDSHIRE CC,SOCIAL AND COMMUNITY SERVICES,"	MUSEUMS COLLECTIONS",OTHER SERVICES,23/01/2019,000008267880981,52.65,TIMPSON LTD
OXFORDSHIRE CC,"CHILDRENS, YOUNG PEOPLE AND FAMILIES","	LEAVING CARE CITY 1",CATERING PROVISIONS,23/01/2019,000008267881001,6.69,SAINSBURYS SACAT 0631
OXFORDSHIRE CC,"CHILDRENS, YOUNG PEOPLE AND FAMILIES","	LEAVING CARE CITY 1",TELEPHONE - EQUIPMENT,23/01/2019,000008267881009,53.00,VODAFONE
OXFORDSHIRE CC,"CHILDRENS, YOUNG PEOPLE AND FAMILIES","	LEAVING CARE NORTH",MATERIALS,23/01/2019,000008267881013,103.94,WWW.ARGOS.CO.UK
OXFORDSHIRE CC,SOCIAL AND COMMUNITY SERVICES,CSS WANTAGE,MATERIALS,23/01/2019,000008267881031,9.00,SAINSBURYS SACAT 2244
OXFORDSHIRE CC,SOCIAL AND COMMUNITY SERVICES,CSS WANTAGE,MATERIALS,23/01/2019,000008267881033,3.99,HOME BARGAINS
OXFORDSHIRE CC,SOCIAL AND COMMUNITY SERVICES,CSS BICESTER,CATERING PROVISIONS,23/01/2019,000008267880281,25.73,ALDI 49 775
OXFORDSHIRE CC,"CHILDRENS, YOUNG PEOPLE AND FAMILIES",KINGFISHER,MATERIALS,23/01/2019,000008267880295,8.07,CARD FACTORY
OXFORDSHIRE CC,"CHILDRENS, YOUNG PEOPLE AND FAMILIES","	FAMILY SUPPORT S'TH2",CLIENT LODGINGS AND ACCOMMODATION,23/01/2019,000008267880315,49.00,ROMANY RYE
OXFORDSHIRE CC,"CHILDRENS, YOUNG PEOPLE AND FAMILIES","	FAM SUPP CITY 1",OTHER TRANSPORT ARRANGEMENTS,23/01/2019,000008267881105,148.00,OXFORD BUS CO
OXFORDSHIRE CC,"CHILDRENS, YOUNG PEOPLE AND FAMILIES","	PARENT PARTNERSHIP",CATERING PROVISIONS,23/01/2019,000008267881091,7.70,M&S SIMPLY FOOD - SSP
OXFORDSHIRE CC,"CHILDRENS, YOUNG PEOPLE AND FAMILIES",THAME E&A HOME,DRUGS AND MEDICAL SUPPLIES,23/01/2019,000008267880331,10.01,BOOTS THE CHEMIST
OXFORDSHIRE CC,"CHILDRENS, YOUNG PEOPLE AND FAMILIES",THAME E&A HOME,CATERING PROVISIONS,23/01/2019,000008267880337,5.35,MARKS&SPENCER PLC SF
OXFORDSHIRE CC,"CHILDRENS, YOUNG PEOPLE AND FAMILIES",THAME E&A HOME,MATERIALS,23/01/2019,000008267880341,10.34,M & S SIMPLY FOOD
OXFORDSHIRE CC,"CHILDRENS, YOUNG PEOPLE AND FAMILIES",THAME E&A HOME,MATERIALS,23/01/2019,000008267880345,9.60,M & S SIMPLY FOOD
OXFORDSHIRE CC,"CHILDRENS, YOUNG PEOPLE AND FAMILIES",THAME E&A HOME,MATERIALS,23/01/2019,000008267880349,4.60,M & S SIMPLY FOOD
OXFORDSHIRE CC,"CHILDRENS, YOUNG PEOPLE AND FAMILIES",THAME E&A HOME,MATERIALS,23/01/2019,000008267880355,7.08,WH SMITH TRAVEL
OXFORDSHIRE CC,"CHILDRENS, YOUNG PEOPLE AND FAMILIES","	MALTFIELD HOUSE",OTHER EXPENSES,23/01/2019,000008267881125,15.71,CO-OPERATIVE FOOD
OXFORDSHIRE CC,"CHILDRENS, YOUNG PEOPLE AND FAMILIES",DIDCOT MOVE-ON HOME,CATERING PROVISIONS,23/01/2019,000008267881141,4.55,SAINSBURYS SACAT 2067
OXFORDSHIRE CC,"CHILDRENS, YOUNG PEOPLE AND FAMILIES",VULNERABLE LEARNERS,"BOOKS, DVDS AND CDS",23/01/2019,000008267881157,193.12,AMAZON.CO.UK MB8DM1KP4
OXFORDSHIRE CC,"CHILDRENS, YOUNG PEOPLE AND FAMILIES",VULNERABLE LEARNERS,"BOOKS, DVDS AND CDS",23/01/2019,000008267881163,66.72,AMZN MKTP UK MB15Q3KO4
OXFORDSHIRE CC,SOCIAL AND COMMUNITY SERVICES,DIDCOT MOVE-ON HOME,CATERING,22/01/2019,000008264341191,7.95,COSTA COFFEE 43039930
OXFORDSHIRE CC,"CHILDRENS, YOUNG PEOPLE AND FAMILIES","	LEAVING CARE CITY 1",PAYMENT TO GOVERNMENT DEPARTMENTS,22/01/2019,000008264341187,34.00,DVLA DRIVER ONLINE
OXFORDSHIRE CC,"CHILDRENS, YOUNG PEOPLE AND FAMILIES","	RIVERSIDE CENTRE",VEHICLE FUEL,22/01/2019,000008264341197,80.31,TESCO PFS 4267
OXFORDSHIRE CC,"CHILDRENS, YOUNG PEOPLE AND FAMILIES",THAME E&A HOME,CATERING PROVISIONS,22/01/2019,000008264341203,3.35,CO-OPERATIVE FOOD
OXFORDSHIRE CC,"CHILDRENS, YOUNG PEOPLE AND FAMILIES",NORTH FSS- BANBURY,PAYMENT TO GOVERNMENT DEPARTMENTS,22/01/2019,000008264341207,52.55,GRO HM PASSPORT OFFICE
OXFORDSHIRE CC,"CHILDRENS, YOUNG PEOPLE AND FAMILIES",LOCALITY & COMMUNITY SUPPORT SERVICE,"SUPPLIES, STATIONERY AND MATERIALS",22/01/2019,000008264341209,25.00,EB  OXFORDSHIRE YOUTH
OXFORDSHIRE CC,"CHILDRENS, YOUNG PEOPLE AND FAMILIES",CNTL EARLY HELP-RHIL,MATERIALS,22/01/2019,000008264341213,69.42,WWW.ARGOS.CO.UK
OXFORDSHIRE CC,"CHILDRENS, YOUNG PEOPLE AND FAMILIES",CNTL EARLY HELP-RHIL,AFTER SCHOOL ACTIVITIES,22/01/2019,000008264341217,28.56,AMFBOWLING.CO.UK
OXFORDSHIRE CC,"CHILDRENS, YOUNG PEOPLE AND FAMILIES",NTH FAM SUPRT-BCSTR,PAYMENTS TO TRANSPORT OPERATORS,22/01/2019,000008264341223,9.60,GWR CORP WEBBTSECOM
OXFORDSHIRE CC,SOCIAL AND COMMUNITY SERVICES,CSS WALLINGFORD,CATERING PROVISIONS,22/01/2019,000008264341239,21.90,COMPLETE CARE SHOP
OXFORDSHIRE CC,SOCIAL AND COMMUNITY SERVICES,CSS WALLINGFORD,CATERING PROVISIONS,22/01/2019,000008264341245,9.75,WAITROSE 675
OXFORDSHIRE CC,"CHILDRENS, YOUNG PEOPLE AND FAMILIES",THAME E&A HOME,CATERING PROVISIONS,22/01/2019,000008264341319,12.10,SAINSBURYS SACAT 2096
OXFORDSHIRE CC,"CHILDRENS, YOUNG PEOPLE AND FAMILIES","	SENSS TRAINING",EDUCATIONAL AND VOCATIONAL TRAINING ,22/01/2019,000008264341363,300.00,SP   DOWN SYNDROME EDU
OXFORDSHIRE CC,"CHILDRENS, YOUNG PEOPLE AND FAMILIES","	MUSIC UNALLOCABLE",POSTAGE AND DELIVERY,22/01/2019,000008264341377,6.50,THE POST OFFICE
OXFORDSHIRE CC,"CHILDRENS, YOUNG PEOPLE AND FAMILIES","	MUSIC UNALLOCABLE",PAYMENTS TO TRANSPORT OPERATORS,22/01/2019,000008264341381,84.66,TRAINLINE
OXFORDSHIRE CC,"CHILDRENS, YOUNG PEOPLE AND FAMILIES","	MUSIC UNALLOCABLE",CATERING PROVISIONS,22/01/2019,000008264341387,2.18,TESCO PFS 3968
OXFORDSHIRE CC,CORPORATE CORE,"	CORPORATE FINANCE",STAFF SUBSISTENCE,22/01/2019,000008264341393,38.05,GWR CORP WEBBTSECOM
OXFORDSHIRE CC,ENVIRONMENT AND ECONOMY,"	COUNTY HALL","BOOKS, DVDS AND CDS",22/01/2019,000008264341397,5.99,AMZN MKTP UK MB1B79SA4
OXFORDSHIRE CC,ENVIRONMENT AND ECONOMY,"	COUNTY HALL",GENERAL MAINTENANCE,22/01/2019,000008264341399,130.39,AMZN MKTP UK MB4UW22Z4
OXFORDSHIRE CC,ENVIRONMENT AND ECONOMY,"	BRIDGES GENERAL",HARDWARE AND CROCKERY,22/01/2019,000008264341403,137.94,SCREWFIX DIRECT
OXFORDSHIRE CC,ENVIRONMENT AND ECONOMY,HOLDING CODE FOR REA,FURNITURE,22/01/2019,000008264341055,583.80,WWW.EDUQUIP.CO.UK
OXFORDSHIRE CC,"CHILDRENS, YOUNG PEOPLE AND FAMILIES",WITNEY,CATERING PROVISIONS,22/01/2019,000008264341061,4.02,TESCO STORES
OXFORDSHIRE CC,"CHILDRENS, YOUNG PEOPLE AND FAMILIES","	NCS",IT SOFTWARE,22/01/2019,000008264341065,480.00,TEXTMARKETER
OXFORDSHIRE CC,"CHILDRENS, YOUNG PEOPLE AND FAMILIES","	LOOKED AFTER NORTH",CATERING,22/01/2019,000008264341949,8.70,THE OLD MILL COFFE HOU
OXFORDSHIRE CC,CORPORATE CORE,,"SUPPLIES, STATIONERY AND MATERIALS",22/01/2019,000008264341955,210.05,LYRECO UK LTD
OXFORDSHIRE CC,"CHILDRENS, YOUNG PEOPLE AND FAMILIES","	LEAVING CARE NORTH",OTHER TRANSPORT ARRANGEMENTS,22/01/2019,000008264341967,6.80,BANBURY SSTP
OXFORDSHIRE CC,ENVIRONMENT AND ECONOMY,HARD FM,HARDWARE AND CROCKERY,22/01/2019,000008264341091,119.97,SCREWFIX OXFORD
OXFORDSHIRE CC,ENVIRONMENT AND ECONOMY,HARD FM,GENERAL MAINTENANCE,22/01/2019,000008264341093,330.24, WOLSELEY UK
OXFORDSHIRE CC,ENVIRONMENT AND ECONOMY,HARD FM,GENERAL MAINTENANCE,22/01/2019,000008264341097,286.01, WOLSELEY UK
OXFORDSHIRE CC,ENVIRONMENT AND ECONOMY,HARD FM,GENERAL MAINTENANCE,22/01/2019,000008264341103,7.91, WOLSELEY UK
OXFORDSHIRE CC,ENVIRONMENT AND ECONOMY,HARD FM,GENERAL MAINTENANCE,22/01/2019,000008264341107,4.19, WOLSELEY UK
OXFORDSHIRE CC,ENVIRONMENT AND ECONOMY,HARD FM,OTHER TRANSPORT ARRANGEMENTS,22/01/2019,000008264341119,2.50,ST CLEMENTS CAR PARK
OXFORDSHIRE CC,ENVIRONMENT AND ECONOMY,HARD FM,HARDWARE AND CROCKERY,22/01/2019,000008264341123,182.26,C BREWER & SONS
OXFORDSHIRE CC,ENVIRONMENT AND ECONOMY,HARD FM,HARDWARE AND CROCKERY,22/01/2019,000008264341109,180.60,TRAVIS PERKINS
OXFORDSHIRE CC,ENVIRONMENT AND ECONOMY,HARD FM,HARDWARE AND CROCKERY,22/01/2019,000008264341127,11.86,CITY PLUMBING
OXFORDSHIRE CC,ENVIRONMENT AND ECONOMY,HARD FM,EQUIPMENT,22/01/2019,000008264341131,47.66,UK PLUMBING SUPPLIES L
OXFORDSHIRE CC,ENVIRONMENT AND ECONOMY,HARD FM,HARDWARE AND CROCKERY,22/01/2019,000008264341115,49.14,JEWSON LTD
OXFORDSHIRE CC,"CHILDRENS, YOUNG PEOPLE AND FAMILIES",CNTL EARLY HELP-RHIL,CATERING PROVISIONS,22/01/2019,000008264341975,4.97,ALDI STORES 775-142
OXFORDSHIRE CC,"CHILDRENS, YOUNG PEOPLE AND FAMILIES","	DIRECTOR'S OFFICE",PAYMENTS TO TRANSPORT OPERATORS,22/01/2019,000008264341987,155.58,TRAINLINE
OXFORDSHIRE CC,"CHILDRENS, YOUNG PEOPLE AND FAMILIES","	DIRECTOR'S OFFICE",PAYMENTS TO TRANSPORT OPERATORS,22/01/2019,000008264341989,76.11,TRAINLINE
OXFORDSHIRE CC,"CHILDRENS, YOUNG PEOPLE AND FAMILIES","	DIRECTOR'S OFFICE",PAYMENTS TO TRANSPORT OPERATORS,22/01/2019,000008264341993,78.55,TRAINLINE
OXFORDSHIRE CC,"CHILDRENS, YOUNG PEOPLE AND FAMILIES","	DIRECTOR'S OFFICE",PAYMENTS TO TRANSPORT OPERATORS,22/01/2019,000008264341995,78.55,TRAINLINE
OXFORDSHIRE CC,"CHILDRENS, YOUNG PEOPLE AND FAMILIES","	DIRECTOR'S OFFICE",PAYMENTS TO TRANSPORT OPERATORS,22/01/2019,000008264341999,78.55,TRAINLINE
OXFORDSHIRE CC,"CHILDRENS, YOUNG PEOPLE AND FAMILIES","	DIRECTOR'S OFFICE",PAYMENTS TO TRANSPORT OPERATORS,22/01/2019,000008264342001,43.45,TRAINLINE
OXFORDSHIRE CC,"CHILDRENS, YOUNG PEOPLE AND FAMILIES","	DIRECTOR'S OFFICE",OTHER TRANSPORT ARRANGEMENTS,22/01/2019,000008264342005,16.40,CHILTERN RAIL RINGGO
OXFORDSHIRE CC,ENVIRONMENT AND ECONOMY,HARD FM,EQUIPMENT,22/01/2019,000008264341137,28.56,EDMUNDSON ELECTRICAL
OXFORDSHIRE CC,SOCIAL AND COMMUNITY SERVICES,CSS - OXFORD,CATERING PROVISIONS,22/01/2019,000008264341169,13.65,TESCO STORE 2990
OXFORDSHIRE CC,ENVIRONMENT AND ECONOMY,HARD FM,MATERIALS,22/01/2019,000008264341141,18.00,TOOLSTATION LTD
OXFORDSHIRE CC,"CHILDRENS, YOUNG PEOPLE AND FAMILIES",THAME E&A HOME,CATERING PROVISIONS,22/01/2019,000008264341145,4.10,SAINSBURYS 2096
OXFORDSHIRE CC,"CHILDRENS, YOUNG PEOPLE AND FAMILIES","	LOOKED AFTER CITY 2",MATERIALS,22/01/2019,000008264341175,1.00,CARD FACTORY
OXFORDSHIRE CC,"CHILDRENS, YOUNG PEOPLE AND FAMILIES","	LOOKED AFTER CITY 2",CATERING,22/01/2019,000008264341179,2.25,GREGGS
OXFORDSHIRE CC,SOCIAL AND COMMUNITY SERVICES,CSS - OXFORD,MATERIALS,22/01/2019,000008264341183,12.56,ALDI STORES 775-142
OXFORDSHIRE CC,CORPORATE CORE,INCOME TEAM,PAYMENT TO GOVERNMENT DEPARTMENTS,22/01/2019,000008264342033,29.50,OCC REGISTRARS (M)
OXFORDSHIRE CC,"CHILDRENS, YOUNG PEOPLE AND FAMILIES","	40 THE MOORS",DISABILITY AIDS AND EQUIPMENT,22/01/2019,000008264341765,39.00,MORGAN OPTOMETRY
OXFORDSHIRE CC,ENVIRONMENT AND ECONOMY,"	BUSINESS SYST STAFF",MATERIALS,22/01/2019,000008264341769,65.98,ARGOS LTD
OXFORDSHIRE CC,"CHILDRENS, YOUNG PEOPLE AND FAMILIES",DIDCOT MOVE-ON HOME,CATERING PROVISIONS,22/01/2019,000008264341789,43.95,SAINSBURYS 2067
OXFORDSHIRE CC,"CHILDRENS, YOUNG PEOPLE AND FAMILIES",DIDCOT MOVE-ON HOME,CATERING PROVISIONS,22/01/2019,000008264341793,6.10,SAINSBURYS SACAT 2067
OXFORDSHIRE CC,SOCIAL AND COMMUNITY SERVICES,CSS BICESTER,CATERING PROVISIONS,22/01/2019,000008264340949,79.20,SAINSBURYS (2243)
OXFORDSHIRE CC,SOCIAL AND COMMUNITY SERVICES,CSS WITNEY,CATERING PROVISIONS,22/01/2019,000008264340951,212.62,TESCO STORES 2008
OXFORDSHIRE CC,"CHILDRENS, YOUNG PEOPLE AND FAMILIES",0-5 STDS & PROGRESS,"BOOKS, DVDS AND CDS",22/01/2019,000008264341809,14.11,AMAZON.CO.UK MB3NH2SU4
OXFORDSHIRE CC,ENVIRONMENT AND ECONOMY,HENLEY LIBRARY,"NEWSPAPERS, PERIODICALS AND PUBLICATIONS",22/01/2019,000008264341839,39.00,BEST FOODS
OXFORDSHIRE CC,"CHILDRENS, YOUNG PEOPLE AND FAMILIES",CNTL ERLY HELP-BBLEY,CATERING PROVISIONS,22/01/2019,000008264341843,1.50,TESCO STORE 2990
OXFORDSHIRE CC,"CHILDRENS, YOUNG PEOPLE AND FAMILIES","	LOOKED AFTER CITY 1",VEHICLE FUEL,22/01/2019,000008264341847,22.98,SAINSBURYS OPT 0180
OXFORDSHIRE CC,SOCIAL AND COMMUNITY SERVICES,CSS - BANBURY,CATERING PROVISIONS,22/01/2019,000008264341009,100.06,SAINSBURYS TO YOU 0642
OXFORDSHIRE CC,"CHILDRENS, YOUNG PEOPLE AND FAMILIES","	FAMILY SUPPORT CITY3",CATERING,22/01/2019,000008264341013,8.90,CHOZEN NOODLE
OXFORDSHIRE CC,"CHILDRENS, YOUNG PEOPLE AND FAMILIES","	FAMILY SUPPORT CITY3",CATERING,22/01/2019,000008264341017,12.88,EL MEXICANA BEACONSFIE
OXFORDSHIRE CC,"CHILDRENS, YOUNG PEOPLE AND FAMILIES","	FAMILY SUPPORT CITY3",MATERIALS,22/01/2019,000008264341019,4.50,WH SMITH TRAVEL LTD
OXFORDSHIRE CC,"CHILDRENS, YOUNG PEOPLE AND FAMILIES","	RESIDENTIAL STRATEGY",CATERING,22/01/2019,000008264341039,2.65,GREGGS BICESTER
OXFORDSHIRE CC,SOCIAL AND COMMUNITY SERVICES,"	PUBLIC HEALTH GENERA","SUPPLIES, STATIONERY AND MATERIALS",22/01/2019,000008264341867,65.86,EB  YOUTH IN MIND CONF
OXFORDSHIRE CC,SOCIAL AND COMMUNITY SERVICES,"	PUBLIC HEALTH GENERA",HIRE OF ACCOMMODATION AND FACILITIES,22/01/2019,000008264341871,170.00,WWW.MALMAISON.COM
OXFORDSHIRE CC,SOCIAL AND COMMUNITY SERVICES,"	PUBLIC HEALTH GENERA",HIRE OF ACCOMMODATION AND FACILITIES,22/01/2019,000008264341875,20.00,WWW.MALMAISON.COM
OXFORDSHIRE CC,"CHILDRENS, YOUNG PEOPLE AND FAMILIES","	LEAVING CARE SOUTH",CLOTHING AND UNIFORMS,22/01/2019,000008264341879,108.94,WWW.BIGDUDECLOTHING.CO
OXFORDSHIRE CC,"CHILDRENS, YOUNG PEOPLE AND FAMILIES","	LEAVING CARE CITY 2",OTHER TRANSPORT ARRANGEMENTS,22/01/2019,000008264341881,1.60,NCP PARK PASS
OXFORDSHIRE CC,"CHILDRENS, YOUNG PEOPLE AND FAMILIES","	LEAVING CARE CITY 2",OTHER EXPENSES,22/01/2019,000008264341885,4.10,MCDONALDS
OXFORDSHIRE CC,"CHILDRENS, YOUNG PEOPLE AND FAMILIES","	LEAVING CARE CITY 2",CLOTHING AND UNIFORMS,22/01/2019,000008264341889,60.00,J D SPORTS 681
OXFORDSHIRE CC,"CHILDRENS, YOUNG PEOPLE AND FAMILIES","	LEAVING CARE CITY 2",CLOTHING AND UNIFORMS,22/01/2019,000008264341893,30.00,J D SPORTS 681
OXFORDSHIRE CC,"CHILDRENS, YOUNG PEOPLE AND FAMILIES","	LEAVING CARE CITY 2",CLOTHING AND UNIFORMS,22/01/2019,000008264341895,59.99,SPORTSDIRECT 436
OXFORDSHIRE CC,SOCIAL AND COMMUNITY SERVICES,"	SHARED LIVES",CATERING PROVISIONS,22/01/2019,000008264341901,7.72,WAITROSE 211
OXFORDSHIRE CC,"CHILDRENS, YOUNG PEOPLE AND FAMILIES","	RESIDENTIAL STRATEGY",CATERING,22/01/2019,000008264341043,6.60,SUBWAY
OXFORDSHIRE CC,"CHILDRENS, YOUNG PEOPLE AND FAMILIES","	LOOKED AFTER CITY 2",PAYMENTS TO TRANSPORT OPERATORS,22/01/2019,000008264341435,75.70,GWR DIDCOT PKWY TO
OXFORDSHIRE CC,"CHILDRENS, YOUNG PEOPLE AND FAMILIES","	LOOKED AFTER CITY 2",PAYMENTS TO TRANSPORT OPERATORS,22/01/2019,000008264341439,20.90,LNE RAILWAY KGX STN
OXFORDSHIRE CC,"CHILDRENS, YOUNG PEOPLE AND FAMILIES","	LOOKED AFTER CITY 2",OTHER TRANSPORT ARRANGEMENTS,22/01/2019,000008264341441,6.30,APCOA CONNECT - FGW
OXFORDSHIRE CC,"CHILDRENS, YOUNG PEOPLE AND FAMILIES","	LOOKED AFTER CITY 2",OTHER TRANSPORT ARRANGEMENTS,22/01/2019,000008264341433,20.00,WWW.DGCARS.CO.UK
OXFORDSHIRE CC,"CHILDRENS, YOUNG PEOPLE AND FAMILIES","	MALTFIELD HOUSE",OTHER EXPENSES,22/01/2019,000008264341453,6.62,FROSTS PHARMACY LTD
OXFORDSHIRE CC,CORPORATE CORE,"	PERSONNEL",OTHER TRAINING COURSES AND QUALIFICATION,22/01/2019,000008264341483,170.00,WP-ACAS
OXFORDSHIRE CC,CORPORATE CORE,INFORMATION MGT,STAFF SUBSISTENCE,22/01/2019,000008264341503,47.10,GWR CORP WEBBTSECOM
OXFORDSHIRE CC,CORPORATE CORE,"	LEGAL SERVICES",LEGAL COSTS,22/01/2019,000008264341509,10.00,OCC REGISTRARS (M)
OXFORDSHIRE CC,CORPORATE CORE,"	LEGAL SERVICES",LEGAL COSTS,22/01/2019,000008264341511,-3.00,OCC REGISTRARS (M)
OXFORDSHIRE CC,CORPORATE CORE,"	LEGAL SERVICES",LEGAL COSTS,22/01/2019,000008264341515,-7.00,OCC REGISTRARS (M)
OXFORDSHIRE CC,"CHILDRENS, YOUNG PEOPLE AND FAMILIES","	RIVERSIDE CENTRE",CATERING PROVISIONS,22/01/2019,000008264341521,22.50,CO-OPERATIVE FOOD
OXFORDSHIRE CC,"CHILDRENS, YOUNG PEOPLE AND FAMILIES",THAME E&A HOME,CATERING PROVISIONS,22/01/2019,000008264341567,174.55,SAINSBURYS TO YOU 0600
OXFORDSHIRE CC,SOCIAL AND COMMUNITY SERVICES,"	MTFC",CATERING PROVISIONS,22/01/2019,000008264341599,1.60,SAINSBURYS 2244
OXFORDSHIRE CC,CORPORATE CORE,"	CORPORATE FINANCE",PROFESSIONAL SUBSCRIPTIONS,22/01/2019,000008264341605,48.75,WWW.CIPFA.ORG.UK/PFMCO
OXFORDSHIRE CC,SOCIAL AND COMMUNITY SERVICES,"	MUSEUMS COLLECTIONS",OTHER SERVICES,22/01/2019,000008264341609,836.00,TITAN CONTAINERS
OXFORDSHIRE CC,SOCIAL AND COMMUNITY SERVICES,"	MUSEUMS COLLECTIONS",OTHER SERVICES,22/01/2019,000008264341613,"1,000.00",TITAN CONTAINERS
OXFORDSHIRE CC,"CHILDRENS, YOUNG PEOPLE AND FAMILIES","	LEAVING CARE CITY 1",CATERING PROVISIONS,22/01/2019,000008264341633,8.50,SAINSBURYS SACAT 0631
OXFORDSHIRE CC,"CHILDRENS, YOUNG PEOPLE AND FAMILIES","	LEAVING CARE CITY 1",HIRE OF ACCOMMODATION AND FACILITIES,22/01/2019,000008264341637,59.00,TRAVELODGE
OXFORDSHIRE CC,"CHILDRENS, YOUNG PEOPLE AND FAMILIES","	LEAVING CARE CITY 1",HIRE OF ACCOMMODATION AND FACILITIES,22/01/2019,000008264341639,5.25,TRAVELODGE
OXFORDSHIRE CC,"CHILDRENS, YOUNG PEOPLE AND FAMILIES","	MALTFIELD HOUSE",CATERING PROVISIONS,22/01/2019,000008264341647,89.02,SAINSBURYS TO YOU 0600
OXFORDSHIRE CC,ENVIRONMENT AND ECONOMY,"	LEP",STAFF SUBSISTENCE,22/01/2019,000008264341653,473.10,HOTELS.COM155162377251
OXFORDSHIRE CC,ENVIRONMENT AND ECONOMY,"	LEP",STAFF SUBSISTENCE,22/01/2019,000008264341655,72.00,WWW.HXPAYMENTS.COM
OXFORDSHIRE CC,ENVIRONMENT AND ECONOMY,"	LEP",PAYMENTS TO TRANSPORT OPERATORS,22/01/2019,000008264341659,76.11,TRAINLINE
OXFORDSHIRE CC,ENVIRONMENT AND ECONOMY,"	LEP",PAYMENTS TO TRANSPORT OPERATORS,22/01/2019,000008264341661,128.21,EASYJET
OXFORDSHIRE CC,SOCIAL AND COMMUNITY SERVICES,CSS WANTAGE,MATERIALS,22/01/2019,000008264341665,161.50,ACTIVITYTOSHARE
OXFORDSHIRE CC,CORPORATE CORE,"	PERSONNEL",PAYMENTS TO TRANSPORT OPERATORS,22/01/2019,000008264341755,64.30,TRAINLINE
OXFORDSHIRE CC,SOCIAL AND COMMUNITY SERVICES,CSS - BANBURY,CATERING PROVISIONS,22/01/2019,000008264341743,21.55,MARKS&SPENCER PLC
OXFORDSHIRE CC,"CHILDRENS, YOUNG PEOPLE AND FAMILIES","	LOOKED AFTER SOUTH",CATERING,22/01/2019,000008264341747,7.80,MCDONALDS
OXFORDSHIRE CC,CORPORATE CORE,"	PERSONNEL",PAYMENTS TO TRANSPORT OPERATORS,22/01/2019,000008264341753,39.55,TRAINLINE
OXFORDSHIRE CC,SOCIAL AND COMMUNITY SERVICES,CSS - DIDCOT,CATERING PROVISIONS,22/01/2019,000008264340943,162.89,TESCO STORE 2919
OXFORDSHIRE CC,CORPORATE CORE,"	PERSONNEL",PAYMENTS TO TRANSPORT OPERATORS,22/01/2019,000008264341757,32.85,TRAINLINE
OXFORDSHIRE CC,"CHILDRENS, YOUNG PEOPLE AND FAMILIES",BULLINGDON PRISON,DOMESTIC AND CLEANING EQUIPMENT,21/01/2019,000008257343451,42.45,WOLRD OF WATER
OXFORDSHIRE CC,ENVIRONMENT AND ECONOMY,MEMBERS SERVICES,PAYMENTS TO TRANSPORT OPERATORS,21/01/2019,000008257343453,20.00,OYSTER AUTO-TOP UP
OXFORDSHIRE CC,SOCIAL AND COMMUNITY SERVICES,"	PUBLIC HEALTH GENERA",PAYMENTS TO TRANSPORT OPERATORS,21/01/2019,000008257343457,79.30,GWR CORP WEBBTSECOM
OXFORDSHIRE CC,SOCIAL AND COMMUNITY SERVICES,"	PUBLIC HEALTH GENERA",POSTAGE AND DELIVERY,21/01/2019,000008257343459,1.50,ROYAL MAIL CHARGES
OXFORDSHIRE CC,"CHILDRENS, YOUNG PEOPLE AND FAMILIES","	FAMILY SUPPORT S'TH2",PAYMENTS TO TRANSPORT OPERATORS,21/01/2019,000008257343461,47.01,TRAINLINE
OXFORDSHIRE CC,SOCIAL AND COMMUNITY SERVICES,"	SHARED LIVES",MATERIALS,21/01/2019,000008257343463,24.99,SERENATA FLOWERS
OXFORDSHIRE CC,"CHILDRENS, YOUNG PEOPLE AND FAMILIES",WITNEY,CATERING PROVISIONS,21/01/2019,000008257343465,6.00,SAINSBURYS 0632
OXFORDSHIRE CC,"CHILDRENS, YOUNG PEOPLE AND FAMILIES",WITNEY,CATERING PROVISIONS,21/01/2019,000008257343467,5.32,LIDL UK  WITNEY
OXFORDSHIRE CC,"CHILDRENS, YOUNG PEOPLE AND FAMILIES","	RESIDENTIAL STRATEGY",ENTERTAINMENT EXPENSES,21/01/2019,000008257343091,17.50,RAGING BALL
OXFORDSHIRE CC,"CHILDRENS, YOUNG PEOPLE AND FAMILIES","	RESIDENTIAL STRATEGY",CATERING,21/01/2019,000008257343093,4.50,GREGGS BICESTER
OXFORDSHIRE CC,"CHILDRENS, YOUNG PEOPLE AND FAMILIES","	RESIDENTIAL STRATEGY",CATERING PROVISIONS,21/01/2019,000008257343095,5.30,COSTA BICESTER
OXFORDSHIRE CC,"CHILDRENS, YOUNG PEOPLE AND FAMILIES","	RESIDENTIAL STRATEGY",ENTERTAINMENT EXPENSES,21/01/2019,000008257343097,3.50,TEAM SPORT READING
OXFORDSHIRE CC,"CHILDRENS, YOUNG PEOPLE AND FAMILIES","	RESIDENTIAL STRATEGY",ENTERTAINMENT EXPENSES,21/01/2019,000008257343099,3.00,TEAM SPORT READING
OXFORDSHIRE CC,"CHILDRENS, YOUNG PEOPLE AND FAMILIES","	RESIDENTIAL STRATEGY",CATERING,21/01/2019,000008257343101,13.48,MCDONALDS
OXFORDSHIRE CC,"CHILDRENS, YOUNG PEOPLE AND FAMILIES","	RESIDENTIAL STRATEGY",VEHICLE FUEL,21/01/2019,000008257343103,6.10,TESCO PFS 3443
OXFORDSHIRE CC,"CHILDRENS, YOUNG PEOPLE AND FAMILIES",WITNEY,CATERING PROVISIONS,21/01/2019,000008257343105,47.18,SAINSBURYS TO YOU 0632
OXFORDSHIRE CC,"CHILDRENS, YOUNG PEOPLE AND FAMILIES",WITNEY,CATERING PROVISIONS,21/01/2019,000008257343107,-.55,SAINSBURYS TO YOU 0632
OXFORDSHIRE CC,"CHILDRENS, YOUNG PEOPLE AND FAMILIES",MARKETING,"BOOKS, DVDS AND CDS",21/01/2019,000008257343109,13.99,AMZN MKTP UK MB4TZ8DX4
OXFORDSHIRE CC,"CHILDRENS, YOUNG PEOPLE AND FAMILIES",MARKETING,PAYMENTS TO TRANSPORT OPERATORS,21/01/2019,000008257343111,39.00,WWW.CHILTERNRAILWAYS.C
OXFORDSHIRE CC,"CHILDRENS, YOUNG PEOPLE AND FAMILIES","	LOOKED AFTER NORTH",CATERING,21/01/2019,000008257343469,18.60,HACKETTS FOOD AND DRIN
OXFORDSHIRE CC,"CHILDRENS, YOUNG PEOPLE AND FAMILIES","	40 THE MOORS",CATERING PROVISIONS,21/01/2019,000008257343471,66.11,TESCO STORE 2788
OXFORDSHIRE CC,"CHILDRENS, YOUNG PEOPLE AND FAMILIES","	40 THE MOORS","BOOKS, DVDS AND CDS",21/01/2019,000008257343473,14.95,AMZN MKTP UK MB7LF9DV4
OXFORDSHIRE CC,CORPORATE CORE,,"SUPPLIES, STATIONERY AND MATERIALS",21/01/2019,000008257343481,42.26,LYRECO UK LTD
OXFORDSHIRE CC,CORPORATE CORE,,"SUPPLIES, STATIONERY AND MATERIALS",21/01/2019,000008257343483,65.53,LYRECO UK LTD
OXFORDSHIRE CC,"CHILDRENS, YOUNG PEOPLE AND FAMILIES",THAME E&A HOME,CATERING,21/01/2019,000008257343485,4.25,PRET A MANGER
OXFORDSHIRE CC,"CHILDRENS, YOUNG PEOPLE AND FAMILIES","	FAM SUPP CITY 1",ENTERTAINMENT EXPENSES,21/01/2019,000008257343491,4.15,BARTHOLOMEW SPORTS CEN
OXFORDSHIRE CC,"CHILDRENS, YOUNG PEOPLE AND FAMILIES",EYNSHAM,CATERING PROVISIONS,21/01/2019,000008257343489,12.45,CO-OPERATIVE FOOD
OXFORDSHIRE CC,ENVIRONMENT AND ECONOMY,HARD FM,HARDWARE AND CROCKERY,21/01/2019,000008257343137,33.47,CITY ELECTRICAL FA
OXFORDSHIRE CC,SOCIAL AND COMMUNITY SERVICES,CSS - OXFORD,DISABILITY AIDS AND EQUIPMENT,21/01/2019,000008257343125,122.80,FELGAINS
OXFORDSHIRE CC,SOCIAL AND COMMUNITY SERVICES,CSS - OXFORD,EQUIPMENT,21/01/2019,000008257343127,31.50,SAINSBURYS SACAT 0600
OXFORDSHIRE CC,SOCIAL AND COMMUNITY SERVICES,CSS - OXFORD,EQUIPMENT,21/01/2019,000008257343129,7.00,SAINSBURYS SACAT 0600
OXFORDSHIRE CC,SOCIAL AND COMMUNITY SERVICES,CSS - OXFORD,MATERIALS,21/01/2019,000008257343131,17.98,AMZN MKTP UK MB3CH5DE4
OXFORDSHIRE CC,ENVIRONMENT AND ECONOMY,HARD FM,HARDWARE AND CROCKERY,21/01/2019,000008257343133,31.98,SCREWFIX WITNEY
OXFORDSHIRE CC,ENVIRONMENT AND ECONOMY,HARD FM,HARDWARE AND CROCKERY,21/01/2019,000008257343135,280.69,BUILDBASE LIMITED
OXFORDSHIRE CC,"CHILDRENS, YOUNG PEOPLE AND FAMILIES","	LEAVING CARE NORTH",OTHER EXPENSES,21/01/2019,000008257343493,20.00,CO-OPERATIVE FOOD
OXFORDSHIRE CC,SOCIAL AND COMMUNITY SERVICES,ADULTS AT RISK,"BOOKS, DVDS AND CDS",21/01/2019,000008257343495,15.99,AMZN MKTP UK MB9GK3D54
OXFORDSHIRE CC,"CHILDRENS, YOUNG PEOPLE AND FAMILIES",EIS ADMIN,PAYMENTS TO TRANSPORT OPERATORS,21/01/2019,000008257343497,71.12,TRAINLINE
OXFORDSHIRE CC,"CHILDRENS, YOUNG PEOPLE AND FAMILIES","	DIRECTOR'S OFFICE",PAYMENTS TO TRANSPORT OPERATORS,21/01/2019,000008257343499,32.00,TRAINLINE
OXFORDSHIRE CC,"CHILDRENS, YOUNG PEOPLE AND FAMILIES",CNTL ERLY HELP-BBLEY,MATERIALS,21/01/2019,000008257343501,475.45,WWW.ARGOS.CO.UK
OXFORDSHIRE CC,"CHILDRENS, YOUNG PEOPLE AND FAMILIES","	LOOKED AFTER CITY 1",MATERIALS,21/01/2019,000008257343507,14.05,THEWORKS.CO.UK
OXFORDSHIRE CC,CORPORATE CORE,SIP MANAGEMENT,INTERNAL RECH OTHEXP,21/01/2019,000008257343395,220.80,SHL GROUP LTD
OXFORDSHIRE CC,SOCIAL AND COMMUNITY SERVICES,CSS - DIDCOT,EQUIPMENT,21/01/2019,000008257343025,19.23,AMZN MKTP UK MB8GX18H4
OXFORDSHIRE CC,SOCIAL AND COMMUNITY SERVICES,CSS - DIDCOT,EQUIPMENT,21/01/2019,000008257343027,93.21,AMZN MKTP UK MB95A6DZ4
OXFORDSHIRE CC,"CHILDRENS, YOUNG PEOPLE AND FAMILIES",CSS WALLINGFORD,MATERIALS,21/01/2019,000008257343039,30.94,KP STATIONERS
OXFORDSHIRE CC,"CHILDRENS, YOUNG PEOPLE AND FAMILIES","	ALTERNATIVES TO CARE",HIRE OF ACCOMMODATION AND FACILITIES,21/01/2019,000008257343029,"1,190.00",BUCKINGHAM HOTELS
OXFORDSHIRE CC,"CHILDRENS, YOUNG PEOPLE AND FAMILIES",STH EARLY HELP-ABNDN,PAYMENT TO GOVERNMENT DEPARTMENTS,21/01/2019,000008257343041,36.00,VALE OF WHITEHORSE
OXFORDSHIRE CC,"CHILDRENS, YOUNG PEOPLE AND FAMILIES",CSS WALLINGFORD,CATERING PROVISIONS,21/01/2019,000008257343037,20.77,WAITROSE 675
OXFORDSHIRE CC,"CHILDRENS, YOUNG PEOPLE AND FAMILIES",0-5 STDS & PROGRESS,"SUPPLIES, STATIONERY AND MATERIALS",21/01/2019,000008257343419,17.48,AMZN MKTP UK MB96U5DO4
OXFORDSHIRE CC,"CHILDRENS, YOUNG PEOPLE AND FAMILIES",DIDCOT MOVE-ON HOME,CATERING PROVISIONS,21/01/2019,000008257343407,5.50,SAINSBURYS SACAT 2067
OXFORDSHIRE CC,"CHILDRENS, YOUNG PEOPLE AND FAMILIES",DIDCOT MOVE-ON HOME,DOMESTIC AND CLEANING EQUIPMENT,21/01/2019,000008257343409,1.70,SAINSBURYS SACAT 2067
OXFORDSHIRE CC,"CHILDRENS, YOUNG PEOPLE AND FAMILIES",DIDCOT MOVE-ON HOME,MATERIALS,21/01/2019,000008257343411,5.99,WH SMITH
OXFORDSHIRE CC,"CHILDRENS, YOUNG PEOPLE AND FAMILIES",DIDCOT MOVE-ON HOME,CATERING PROVISIONS,21/01/2019,000008257343413,11.60,SAINSBURYS SACAT 2067
OXFORDSHIRE CC,"CHILDRENS, YOUNG PEOPLE AND FAMILIES",DIDCOT MOVE-ON HOME,CATERING PROVISIONS,21/01/2019,000008257343415,3.00,SAINSBURYS SACAT 2067
OXFORDSHIRE CC,"CHILDRENS, YOUNG PEOPLE AND FAMILIES",DIDCOT MOVE-ON HOME,CATERING PROVISIONS,21/01/2019,000008257343417,3.00,CO-OP FOOD
OXFORDSHIRE CC,"CHILDRENS, YOUNG PEOPLE AND FAMILIES",THAME E&A HOME,OTHER TRANSPORT ARRANGEMENTS,21/01/2019,000008257343043,30.75,IZ  ROYAL CARS 147
OXFORDSHIRE CC,"CHILDRENS, YOUNG PEOPLE AND FAMILIES",THAME E&A HOME,CATERING PROVISIONS,21/01/2019,000008257343045,18.98,SANGHERA SUPERMARKET L
OXFORDSHIRE CC,"CHILDRENS, YOUNG PEOPLE AND FAMILIES",THAME E&A HOME,VEHICLE FUEL,21/01/2019,000008257343047,10.41,SHELL HEADINGTON
OXFORDSHIRE CC,"CHILDRENS, YOUNG PEOPLE AND FAMILIES",THAME E&A HOME,CATERING PROVISIONS,21/01/2019,000008257343049,4.15,TESCO STORES 6880
OXFORDSHIRE CC,SOCIAL AND COMMUNITY SERVICES,CSS - BANBURY,CATERING PROVISIONS,21/01/2019,000008257343055,6.63,CO-OPERATIVE FOOD
OXFORDSHIRE CC,"CHILDRENS, YOUNG PEOPLE AND FAMILIES","	FAMILY SUPPORT CITY3",VEHICLE FUEL,21/01/2019,000008257343059,4.80,BP MILTON HEIGHTS S/SE
OXFORDSHIRE CC,SOCIAL AND COMMUNITY SERVICES,TRAINING,IT SOFTWARE,21/01/2019,000008257343431,252.45,GOVERNMENT EVENTS
OXFORDSHIRE CC,SOCIAL AND COMMUNITY SERVICES,TRAINING,IT SOFTWARE,21/01/2019,000008257343433,252.45,GOVERNMENT EVENTS
OXFORDSHIRE CC,"CHILDRENS, YOUNG PEOPLE AND FAMILIES",DIDCOT MOVE-ON HOME,CATERING PROVISIONS,21/01/2019,000008257343437,44.60,SAINSBURYS 2067
OXFORDSHIRE CC,"CHILDRENS, YOUNG PEOPLE AND FAMILIES","	RESIDENTIAL STRATEGY",CATERING PROVISIONS,21/01/2019,000008257343069,77.60,SAINSBURYS (2243)
OXFORDSHIRE CC,"CHILDRENS, YOUNG PEOPLE AND FAMILIES","	RESIDENTIAL STRATEGY",CATERING,21/01/2019,000008257343071,5.29,KFC -  WYCOMBE RETAIL
OXFORDSHIRE CC,"CHILDRENS, YOUNG PEOPLE AND FAMILIES","	RESIDENTIAL STRATEGY",ENTERTAINMENT EXPENSES,21/01/2019,000008257343073,88.00,WWW.TEAM-SPORT.CO.UK
OXFORDSHIRE CC,"CHILDRENS, YOUNG PEOPLE AND FAMILIES","	RESIDENTIAL STRATEGY",MATERIALS,21/01/2019,000008257343075,24.32,ARGOS RETAIL GROUP
OXFORDSHIRE CC,"CHILDRENS, YOUNG PEOPLE AND FAMILIES",WITNEY,CATERING,21/01/2019,000008257343077,16.18,BURGER KING
OXFORDSHIRE CC,"CHILDRENS, YOUNG PEOPLE AND FAMILIES","	RESIDENTIAL STRATEGY",CATERING,21/01/2019,000008257343085,13.50,SUBWAY
OXFORDSHIRE CC,"CHILDRENS, YOUNG PEOPLE AND FAMILIES","	RESIDENTIAL STRATEGY",OTHER TRANSPORT ARRANGEMENTS,21/01/2019,000008257343087,1.00,PARKJOCKEY LONDON
OXFORDSHIRE CC,"CHILDRENS, YOUNG PEOPLE AND FAMILIES",WITNEY,VEHICLE FUEL,21/01/2019,000008257343079,1.75,TESCO PFS 3418
OXFORDSHIRE CC,"CHILDRENS, YOUNG PEOPLE AND FAMILIES","	RESIDENTIAL STRATEGY",CATERING,21/01/2019,000008257343083,4.35,GREGGS
OXFORDSHIRE CC,"CHILDRENS, YOUNG PEOPLE AND FAMILIES","	RESIDENTIAL STRATEGY",CATERING,21/01/2019,000008257343089,28.44,TREATZ
OXFORDSHIRE CC,"CHILDRENS, YOUNG PEOPLE AND FAMILIES","	MALTFIELD HOUSE",CATERING,21/01/2019,000008257343255,14.78,JUST EAT
OXFORDSHIRE CC,CORPORATE CORE,"	ORGANISATIONAL DEV'T","BOOKS, DVDS AND CDS",21/01/2019,000008257343269,11.96,AMAZON.CO.UK MB4FG1DI4
OXFORDSHIRE CC,"CHILDRENS, YOUNG PEOPLE AND FAMILIES",THAME E&A HOME,CATERING PROVISIONS,21/01/2019,000008257343275,14.60,TESCO STORES-2008
OXFORDSHIRE CC,"CHILDRENS, YOUNG PEOPLE AND FAMILIES",THAME E&A HOME,VEHICLE FUEL,21/01/2019,000008257343277,16.30,THAME BP SF CONNECT
OXFORDSHIRE CC,"CHILDRENS, YOUNG PEOPLE AND FAMILIES",THAME E&A HOME,CATERING,21/01/2019,000008257343279,2.40,DOMINOS PIZZA
OXFORDSHIRE CC,"CHILDRENS, YOUNG PEOPLE AND FAMILIES",THAME E&A HOME,CATERING,21/01/2019,000008257343281,18.99,DOMINOS PIZZA
OXFORDSHIRE CC,"CHILDRENS, YOUNG PEOPLE AND FAMILIES","	LEAVING CARE NORTH",OTHER EXPENSES,21/01/2019,000008257343283,1.99,COSTCUTTER
OXFORDSHIRE CC,"CHILDRENS, YOUNG PEOPLE AND FAMILIES","	LEAVING CARE CITY 2",CLOTHING AND UNIFORMS,21/01/2019,000008257343297,49.99,T K MAXX
OXFORDSHIRE CC,"CHILDRENS, YOUNG PEOPLE AND FAMILIES","	RESIDENTIAL STRATEGY",PAYMENTS TO TRANSPORT OPERATORS,21/01/2019,000008257343293,73.30,GWR OXFORD ATE
OXFORDSHIRE CC,"CHILDRENS, YOUNG PEOPLE AND FAMILIES",EET SERVICE,"SUPPLIES, STATIONERY AND MATERIALS",21/01/2019,000008257343295,32.93,EB  YOUTH IN MIND CONF
OXFORDSHIRE CC,"CHILDRENS, YOUNG PEOPLE AND FAMILIES","	ADOPTION",CATERING PROVISIONS,21/01/2019,000008257343299,7.90,SAINSBURYS 0632
OXFORDSHIRE CC,"CHILDRENS, YOUNG PEOPLE AND FAMILIES","	MALTFIELD HOUSE",CATERING,21/01/2019,000008257343323,38.50,NANDOS GEORGE STREET
OXFORDSHIRE CC,"CHILDRENS, YOUNG PEOPLE AND FAMILIES","	MALTFIELD HOUSE",CATERING PROVISIONS,21/01/2019,000008257343317,109.83,SAINSBURYS TO YOU 0600
OXFORDSHIRE CC,"CHILDRENS, YOUNG PEOPLE AND FAMILIES","	MALTFIELD HOUSE",OTHER TRANSPORT ARRANGEMENTS,21/01/2019,000008257343319,4.50,WORCESTER STREET CAR P
OXFORDSHIRE CC,"CHILDRENS, YOUNG PEOPLE AND FAMILIES","	MALTFIELD HOUSE",CATERING PROVISIONS,21/01/2019,000008257343321,11.80,TESCO STORES 2994
OXFORDSHIRE CC,"CHILDRENS, YOUNG PEOPLE AND FAMILIES","	MALTFIELD HOUSE",CATERING,21/01/2019,000008257343325,2.95,NANDOS GEORGE STREET
OXFORDSHIRE CC,SOCIAL AND COMMUNITY SERVICES,CSS WANTAGE,CATERING PROVISIONS,21/01/2019,000008257343335,18.10,THE OLD FARM SHOP
OXFORDSHIRE CC,SOCIAL AND COMMUNITY SERVICES,CSS WANTAGE,CATERING PROVISIONS,21/01/2019,000008257343337,79.15,SAINSBURYS 2244
OXFORDSHIRE CC,SOCIAL AND COMMUNITY SERVICES,CSS WANTAGE,MATERIALS,21/01/2019,000008257343339,23.41,HOME BARGAINS
OXFORDSHIRE CC,ENVIRONMENT AND ECONOMY,NUFFIELD WAY,FURNITURE,21/01/2019,000008257343355,30.05,DUNELM LTD
OXFORDSHIRE CC,"CHILDRENS, YOUNG PEOPLE AND FAMILIES","	LEAVING CARE CITY 1",PAYMENTS TO TRANSPORT OPERATORS,21/01/2019,000008257343371,8.39,TRAINLINE
OXFORDSHIRE CC,SOCIAL AND COMMUNITY SERVICES,ADULT SERVICES IMPROVEMENT BOARD,CATERING PROVISIONS,21/01/2019,000008257343375,12.18,TESCO STORE 2064
OXFORDSHIRE CC,ENVIRONMENT AND ECONOMY,"	E&I STAFF",STAFF USE OF PUBLIC TRANSPORT,21/01/2019,000008257343377,70.50,WWW.GWR.COM
OXFORDSHIRE CC,"CHILDRENS, YOUNG PEOPLE AND FAMILIES",EYNSHAM,ENTERTAINMENT EXPENSES,21/01/2019,000008257343379,4.15,BARTHOLOMEW SPORTS CEN
OXFORDSHIRE CC,"CHILDRENS, YOUNG PEOPLE AND FAMILIES",EYNSHAM,CATERING PROVISIONS,21/01/2019,000008257343381,3.14,CO-OPERATIVE FOOD
OXFORDSHIRE CC,ENVIRONMENT AND ECONOMY,HARD FM,GENERAL MAINTENANCE,21/01/2019,000008257343139,63.31, WOLSELEY UK
OXFORDSHIRE CC,ENVIRONMENT AND ECONOMY,COUNTY LIBRARY,GENERAL MAINTENANCE,21/01/2019,000008257343147,23.58, WOLSELEY UK
OXFORDSHIRE CC,SOCIAL AND COMMUNITY SERVICES,ADULTS AT RISK,PAYMENTS TO VOLUNTARY BODIES,21/01/2019,000008257343149,158.31,ALLPAY  GREENSQUARE
OXFORDSHIRE CC,ENVIRONMENT AND ECONOMY,HARD FM,HARDWARE AND CROCKERY,21/01/2019,000008257343141,128.18,CITY PLUMBING
OXFORDSHIRE CC,SOCIAL AND COMMUNITY SERVICES,ADULTS AT RISK,HIRE OF ACCOMMODATION AND FACILITIES,21/01/2019,000008257343151,124.00,OXFORD ABINGDON HOTEL
OXFORDSHIRE CC,ENVIRONMENT AND ECONOMY,HARD FM,CATERING PROVISIONS,21/01/2019,000008257343143,55.08,LINCAT LTD
OXFORDSHIRE CC,ENVIRONMENT AND ECONOMY,COUNTY LIBRARY,HARDWARE AND CROCKERY,21/01/2019,000008257343145,22.60,JOHN NICHOLLS KIDLINGT
OXFORDSHIRE CC,"CHILDRENS, YOUNG PEOPLE AND FAMILIES","	LEAVING CARE NORTH",PAYMENTS TO TRANSPORT OPERATORS,21/01/2019,000008257343155,92.30,BANBURY STATION T/O
OXFORDSHIRE CC,"CHILDRENS, YOUNG PEOPLE AND FAMILIES","	LOOKED AFTER NORTH",OTHER TRANSPORT ARRANGEMENTS,21/01/2019,000008257343157,4.30,IPSGROUP.COM
OXFORDSHIRE CC,SOCIAL AND COMMUNITY SERVICES,CSS BICESTER,CATERING PROVISIONS,21/01/2019,000008257343159,8.30,SAINSBURYS (2243)
OXFORDSHIRE CC,CORPORATE CORE,INFORMATION & ADVICE,"PUBLICITY, PROMOTIONS AND ADVERTISEMENT",21/01/2019,000008257343519,141.96,FACEBK  GNCPPJ2AZ2
OXFORDSHIRE CC,CORPORATE CORE,COMM FIRE SAFETY,"PUBLICITY, PROMOTIONS AND ADVERTISEMENT",21/01/2019,000008257343519,206.23,FACEBK  GNCPPJ2AZ2
OXFORDSHIRE CC,CORPORATE CORE,"	COMMUNICATIONS","PUBLICITY, PROMOTIONS AND ADVERTISEMENT",21/01/2019,000008257343519,151.81,FACEBK  GNCPPJ2AZ2
OXFORDSHIRE CC,CORPORATE CORE,"	COMMUNICATIONS",MANAGEMENT CONSULTANT FEES,21/01/2019,000008257343521,300.00,WWW.PRCA.ORG.UK
OXFORDSHIRE CC,"CHILDRENS, YOUNG PEOPLE AND FAMILIES",NORTH FSS- WITNEY,PAYMENTS TO TRANSPORT OPERATORS,21/01/2019,000008257343517,79.40,GWR CORP WEBBTSECOM
OXFORDSHIRE CC,CORPORATE CORE,"	COMMUNICATIONS",MATERIALS,21/01/2019,000008257343523,20.82,LINKEDIN-444 6868043
OXFORDSHIRE CC,"CHILDRENS, YOUNG PEOPLE AND FAMILIES",EYNSHAM,CATERING,21/01/2019,000008257343525,132.29,TESCO STORES 2008
OXFORDSHIRE CC,"CHILDRENS, YOUNG PEOPLE AND FAMILIES",THAME E&A HOME,CATERING PROVISIONS,21/01/2019,000008257343161,20.30,SAINSBURYS 2096
OXFORDSHIRE CC,"CHILDRENS, YOUNG PEOPLE AND FAMILIES",THAME E&A HOME,ENTERTAINMENT EXPENSES,21/01/2019,000008257343163,27.60,HOLLYWOOD BOWL
OXFORDSHIRE CC,SOCIAL AND COMMUNITY SERVICES,DIDCOT MOVE-ON HOME,CATERING PROVISIONS,21/01/2019,000008257343165,10.00,SAINSBURYS 0600
OXFORDSHIRE CC,SOCIAL AND COMMUNITY SERVICES,DIDCOT MOVE-ON HOME,CATERING PROVISIONS,21/01/2019,000008257343167,4.35,SAINSBURYS 0600
OXFORDSHIRE CC,SOCIAL AND COMMUNITY SERVICES,DIDCOT MOVE-ON HOME,MATERIALS,21/01/2019,000008257343169,14.95,ARGOS HEYFORD HILL
OXFORDSHIRE CC,"CHILDRENS, YOUNG PEOPLE AND FAMILIES",EYNSHAM,CATERING PROVISIONS,21/01/2019,000008257343179,3.00,SAINSBURYS SACAT 0632
OXFORDSHIRE CC,SOCIAL AND COMMUNITY SERVICES,DIDCOT MOVE-ON HOME,CATERING,21/01/2019,000008257343171,5.00,SUNDAES GELATO
OXFORDSHIRE CC,SOCIAL AND COMMUNITY SERVICES,DIDCOT MOVE-ON HOME,HIRED AND CONTRACTED SERVICES,21/01/2019,000008257343173,33.84,REGEIN HAIR SALON
OXFORDSHIRE CC,SOCIAL AND COMMUNITY SERVICES,WITNEY MOVE ON HOME,CATERING PROVISIONS,21/01/2019,000008257343185,6.45,SAINSBURYS 0632
OXFORDSHIRE CC,"CHILDRENS, YOUNG PEOPLE AND FAMILIES",THAME E&A HOME,ENTERTAINMENT EXPENSES,21/01/2019,000008257343189,19.30,"OASIS, SWINDON"
OXFORDSHIRE CC,"CHILDRENS, YOUNG PEOPLE AND FAMILIES",THAME E&A HOME,VEHICLE FUEL,21/01/2019,000008257343191,4.85,TESCO PFS 3700
OXFORDSHIRE CC,"CHILDRENS, YOUNG PEOPLE AND FAMILIES","	HEARING IMPAIRMENT",DISABILITY AIDS AND EQUIPMENT,21/01/2019,000008257343217,80.00,REPAIR MY PHONE OXFORD
OXFORDSHIRE CC,"CHILDRENS, YOUNG PEOPLE AND FAMILIES",POST 16 SI TRADED,DISABILITY AIDS AND EQUIPMENT,21/01/2019,000008257343219,14.99,AMZN MKTP UK MB09U4DB4
OXFORDSHIRE CC,"CHILDRENS, YOUNG PEOPLE AND FAMILIES",POST 16 SI TRADED,DISABILITY AIDS AND EQUIPMENT,21/01/2019,000008257343221,22.46,AMAZON.CO.UK MB20776Y4
OXFORDSHIRE CC,CORPORATE CORE,OPERATIONS,"SUPPLIES, STATIONERY AND MATERIALS",21/01/2019,000008257343229,16.27,AMAZON.CO.UK MB86X76Y4
OXFORDSHIRE CC,ENVIRONMENT AND ECONOMY,"	COUNTY HALL","BOOKS, DVDS AND CDS",21/01/2019,000008257343235,27.58,AMZN MKTP UK MB8NE0QH4
OXFORDSHIRE CC,ENVIRONMENT AND ECONOMY,"	BRIDGES GENERAL",HARDWARE AND CROCKERY,21/01/2019,000008257343237,10.00,HOMEBASE LTD
OXFORDSHIRE CC,ENVIRONMENT AND ECONOMY,"	BRIDGES GENERAL",POSTAGE AND DELIVERY,21/01/2019,000008257343239,10.30,POST OFFICE COUNTER
OXFORDSHIRE CC,SOCIAL AND COMMUNITY SERVICES,"	MUSEUMS COLLECTIONS",MATERIALS,21/01/2019,000008257343247,48.00,AMAZON.CO.UK MB3ZL8DE4
OXFORDSHIRE CC,"CHILDRENS, YOUNG PEOPLE AND FAMILIES","	MALTFIELD HOUSE",OTHER EXPENSES,21/01/2019,000008257343253,89.00,AIRBNB   HMD5SY88B8
OXFORDSHIRE CC,SOCIAL AND COMMUNITY SERVICES,LEAVING CARE NORTH,OTHER TRANSPORT ARRANGEMENTS,18/01/2019,000008250758335,2.00,PEARTREE PARK AND RIDE
OXFORDSHIRE CC,"CHILDRENS, YOUNG PEOPLE AND FAMILIES","	LOOKED AFTER CITY 2",CATERING PROVISIONS,18/01/2019,000008250758343,38.25,ASDA STORE 4442
OXFORDSHIRE CC,"CHILDRENS, YOUNG PEOPLE AND FAMILIES","	LEAVING CARE NORTH",CATERING,18/01/2019,000008250758345,3.99,KFC
OXFORDSHIRE CC,"CHILDRENS, YOUNG PEOPLE AND FAMILIES","	LEAVING CARE NORTH",OTHER TRANSPORT ARRANGEMENTS,18/01/2019,000008250758347,2.00,3C_ ECP EAST OXFORD HE
OXFORDSHIRE CC,"CHILDRENS, YOUNG PEOPLE AND FAMILIES","	LEAVING CARE NORTH",PAYMENTS TO VOLUNTARY BODIES,18/01/2019,000008250758349,164.00,ALLPAY  COTTSWAY HOUSI
OXFORDSHIRE CC,"CHILDRENS, YOUNG PEOPLE AND FAMILIES","	LEAVING CARE NORTH",MATERIALS,18/01/2019,000008250758351,110.99,JD SPORTS INTERNET
OXFORDSHIRE CC,"CHILDRENS, YOUNG PEOPLE AND FAMILIES","	MALTFIELD HOUSE",CATERING PROVISIONS,18/01/2019,000008250758355,11.68,TESCO STORES 2008
OXFORDSHIRE CC,SOCIAL AND COMMUNITY SERVICES,CSS WITNEY,"BOOKS, DVDS AND CDS",18/01/2019,000008250758369,4.48,AMZN MKTP UK MB36708Y4
OXFORDSHIRE CC,ENVIRONMENT AND ECONOMY,SCH&SOC CARE TRANSP,"BOOKS, DVDS AND CDS",18/01/2019,000008250758371,1.40,AMZN MKTP UK MB6795B54
OXFORDSHIRE CC,ENVIRONMENT AND ECONOMY,"	ROW MAINT",EQUIPMENT,18/01/2019,000008250758377,98.69,WISE WORKSAFE
OXFORDSHIRE CC,ENVIRONMENT AND ECONOMY,"	FLEET OPERATIONS",VEHICLE FUEL,18/01/2019,000008250758381,31.98,ALLSTAR BUSINESS SOLUT
OXFORDSHIRE CC,"CHILDRENS, YOUNG PEOPLE AND FAMILIES","	SM QUALITY ASSURANCE",PAYMENTS TO TRANSPORT OPERATORS,18/01/2019,000008250758199,296.00,BUDGETAIR.CO.UK
OXFORDSHIRE CC,"CHILDRENS, YOUNG PEOPLE AND FAMILIES","	LOOKED AFTER NORTH",PAYMENTS TO TRANSPORT OPERATORS,18/01/2019,000008250758199,148.00,BUDGETAIR.CO.UK
OXFORDSHIRE CC,"CHILDRENS, YOUNG PEOPLE AND FAMILIES","	SM QUALITY ASSURANCE",PAYMENTS TO TRANSPORT OPERATORS,18/01/2019,000008250758201,108.82,EASYJET
OXFORDSHIRE CC,"CHILDRENS, YOUNG PEOPLE AND FAMILIES",THAME E&A HOME,SUBSCRIPTIONS,18/01/2019,000008250758207,35.60,OXFORD ICE RINK
OXFORDSHIRE CC,"CHILDRENS, YOUNG PEOPLE AND FAMILIES",THAME E&A HOME,SUBSCRIPTIONS,18/01/2019,000008250758209,12.00,OXFORD ICE RINK
OXFORDSHIRE CC,"CHILDRENS, YOUNG PEOPLE AND FAMILIES",THAME E&A HOME,OTHER TRANSPORT ARRANGEMENTS,18/01/2019,000008250758211,6.50,OXPENS CAR PARK
OXFORDSHIRE CC,"CHILDRENS, YOUNG PEOPLE AND FAMILIES",THAME E&A HOME,ENTERTAINMENT EXPENSES,18/01/2019,000008250758213,5.55,BOWLPLEX
OXFORDSHIRE CC,"CHILDRENS, YOUNG PEOPLE AND FAMILIES","	LEAVING CARE CITY 1",PAYMENT TO GOVERNMENT DEPARTMENTS,18/01/2019,000008250758215,310.00,HMCTS-SUSSEX126
OXFORDSHIRE CC,"CHILDRENS, YOUNG PEOPLE AND FAMILIES","	RIVERSIDE CENTRE",CATERING PROVISIONS,18/01/2019,000008250758221,4.50,SAINSBURYS 0631
OXFORDSHIRE CC,"CHILDRENS, YOUNG PEOPLE AND FAMILIES","	RIVERSIDE CENTRE",CATERING,18/01/2019,000008250758223,8.30,COSTA COFFEE 43036290
OXFORDSHIRE CC,"CHILDRENS, YOUNG PEOPLE AND FAMILIES","	RIVERSIDE CENTRE",DAY ACTIVITIES,18/01/2019,000008250758225,6.50,SPORTS CENTRE
OXFORDSHIRE CC,CORPORATE CORE,SCHOOLS FM,CATERING PROVISIONS,18/01/2019,000008250758227,23.20,SAINSBURYS 2067
OXFORDSHIRE CC,"CHILDRENS, YOUNG PEOPLE AND FAMILIES",CNTL EARLY HELP-RHIL,MATERIALS,18/01/2019,000008250758231,190.00,CURRYS ONLINE
OXFORDSHIRE CC,"CHILDRENS, YOUNG PEOPLE AND FAMILIES",NTH FAM SUPRT-BCSTR,PAYMENTS TO TRANSPORT OPERATORS,18/01/2019,000008250758233,9.60,GWR CORP WEBBTSECOM
OXFORDSHIRE CC,SOCIAL AND COMMUNITY SERVICES,CSS WALLINGFORD,CATERING PROVISIONS,18/01/2019,000008250758235,147.95,TESCO STORES 2008
OXFORDSHIRE CC,ENTERPRISEVC,OTFC TEAM,HOSPITALITY EXPENSES,18/01/2019,000008250758239,5.95,THE WATERMEAD INN
OXFORDSHIRE CC,CORPORATE CORE,"	CHAIRMANS ALLOWANCE",ENTERTAINMENT EXPENSES,18/01/2019,000008250758249,24.00,AMEY THEATRE
OXFORDSHIRE CC,SOCIAL AND COMMUNITY SERVICES,CSS - OXFORD,EQUIPMENT,18/01/2019,000008250758273,20.00,TIMPSON LTD
OXFORDSHIRE CC,"CHILDRENS, YOUNG PEOPLE AND FAMILIES",NTH EARLY HELP-BCSTR,CATERING PROVISIONS,18/01/2019,000008250758279,7.82,MILK&MORE
OXFORDSHIRE CC,CORPORATE CORE,"	ORGANISATIONAL DEV'T",MATERIALS,18/01/2019,000008250758309,621.00,PA PROMOTIONS LTD
OXFORDSHIRE CC,CORPORATE CORE,"	CC TRAINING",TRAINING RELATED EXPENDITURE,18/01/2019,000008250758317,75.70,GWR CORP WEBBTSECOM
OXFORDSHIRE CC,CORPORATE CORE,"	LEGAL SERVICES",LEGAL COSTS,18/01/2019,000008250758319,10.00,OCC REGISTRARS (M)
OXFORDSHIRE CC,"CHILDRENS, YOUNG PEOPLE AND FAMILIES","	RIVERSIDE CENTRE",OTHER TRAINING COURSES AND QUALIFICATION,18/01/2019,000008250758323,258.00,ST JOHN AMBULANCE
OXFORDSHIRE CC,"CHILDRENS, YOUNG PEOPLE AND FAMILIES","	LEAVING CARE NORTH",OTHER TRANSPORT ARRANGEMENTS,18/01/2019,000008250758325,6.00,GLOUCESTER STREET CAR
OXFORDSHIRE CC,"CHILDRENS, YOUNG PEOPLE AND FAMILIES","	40 THE MOORS",CATERING PROVISIONS,18/01/2019,000008250758473,.90,ASDA GROCERIES ONLINE
OXFORDSHIRE CC,CORPORATE CORE,,"SUPPLIES, STATIONERY AND MATERIALS",18/01/2019,000008250758483,5.28,LYRECO UK LTD
OXFORDSHIRE CC,"CHILDRENS, YOUNG PEOPLE AND FAMILIES","	LOOKED AFTER CITY 1",PAYMENTS TO TRANSPORT OPERATORS,18/01/2019,000008250758485,98.90,TRAINLINE
OXFORDSHIRE CC,"CHILDRENS, YOUNG PEOPLE AND FAMILIES","	LEAVING CARE NORTH",OTHER TRANSPORT ARRANGEMENTS,18/01/2019,000008250758487,10.20,WWW.ISLINGTON.GOV.
OXFORDSHIRE CC,"CHILDRENS, YOUNG PEOPLE AND FAMILIES","	LOOKED AFTER SOUTH",OTHER TRANSPORT ARRANGEMENTS,18/01/2019,000008250758489,7.00,WESTGATE OXFORD CAR PA
OXFORDSHIRE CC,"CHILDRENS, YOUNG PEOPLE AND FAMILIES","	RESIDENTIAL STRATEGY",ENTERTAINMENT EXPENSES,18/01/2019,000008250758123,15.74,VUE BSL LTD
OXFORDSHIRE CC,"CHILDRENS, YOUNG PEOPLE AND FAMILIES","	RESIDENTIAL STRATEGY",ENTERTAINMENT EXPENSES,18/01/2019,000008250758125,15.74,VUE BSL LTD
OXFORDSHIRE CC,"CHILDRENS, YOUNG PEOPLE AND FAMILIES","	LOOKED AFTER NORTH",PAYMENTS TO TRANSPORT OPERATORS,18/01/2019,000008250758127,5.60,BICESTER VIL SSTP
OXFORDSHIRE CC,"CHILDRENS, YOUNG PEOPLE AND FAMILIES","	LOOKED AFTER NORTH",PAYMENTS TO TRANSPORT OPERATORS,18/01/2019,000008250758129,5.50,BICESTER VIL SSTP
OXFORDSHIRE CC,"CHILDRENS, YOUNG PEOPLE AND FAMILIES","	SM QUALITY ASSURANCE",PAYMENTS TO TRANSPORT OPERATORS,18/01/2019,000008250758131,86.30,GREATER ANGLIA TRAINS
OXFORDSHIRE CC,"CHILDRENS, YOUNG PEOPLE AND FAMILIES","	40 THE MOORS","BOOKS, DVDS AND CDS",18/01/2019,000008250758133,8.99,AMZN MKTP UK MB5923QY4
OXFORDSHIRE CC,"CHILDRENS, YOUNG PEOPLE AND FAMILIES",WITNEY,CATERING PROVISIONS,18/01/2019,000008250758135,8.00,SAINSBURYS SACAT 0632
OXFORDSHIRE CC,ENVIRONMENT AND ECONOMY,"	LEP","PUBLICITY, PROMOTIONS AND ADVERTISEMENT",18/01/2019,000008250758137,40.80,CONTENT CALENDR LIMITE
OXFORDSHIRE CC,"CHILDRENS, YOUNG PEOPLE AND FAMILIES",UASC UNDER 16,OTHER TRANSPORT ARRANGEMENTS,18/01/2019,000008250758497,32.10,GWR OXFORD TO
OXFORDSHIRE CC,SOCIAL AND COMMUNITY SERVICES,FLEET OPERATIONS,"BOOKS, DVDS AND CDS",18/01/2019,000008250758513,46.09,AMZN MKTP UK MB0RQ1BL4
OXFORDSHIRE CC,"CHILDRENS, YOUNG PEOPLE AND FAMILIES",C&F - TF CONTRIB,OTHER TRANSPORT ARRANGEMENTS,18/01/2019,000008250758515,23.50,WWW.THEKEY.CO.UK
OXFORDSHIRE CC,"CHILDRENS, YOUNG PEOPLE AND FAMILIES",UASC 16&17,VEHICLE FUEL,18/01/2019,000008250758163,25.21,SHELL HEADINGTON
OXFORDSHIRE CC,ENVIRONMENT AND ECONOMY,HARD FM,GENERAL MAINTENANCE,18/01/2019,000008250758165,120.34, WOLSELEY UK
OXFORDSHIRE CC,ENVIRONMENT AND ECONOMY,HARD FM,GENERAL MAINTENANCE,18/01/2019,000008250758167,98.12, WOLSELEY UK
OXFORDSHIRE CC,ENVIRONMENT AND ECONOMY,HARD FM,GENERAL MAINTENANCE,18/01/2019,000008250758169,-125.50, WOLSELEY UK
OXFORDSHIRE CC,ENVIRONMENT AND ECONOMY,HARD FM,HARDWARE AND CROCKERY,18/01/2019,000008250758171,415.14,TRAVIS PERKINS
OXFORDSHIRE CC,ENVIRONMENT AND ECONOMY,HARD FM,HARDWARE AND CROCKERY,18/01/2019,000008250758173,157.54,TRAVIS PERKINS
OXFORDSHIRE CC,ENVIRONMENT AND ECONOMY,HARD FM,LAUNDRY AND DRY CLEANING,18/01/2019,000008250758175,30.00,TIMPSON LTD
OXFORDSHIRE CC,ENVIRONMENT AND ECONOMY,HARD FM,HARDWARE AND CROCKERY,18/01/2019,000008250758177,25.77,B & Q 1062
OXFORDSHIRE CC,ENVIRONMENT AND ECONOMY,COUNTY LIBRARY,GENERAL MAINTENANCE,18/01/2019,000008250758181,37.76, WOLSELEY UK
OXFORDSHIRE CC,ENVIRONMENT AND ECONOMY,"	COUNTY PRINT FINSHRS",CATERING,18/01/2019,000008250758185,161.54,BOOKER LIMITED OXFORD
OXFORDSHIRE CC,"CHILDRENS, YOUNG PEOPLE AND FAMILIES","	LOOKED AFTER NORTH",VEHICLE FUEL,18/01/2019,000008250758189,28.39,TESCO PFS 4267
OXFORDSHIRE CC,ENVIRONMENT AND ECONOMY,"	WASTE MNGMNT GEN",REGISTRATION AND INSPECTION FEES,18/01/2019,000008250758191,20.00,CHARTERED INST OF
OXFORDSHIRE CC,ENVIRONMENT AND ECONOMY,"	WASTE MNGMNT GEN","PUBLICITY, PROMOTIONS AND ADVERTISEMENT",18/01/2019,000008250758193,88.76,WWW.LETSRECYCLE.COM
OXFORDSHIRE CC,ENVIRONMENT AND ECONOMY,WASTE REDUCTION GEN,"PUBLICITY, PROMOTIONS AND ADVERTISEMENT",18/01/2019,000008250758193,88.76,WWW.LETSRECYCLE.COM
OXFORDSHIRE CC,"CHILDRENS, YOUNG PEOPLE AND FAMILIES","	DISABILITIES TEAM-C",PAYMENTS TO TRANSPORT OPERATORS,18/01/2019,000008250758195,3.00,EXPEDIA 7405877235198
OXFORDSHIRE CC,"CHILDRENS, YOUNG PEOPLE AND FAMILIES",DEPUTY DIRECTOR &MAN,PAYMENTS TO TRANSPORT OPERATORS,18/01/2019,000008250758197,76.11,TRAINLINE
OXFORDSHIRE CC,CORPORATE CORE,LIBRARY COLLECTIONS,"BOOKS, DVDS AND CDS",18/01/2019,000008250758405,"1,677.74",BOLINDA PUBLISHING
OXFORDSHIRE CC,CORPORATE CORE,LIBRARY COLLECTIONS,MATERIALS,18/01/2019,000008250758407,7.99,AMAZON PRIME MB06728K4
OXFORDSHIRE CC,CORPORATE CORE,LIBRARY COLLECTIONS,"BOOKS, DVDS AND CDS",18/01/2019,000008250758409,-968.69,BOLINDA PUBLISHING
OXFORDSHIRE CC,"CHILDRENS, YOUNG PEOPLE AND FAMILIES",DIDCOT MOVE-ON HOME,CATERING PROVISIONS,18/01/2019,000008250758413,8.13,TESCO STORES 2413
OXFORDSHIRE CC,"CHILDRENS, YOUNG PEOPLE AND FAMILIES",DIDCOT MOVE-ON HOME,DOMESTIC SUPPLIES,18/01/2019,000008250758415,3.00,TESCO STORES 2413
OXFORDSHIRE CC,"CHILDRENS, YOUNG PEOPLE AND FAMILIES",0-5 STDS & PROGRESS,"BOOKS, DVDS AND CDS",18/01/2019,000008250758421,104.70,PAYPAL  ACTIONFORCH
OXFORDSHIRE CC,SOCIAL AND COMMUNITY SERVICES,DIDOCT LIBRARY,CATERING PROVISIONS,18/01/2019,000008250758437,67.22,TWYFORD CONVENIENCE ST
OXFORDSHIRE CC,SOCIAL AND COMMUNITY SERVICES,CSS - DIDCOT,CATERING PROVISIONS,18/01/2019,000008250758067,9.00,MILK&MORE
OXFORDSHIRE CC,"CHILDRENS, YOUNG PEOPLE AND FAMILIES",KINGFISHER,MATERIALS,18/01/2019,000008250758071,7.05,THEWORKS.CO.UK
OXFORDSHIRE CC,SOCIAL AND COMMUNITY SERVICES,CSS BICESTER,CATERING PROVISIONS,18/01/2019,000008250758073,9.45,SAINSBURYS SACAT (2243
OXFORDSHIRE CC,"CHILDRENS, YOUNG PEOPLE AND FAMILIES",THAME E&A HOME,"BOOKS, DVDS AND CDS",18/01/2019,000008250758075,24.99,AMZN MKTP UK MB7U238Z4
OXFORDSHIRE CC,"CHILDRENS, YOUNG PEOPLE AND FAMILIES",THAME E&A HOME,CATERING PROVISIONS,18/01/2019,000008250758077,218.10,SAINSBURYS 0600
OXFORDSHIRE CC,"CHILDRENS, YOUNG PEOPLE AND FAMILIES","	LOOKED AFTER CITY 2",PAYMENT TO GOVERNMENT DEPARTMENTS,18/01/2019,000008250758085,54.00,HM PASSPORT OFFICE
OXFORDSHIRE CC,SOCIAL AND COMMUNITY SERVICES,CSS - BANBURY,VEHICLES REPAIRS AND MAINTENANCE,18/01/2019,000008250758087,16.80,FSR LV
OXFORDSHIRE CC,"CHILDRENS, YOUNG PEOPLE AND FAMILIES","	FAMILY SUPPORT CITY3",CATERING,18/01/2019,000008250758089,5.63,MCDONALDS
OXFORDSHIRE CC,"CHILDRENS, YOUNG PEOPLE AND FAMILIES",CNTL ERLY HELP-BBLEY,EQUIPMENT,18/01/2019,000008250758449,187.20,WWW.CSI-PRODUCTS.CO.UK
OXFORDSHIRE CC,SOCIAL AND COMMUNITY SERVICES,"	PUBLIC HEALTH GENERA",PAYMENTS TO TRANSPORT OPERATORS,18/01/2019,000008250758451,-63.30,GWR CORP WEBBTSECOM
OXFORDSHIRE CC,SOCIAL AND COMMUNITY SERVICES,"	PUBLIC HEALTH GENERA","SUPPLIES, STATIONERY AND MATERIALS",18/01/2019,000008250758453,274.80,WWW.LOCAL.GOV.UK
OXFORDSHIRE CC,SOCIAL AND COMMUNITY SERVICES,"	PUBLIC HEALTH GENERA","SUPPLIES, STATIONERY AND MATERIALS",18/01/2019,000008250758455,274.80,WWW.LOCAL.GOV.UK
OXFORDSHIRE CC,"CHILDRENS, YOUNG PEOPLE AND FAMILIES","	40 THE MOORS","SUPPLIES, STATIONERY AND MATERIALS",18/01/2019,000008250758457,311.98,UKOFFICEDIRECT.CO.
OXFORDSHIRE CC,"CHILDRENS, YOUNG PEOPLE AND FAMILIES","	40 THE MOORS","SUPPLIES, STATIONERY AND MATERIALS",18/01/2019,000008250758459,75.67,WWW.STAPLES.CO.UK
OXFORDSHIRE CC,"CHILDRENS, YOUNG PEOPLE AND FAMILIES","	LEAVING CARE SOUTH",OTHER TRANSPORT ARRANGEMENTS,18/01/2019,000008250758463,31.50,WWW.THEKEY.CO.UK
OXFORDSHIRE CC,"CHILDRENS, YOUNG PEOPLE AND FAMILIES","	MALTFIELD HOUSE",CATERING,18/01/2019,000008250758093,9.85,TESCO STORES 2008
OXFORDSHIRE CC,"CHILDRENS, YOUNG PEOPLE AND FAMILIES",THAME E&A HOME,FURNITURE,18/01/2019,000008250758105,17.96,POUNDSTRETCHER 700
OXFORDSHIRE CC,"CHILDRENS, YOUNG PEOPLE AND FAMILIES","	40 THE MOORS",CATERING PROVISIONS,18/01/2019,000008250758471,182.27,ASDA GROCERIES ONLINE
OXFORDSHIRE CC,"CHILDRENS, YOUNG PEOPLE AND FAMILIES","	LEAVING CARE CITY 2",CATERING PROVISIONS,17/01/2019,000008245294643,4.29,CO-OPERATIVE FOOD
OXFORDSHIRE CC,"CHILDRENS, YOUNG PEOPLE AND FAMILIES","	RESIDENTIAL STRATEGY",CATERING,17/01/2019,000008245294651,6.00,GREGGS BICESTER
OXFORDSHIRE CC,"CHILDRENS, YOUNG PEOPLE AND FAMILIES","	RESIDENTIAL STRATEGY",OTHER TRANSPORT ARRANGEMENTS,17/01/2019,000008245294653,3.00,3C_ INDIGO PARK HIGH S
OXFORDSHIRE CC,"CHILDRENS, YOUNG PEOPLE AND FAMILIES","	RESIDENTIAL STRATEGY",SUBSCRIPTIONS,17/01/2019,000008245294655,8.25,CORAL REEF WATERWORLD
OXFORDSHIRE CC,"CHILDRENS, YOUNG PEOPLE AND FAMILIES","	RESIDENTIAL STRATEGY",SUBSCRIPTIONS,17/01/2019,000008245294657,39.00,INTOTHEBLUE.CO
OXFORDSHIRE CC,SOCIAL AND COMMUNITY SERVICES,"	MTFC",HARDWARE AND CROCKERY,17/01/2019,000008245294659,4.50,HILLTOP GARDEN CEN
OXFORDSHIRE CC,CORPORATE CORE,"	CORPORATE FINANCE",PAYMENTS TO TRANSPORT OPERATORS,17/01/2019,000008245294663,70.50,GWR CORP WEBBTSECOM
OXFORDSHIRE CC,CORPORATE CORE,"	CORPORATE FINANCE",PROFESSIONAL SUBSCRIPTIONS,17/01/2019,000008245294665,540.00,WWW.CIPFA.ORG.UK/PFMCO
OXFORDSHIRE CC,CORPORATE CORE,"	CORPORATE FINANCE",PROFESSIONAL SUBSCRIPTIONS,17/01/2019,000008245294667,"1,968.00",WWW.CIPFA.ORG.UK/PFMCO
OXFORDSHIRE CC,CORPORATE CORE,"	CORPORATE FINANCE",PAYMENTS TO TRANSPORT OPERATORS,17/01/2019,000008245294669,24.01,RAILEASY WEB SITE
OXFORDSHIRE CC,"CHILDRENS, YOUNG PEOPLE AND FAMILIES","	LEAVING CARE NORTH",OTHER TRANSPORT ARRANGEMENTS,17/01/2019,000008245294679,67.96,WWW.STORAGEBASE.COM
OXFORDSHIRE CC,"CHILDRENS, YOUNG PEOPLE AND FAMILIES","	LEAVING CARE NORTH",CATERING,17/01/2019,000008245294681,6.89,MCDONALDS
OXFORDSHIRE CC,"CHILDRENS, YOUNG PEOPLE AND FAMILIES","	MALTFIELD HOUSE",CATERING,17/01/2019,000008245294685,8.10,GREGGS ACORN
OXFORDSHIRE CC,"CHILDRENS, YOUNG PEOPLE AND FAMILIES","	FAMILY SUPPORT CITY3",MATERIALS,17/01/2019,000008245294839,3.00,WH SMITH
OXFORDSHIRE CC,"CHILDRENS, YOUNG PEOPLE AND FAMILIES","	FAMILY SUPPORT CITY3",CATERING,17/01/2019,000008245294841,3.24,WILLIAM MORRIS
OXFORDSHIRE CC,CORPORATE CORE,"	CORPORATE FINANCE",PAYMENT TO GOVERNMENT DEPARTMENTS,17/01/2019,000008245294849,410.00,WWW.MONEYCLAIM.GOV
OXFORDSHIRE CC,"CHILDRENS, YOUNG PEOPLE AND FAMILIES",NORTH FSS- WITNEY,PAYMENTS TO TRANSPORT OPERATORS,17/01/2019,000008245294851,103.40,GWR CORP WEBBTSECOM
OXFORDSHIRE CC,SOCIAL AND COMMUNITY SERVICES,FLEET OPERATIONS,PAYMENT TO GOVERNMENT DEPARTMENTS,17/01/2019,000008245294853,"1,035.12",OXFORD UNIV HOSPITAL
OXFORDSHIRE CC,"CHILDRENS, YOUNG PEOPLE AND FAMILIES",THAME E&A HOME,ENTERTAINMENT EXPENSES,17/01/2019,000008245294551,13.83,HOLLYWOOD BOWL
OXFORDSHIRE CC,"CHILDRENS, YOUNG PEOPLE AND FAMILIES",THAME E&A HOME,ENTERTAINMENT EXPENSES,17/01/2019,000008245294553,15.38,HOLLYWOOD BOWL
OXFORDSHIRE CC,"CHILDRENS, YOUNG PEOPLE AND FAMILIES","	RIVERSIDE CENTRE",CATERING PROVISIONS,17/01/2019,000008245294561,13.19,TESCO STORES 4377
OXFORDSHIRE CC,"CHILDRENS, YOUNG PEOPLE AND FAMILIES","	RIVERSIDE CENTRE",DAY ACTIVITIES,17/01/2019,000008245294563,11.00,ROCKSTAR CLIMBING LTD
OXFORDSHIRE CC,CORPORATE CORE,"	COMMUNICATIONS",IT SOFTWARE,17/01/2019,000008245294857,20.06,ZAPIER.COM/CHARGE
OXFORDSHIRE CC,"CHILDRENS, YOUNG PEOPLE AND FAMILIES",WITNEY,OTHER TRANSPORT ARRANGEMENTS,17/01/2019,000008245294571,5.00,OCC ON-STREET PARKING
OXFORDSHIRE CC,"CHILDRENS, YOUNG PEOPLE AND FAMILIES",LOCALITY & COMMUNITY SUPPORT SERVICE,CATERING PROVISIONS,17/01/2019,000008245294573,179.00,MARKS&SPENCER PLC
OXFORDSHIRE CC,"CHILDRENS, YOUNG PEOPLE AND FAMILIES",CNTL EARLY HELP-RHIL,FURNITURE,17/01/2019,000008245294575,49.00,ARGOS RETAIL GROUP
OXFORDSHIRE CC,"CHILDRENS, YOUNG PEOPLE AND FAMILIES","	FAM SUPP SOUTH",PAYMENTS TO TRANSPORT OPERATORS,17/01/2019,000008245294577,40.60,GWR DIDCOT PKWY TO
OXFORDSHIRE CC,"CHILDRENS, YOUNG PEOPLE AND FAMILIES","	SERVICE MANAGER PLAC",CATERING PROVISIONS,17/01/2019,000008245294579,59.50,MARKS&SPENCER PLC
OXFORDSHIRE CC,ENTERPRISEVC,OPERATIONAL COSTS,MATERIALS,17/01/2019,000008245294581,-7.99,AMAZON PRIME
OXFORDSHIRE CC,CORPORATE CORE,REGISTRAR,MATERIALS,17/01/2019,000008245294583,14.99,ARGOS LTD
OXFORDSHIRE CC,ENVIRONMENT AND ECONOMY,"	PROPERTY & PROC MGT",PROFESSIONAL SUBSCRIPTIONS,17/01/2019,000008245294585,183.00,RICS SUBS UK CYBS
OXFORDSHIRE CC,SOCIAL AND COMMUNITY SERVICES,WITNEY MOVE ON HOME,CATERING PROVISIONS,17/01/2019,000008245294591,18.85,SAINSBURYS 0632
OXFORDSHIRE CC,ENVIRONMENT AND ECONOMY,"	MINERALS & WASTE",PAYMENTS TO TRANSPORT OPERATORS,17/01/2019,000008245294613,86.30,GWR CORP WEBBTSECOM
OXFORDSHIRE CC,SOCIAL AND COMMUNITY SERVICES,CORP PROC SERVICE,PAYMENTS TO TRANSPORT OPERATORS,17/01/2019,000008245294617,127.50,WARWICK PWAY SSTP
OXFORDSHIRE CC,ENVIRONMENT AND ECONOMY,"	LPP MANAGEMENT",PAYMENTS TO TRANSPORT OPERATORS,17/01/2019,000008245294625,28.40,GWR CORP WEBBTSECOM
OXFORDSHIRE CC,"CHILDRENS, YOUNG PEOPLE AND FAMILIES",CNTL EARLY HELP-RHIL,LAUNDRY AND DRY CLEANING,17/01/2019,000008245294639,19.80,FOOTWORKS
OXFORDSHIRE CC,"CHILDRENS, YOUNG PEOPLE AND FAMILIES",DIDCOT MOVE-ON HOME,CATERING,17/01/2019,000008245294771,6.10,LEAGUE OF FRNDS OF J R
OXFORDSHIRE CC,"CHILDRENS, YOUNG PEOPLE AND FAMILIES",DIDCOT MOVE-ON HOME,CATERING PROVISIONS,17/01/2019,000008245294773,27.15,SAINSBURYS SACAT 2067
OXFORDSHIRE CC,"CHILDRENS, YOUNG PEOPLE AND FAMILIES","	LOOKED AFTER SOUTH",PAYMENT TO GOVERNMENT DEPARTMENTS,17/01/2019,000008245294475,50.00,SWINDON BOROUGH COUNCI
OXFORDSHIRE CC,"CHILDRENS, YOUNG PEOPLE AND FAMILIES","	LOOKED AFTER SOUTH",OTHER TRANSPORT ARRANGEMENTS,17/01/2019,000008245294477,120.00,PP APPLECABS
OXFORDSHIRE CC,"CHILDRENS, YOUNG PEOPLE AND FAMILIES",EYNSHAM,CATERING PROVISIONS,17/01/2019,000008245294783,9.74,CO-OPERATIVE FOOD
OXFORDSHIRE CC,"CHILDRENS, YOUNG PEOPLE AND FAMILIES",THAME E&A HOME,"BOOKS, DVDS AND CDS",17/01/2019,000008245294791,3.79,AMZN MKTP UK MB4083H84
OXFORDSHIRE CC,"CHILDRENS, YOUNG PEOPLE AND FAMILIES",CNTL ERLY HELP-BBLEY,CATERING PROVISIONS,17/01/2019,000008245294793,1.50,TESCO STORE 2990
OXFORDSHIRE CC,SOCIAL AND COMMUNITY SERVICES,"	PUBLIC HEALTH GENERA",PAYMENTS TO TRANSPORT OPERATORS,17/01/2019,000008245294797,52.50,TRAINLINE
OXFORDSHIRE CC,"CHILDRENS, YOUNG PEOPLE AND FAMILIES","	LEAVING CARE SOUTH",VEHICLE FUEL,17/01/2019,000008245294801,26.00,APPLEGREEN BICESTER
OXFORDSHIRE CC,"CHILDRENS, YOUNG PEOPLE AND FAMILIES","	LEAVING CARE SOUTH",OTHER EXPENSES,17/01/2019,000008245294803,3.69,MCDONALDS
OXFORDSHIRE CC,"CHILDRENS, YOUNG PEOPLE AND FAMILIES","	LOOKED AFTER SOUTH",MATERIALS,17/01/2019,000008245294499,180.00,CURRYS
OXFORDSHIRE CC,ENVIRONMENT AND ECONOMY,"	LEP",CATERING,17/01/2019,000008245294501,-200.00,ALL BAR ONE OXFORD
OXFORDSHIRE CC,"CHILDRENS, YOUNG PEOPLE AND FAMILIES","	LOOKED AFTER CITY 1",PAYMENTS TO OTHER ESTABLISHMENTS,17/01/2019,000008245294503,150.50,TVLICENSING.CO.UK
OXFORDSHIRE CC,SOCIAL AND COMMUNITY SERVICES,CSS - OXFORD,EQUIPMENT,17/01/2019,000008245294509,33.00,ARGOS RETAIL GROUP
OXFORDSHIRE CC,ENVIRONMENT AND ECONOMY,"	FM RECHARGES",GENERAL MAINTENANCE,17/01/2019,000008245294511,934.58, WOLSELEY UK
OXFORDSHIRE CC,ENVIRONMENT AND ECONOMY,HARD FM,EQUIPMENT,17/01/2019,000008245294513,171.02,WILTS ELECTRICAL
OXFORDSHIRE CC,ENVIRONMENT AND ECONOMY,HARD FM,HARDWARE AND CROCKERY,17/01/2019,000008245294515,40.31,HOWDENS - ABINGDON D59
OXFORDSHIRE CC,ENVIRONMENT AND ECONOMY,HARD FM,HARDWARE AND CROCKERY,17/01/2019,000008245294517,142.12,OXON FASTENING SYSTEMS
OXFORDSHIRE CC,ENVIRONMENT AND ECONOMY,HARD FM,HARDWARE AND CROCKERY,17/01/2019,000008245294519,10.98,WICKES
OXFORDSHIRE CC,CORPORATE CORE,,"SUPPLIES, STATIONERY AND MATERIALS",17/01/2019,000008245294811,62.57,LYRECO UK LTD
OXFORDSHIRE CC,CORPORATE CORE,,"SUPPLIES, STATIONERY AND MATERIALS",17/01/2019,000008245294813,3.22,LYRECO UK LTD
OXFORDSHIRE CC,"CHILDRENS, YOUNG PEOPLE AND FAMILIES",EYNSHAM,OTHER TRANSPORT ARRANGEMENTS,17/01/2019,000008245294815,2.00,SEACOURT PARK AND RIDE
OXFORDSHIRE CC,"CHILDRENS, YOUNG PEOPLE AND FAMILIES",FAMILY SUPPORT 2,CATERING PROVISIONS,17/01/2019,000008245294825,14.99,TESCO STORE 2990
OXFORDSHIRE CC,"CHILDRENS, YOUNG PEOPLE AND FAMILIES","	LEAVING CARE NORTH",OTHER EXPENSES,17/01/2019,000008245294827,2.75,COSTA COFFEE
OXFORDSHIRE CC,"CHILDRENS, YOUNG PEOPLE AND FAMILIES",CNTL ERLY HELP-BBLEY,CATERING PROVISIONS,17/01/2019,000008245294829,9.09,TESCO STORE 2990
OXFORDSHIRE CC,ENVIRONMENT AND ECONOMY,HARD FM,GENERAL MAINTENANCE,17/01/2019,000008245294521,88.80, WOLSELEY UK
OXFORDSHIRE CC,ENVIRONMENT AND ECONOMY,HARD FM,EQUIPMENT,17/01/2019,000008245294523,29.65,EDMUNDSON ELECTRIC
OXFORDSHIRE CC,CORPORATE CORE,GRANTS INC VOL SECT,CATERING PROVISIONS,17/01/2019,000008245294525,2.00,SAINSBURYS SACAT 0730
OXFORDSHIRE CC,CORPORATE CORE,"	MANAGEMENT & ADMIN",CATERING,17/01/2019,000008245294527,80.00,LE PAIN QUOTIDIEN LTD
OXFORDSHIRE CC,"CHILDRENS, YOUNG PEOPLE AND FAMILIES","	DISABILITIES TEAM-C",HIRE OF ACCOMMODATION AND FACILITIES,17/01/2019,000008245294541,55.00,HOTEL ON BOOKING.COM
OXFORDSHIRE CC,ENVIRONMENT AND ECONOMY,HARD FM,HARDWARE AND CROCKERY,17/01/2019,000008245294529,101.32,BUILDBASE LIMITED
OXFORDSHIRE CC,ENVIRONMENT AND ECONOMY,COUNTY LIBRARY,GENERAL MAINTENANCE,17/01/2019,000008245294533,79.04, WOLSELEY UK
OXFORDSHIRE CC,ENVIRONMENT AND ECONOMY,COUNTY LIBRARY,GENERAL MAINTENANCE,17/01/2019,000008245294535,49.85, WOLSELEY UK
OXFORDSHIRE CC,SOCIAL AND COMMUNITY SERVICES,CSS - OXFORD,CATERING PROVISIONS,17/01/2019,000008245294539,2.50,ALDI STORES 775-142
OXFORDSHIRE CC,"CHILDRENS, YOUNG PEOPLE AND FAMILIES","	MALTFIELD HOUSE",CATERING,17/01/2019,000008245294687,31.30,COSTA COFFEE 43039930
OXFORDSHIRE CC,"CHILDRENS, YOUNG PEOPLE AND FAMILIES","	MALTFIELD HOUSE",CATERING PROVISIONS,17/01/2019,000008245294689,46.03,CO-OPERATIVE FOOD
OXFORDSHIRE CC,SOCIAL AND COMMUNITY SERVICES,CSS WITNEY,"BOOKS, DVDS AND CDS",17/01/2019,000008245294699,38.47,AMZN MKTP UK MB3CY3HE4
OXFORDSHIRE CC,SOCIAL AND COMMUNITY SERVICES,CSS WITNEY,GAS,17/01/2019,000008245294701,357.91,ALLSTAR BUSINESS SOLUT
OXFORDSHIRE CC,"CHILDRENS, YOUNG PEOPLE AND FAMILIES",SEND,MATERIALS,17/01/2019,000008245294703,6.97,BAKER ROSS
OXFORDSHIRE CC,"CHILDRENS, YOUNG PEOPLE AND FAMILIES","	MALTFIELD HOUSE",CATERING,17/01/2019,000008245294711,18.90,MEDITERRANEAN FISH BAR
OXFORDSHIRE CC,"CHILDRENS, YOUNG PEOPLE AND FAMILIES","	MALTFIELD HOUSE",CATERING PROVISIONS,17/01/2019,000008245294713,46.20,TESCO STORE 2994
OXFORDSHIRE CC,"CHILDRENS, YOUNG PEOPLE AND FAMILIES","	MALTFIELD HOUSE",MATERIALS,17/01/2019,000008245294715,99.95,ARGOS LTD
OXFORDSHIRE CC,"CHILDRENS, YOUNG PEOPLE AND FAMILIES","	MALTFIELD HOUSE",MATERIALS,17/01/2019,000008245294717,75.00,ARGOS LTD
OXFORDSHIRE CC,"CHILDRENS, YOUNG PEOPLE AND FAMILIES","	MALTFIELD HOUSE",ENTERTAINMENT EXPENSES,17/01/2019,000008245294719,21.58,HOLLYWOOD BOWL
OXFORDSHIRE CC,"CHILDRENS, YOUNG PEOPLE AND FAMILIES",NTH EARLY HELP-WITNY,MANAGEMENT CONSULTANT FEES,17/01/2019,000008245294721,150.50,TVLICENSING.CO.UK
OXFORDSHIRE CC,"CHILDRENS, YOUNG PEOPLE AND FAMILIES",NORTH FSS- WITNEY,MATERIALS,17/01/2019,000008245294723,224.98,WWW.ARGOS.CO.UK
OXFORDSHIRE CC,"CHILDRENS, YOUNG PEOPLE AND FAMILIES",NTH EARLY HELP-WITNY,MATERIALS,17/01/2019,000008245294725,89.66,WWW.ARGOS.CO.UK
OXFORDSHIRE CC,CORPORATE CORE,REGISTRAR,"SUPPLIES, STATIONERY AND MATERIALS",17/01/2019,000008245294733,130.68,HIGGS &CO
OXFORDSHIRE CC,"CHILDRENS, YOUNG PEOPLE AND FAMILIES",NORTH FSS- WITNEY,FURNITURE,17/01/2019,000008245294433,32.82,ARGOS RETAIL GROUP
OXFORDSHIRE CC,SOCIAL AND COMMUNITY SERVICES,CSS WITNEY,GAS,17/01/2019,000008245294435,499.00,ALLSTAR BUSINESS SOLUT
OXFORDSHIRE CC,SOCIAL AND COMMUNITY SERVICES,CSS WITNEY,GAS,17/01/2019,000008245294437,95.86,ALLSTAR BUSINESS SOLUT
OXFORDSHIRE CC,"CHILDRENS, YOUNG PEOPLE AND FAMILIES",THAME E&A HOME,CATERING PROVISIONS,17/01/2019,000008245294445,2.60,SAINSBURYS SACAT 2096
OXFORDSHIRE CC,"CHILDRENS, YOUNG PEOPLE AND FAMILIES",THAME E&A HOME,ENTERTAINMENT EXPENSES,17/01/2019,000008245294447,10.65,THAME LEISURE CENTRE
OXFORDSHIRE CC,"CHILDRENS, YOUNG PEOPLE AND FAMILIES","	FAMILY SUPPORT CITY3",OTHER EXPENSES,17/01/2019,000008245294735,189.00,CURRYS ONLINE
OXFORDSHIRE CC,"CHILDRENS, YOUNG PEOPLE AND FAMILIES","	FAMILY SUPPORT CITY3",OTHER EXPENSES,17/01/2019,000008245294737,22.61,WWW.ARGOS.CO.UK
OXFORDSHIRE CC,"CHILDRENS, YOUNG PEOPLE AND FAMILIES",C&I BASE ST ANDREWS,PAYMENT TO GOVERNMENT DEPARTMENTS,17/01/2019,000008245294743,317.50,DVLA VEHICLE TAX
OXFORDSHIRE CC,"CHILDRENS, YOUNG PEOPLE AND FAMILIES","	FAMILY SUPPORT S'TH2",PAYMENTS TO TRANSPORT OPERATORS,17/01/2019,000008245294457,123.00,GWR CORP WEBBTSECOM
OXFORDSHIRE CC,"CHILDRENS, YOUNG PEOPLE AND FAMILIES","	FAMILY SUPPORT S'TH2",CLIENT LODGINGS AND ACCOMMODATION,17/01/2019,000008245294459,72.00,PREMIER INN
OXFORDSHIRE CC,"CHILDRENS, YOUNG PEOPLE AND FAMILIES","	FAMILY SUPPORT S'TH2",CLIENT LODGINGS AND ACCOMMODATION,17/01/2019,000008245294461,70.00,THE GEORGE HOTEL
OXFORDSHIRE CC,"CHILDRENS, YOUNG PEOPLE AND FAMILIES",THAME E&A HOME,"SUPPLIES, STATIONERY AND MATERIALS",17/01/2019,000008245294463,3.95,GLYNSWOOD OF THAME
OXFORDSHIRE CC,CORPORATE CORE,OPERATIONS,"SUPPLIES, STATIONERY AND MATERIALS",16/01/2019,000008240637223,26.88,AMAZON.CO.UK MB1RK6564
OXFORDSHIRE CC,CORPORATE CORE,LIBRARY COLLECTIONS,"BOOKS, DVDS AND CDS",16/01/2019,000008240637225,19.00,SOCIETY OF GENEALO
OXFORDSHIRE CC,ENVIRONMENT AND ECONOMY,"	WASTE MNGMNT GEN",PAYMENTS TO TRANSPORT OPERATORS,16/01/2019,000008240637227,112.30,GWR CORP WEBBTSECOM
OXFORDSHIRE CC,"CHILDRENS, YOUNG PEOPLE AND FAMILIES","	MUSIC UNALLOCABLE",EQUIPMENT,16/01/2019,000008240637229,39.90,AMZN MKTP UK MB21X35R4
OXFORDSHIRE CC,SOCIAL AND COMMUNITY SERVICES,CSS - OXFORD,EQUIPMENT,16/01/2019,000008240637231,10.84,AMZN MKTP UK MB3415MW4
OXFORDSHIRE CC,ENVIRONMENT AND ECONOMY,"	R & A STAFF & OPS",IT SOFTWARE,16/01/2019,000008240637233,30.34,ADOBE  IL CREATIVE CLD
OXFORDSHIRE CC,SOCIAL AND COMMUNITY SERVICES,"	MUSEUMS COLLECTIONS",OTHER PREMISES RELATED COSTS,16/01/2019,000008240637253,68.06,AMZN MKTP UK MB4CH65E4
OXFORDSHIRE CC,"CHILDRENS, YOUNG PEOPLE AND FAMILIES",EDT,EDUCATIONAL AND VOCATIONAL TRAINING ,16/01/2019,000008240637255,66.00,SAINSBURYS (2305)
OXFORDSHIRE CC,"CHILDRENS, YOUNG PEOPLE AND FAMILIES",CNTL EARLY HELP-RHIL,CATERING PROVISIONS,16/01/2019,000008240637281,107.50,TESCO STORE 2994
OXFORDSHIRE CC,CORPORATE CORE,"	LEGAL SERVICES",LEGAL COSTS,16/01/2019,000008240637283,162.00,EYE NETWORK
OXFORDSHIRE CC,"CHILDRENS, YOUNG PEOPLE AND FAMILIES","	LEAVING CARE NORTH",PAYMENT TO GOVERNMENT DEPARTMENTS,16/01/2019,000008240637291,75.50,HM PASSPORT OFFICE
OXFORDSHIRE CC,ENVIRONMENT AND ECONOMY,"	OXFORDSHIRE MUSEUM",PROFESSIONAL SUBSCRIPTIONS,16/01/2019,000008240637293,150.00,AIMUSEUMS
OXFORDSHIRE CC,"CHILDRENS, YOUNG PEOPLE AND FAMILIES","	LOOKED AFTER CITY 2",NON-STAFF SUBSISTENCE AND EXPENSES,16/01/2019,000008240637295,35.37,TESCO STORE 2994
OXFORDSHIRE CC,SOCIAL AND COMMUNITY SERVICES,"	MTFC",CATERING PROVISIONS,16/01/2019,000008240637297,5.52,TESCO STORES 2994
OXFORDSHIRE CC,SOCIAL AND COMMUNITY SERVICES,"	MTFC",ENTERTAINMENT EXPENSES,16/01/2019,000008240637299,6.95,THE PARTYMAN CO
OXFORDSHIRE CC,"CHILDRENS, YOUNG PEOPLE AND FAMILIES","	LEAVING CARE NORTH",PAYMENT TO GOVERNMENT DEPARTMENTS,16/01/2019,000008240637307,20.00,DVLA DRV  LICENCE
OXFORDSHIRE CC,"CHILDRENS, YOUNG PEOPLE AND FAMILIES","	LEAVING CARE NORTH",CATERING,16/01/2019,000008240637309,4.39,MCDONALDS
OXFORDSHIRE CC,CORPORATE CORE,DEPUTY DIRECTOR &MAN,PAYMENTS TO TRANSPORT OPERATORS,16/01/2019,000008240637343,181.20,GWR WEBSALES
OXFORDSHIRE CC,ENVIRONMENT AND ECONOMY,"	ROW MAINT",MATERIALS,16/01/2019,000008240637345,165.20,WWW.AWBS.LTD.COM
OXFORDSHIRE CC,ENVIRONMENT AND ECONOMY,"	ROW MAINT",VEHICLES REPAIRS AND MAINTENANCE,16/01/2019,000008240637347,208.80,KALEHURST GARDEN MACHI
OXFORDSHIRE CC,ENVIRONMENT AND ECONOMY,"	ROW MAINT",VEHICLES REPAIRS AND MAINTENANCE,16/01/2019,000008240637347,337.62,KALEHURST GARDEN MACHI
OXFORDSHIRE CC,ENVIRONMENT AND ECONOMY,"	FLEET OPERATIONS",ROAD FUND LICENCES AND MOTS,16/01/2019,000008240637349,165.00,DVLA - ENF
OXFORDSHIRE CC,ENVIRONMENT AND ECONOMY,"	FLEET OPERATIONS",ROAD FUND LICENCES AND MOTS,16/01/2019,000008240637351,167.50,DVLA VEHICLE TAX
OXFORDSHIRE CC,"CHILDRENS, YOUNG PEOPLE AND FAMILIES","	PLACEMENT DUTY TEAM",PAYMENTS TO TRANSPORT OPERATORS,16/01/2019,000008240637355,6.80,BANBURY STATION T/O
OXFORDSHIRE CC,"CHILDRENS, YOUNG PEOPLE AND FAMILIES","	FAMILY SUPPORT CITY3",POSTAGE AND DELIVERY,16/01/2019,000008240637363,3.95,THE POST OFFICE
OXFORDSHIRE CC,"CHILDRENS, YOUNG PEOPLE AND FAMILIES","	FAMILY SUPPORT CITY3",OTHER EXPENSES,16/01/2019,000008240637365,9.25,GRO HM PASSPORT OFFICE
OXFORDSHIRE CC,"CHILDRENS, YOUNG PEOPLE AND FAMILIES","	FAMILY SUPPORT CITY3",OTHER EXPENSES,16/01/2019,000008240637367,21.50,OCC REGISTRARS (M)
OXFORDSHIRE CC,"CHILDRENS, YOUNG PEOPLE AND FAMILIES","	40 THE MOORS",HIRE OF ACCOMMODATION AND FACILITIES,16/01/2019,000008240637379,156.00,SANDGATE WORCESTER LTD
OXFORDSHIRE CC,"CHILDRENS, YOUNG PEOPLE AND FAMILIES","	40 THE MOORS",SUBSCRIPTIONS,16/01/2019,000008240637381,34.99,VIDA VALUE GYMS LIMITE
OXFORDSHIRE CC,SOCIAL AND COMMUNITY SERVICES,ADULT SERVICES IMPROVEMENT BOARD,CATERING PROVISIONS,16/01/2019,000008240637389,87.00,MARKS&SPENCER PLC
OXFORDSHIRE CC,ENVIRONMENT AND ECONOMY,DIDCOT LIBRARY,EQUIPMENT,16/01/2019,000008240637391,47.99,AMAZON.CO.UK MB2SS65E4
OXFORDSHIRE CC,ENVIRONMENT AND ECONOMY,CENTRAL LIBRARY,PROFESSIONAL SUBSCRIPTIONS,16/01/2019,000008240637393,111.72,PPL PRS LTD
OXFORDSHIRE CC,CORPORATE CORE,"	PERSONNEL",PAYMENTS TO TRANSPORT OPERATORS,16/01/2019,000008240637399,42.00,TRAINLINE
OXFORDSHIRE CC,CORPORATE CORE,"	PERSONNEL",PAYMENTS TO TRANSPORT OPERATORS,16/01/2019,000008240637401,87.80,TRAINLINE
OXFORDSHIRE CC,ENVIRONMENT AND ECONOMY,THE RIDGEWAY,CATERING PROVISIONS,16/01/2019,000008240637405,3.13,TESCO STORES 4395
OXFORDSHIRE CC,"CHILDRENS, YOUNG PEOPLE AND FAMILIES",DIDCOT MOVE-ON HOME,OTHER TRANSPORT ARRANGEMENTS,16/01/2019,000008240637421,4.00,WORCESTER STREET CAR P
OXFORDSHIRE CC,"CHILDRENS, YOUNG PEOPLE AND FAMILIES",DIDCOT MOVE-ON HOME,CATERING,16/01/2019,000008240637423,11.18,MCDONALDS
OXFORDSHIRE CC,"CHILDRENS, YOUNG PEOPLE AND FAMILIES",DIDCOT MOVE-ON HOME,CATERING PROVISIONS,16/01/2019,000008240637425,7.60,SAINSBURYS SACAT 2067
OXFORDSHIRE CC,SOCIAL AND COMMUNITY SERVICES,CSS - DIDCOT,EQUIPMENT,16/01/2019,000008240637063,18.48,AMAZON.CO.UK MB2AL35Q4
OXFORDSHIRE CC,"CHILDRENS, YOUNG PEOPLE AND FAMILIES",THAME E&A HOME,CLOTHING AND UNIFORMS,16/01/2019,000008240637065,17.50,PRIMARK 440
OXFORDSHIRE CC,"CHILDRENS, YOUNG PEOPLE AND FAMILIES",KINGFISHER,CATERING,16/01/2019,000008240637067,7.65,COSTA COFFEE ABINGDON
OXFORDSHIRE CC,"CHILDRENS, YOUNG PEOPLE AND FAMILIES","	LOOKED AFTER CITY 1",MATERIALS,16/01/2019,000008240637073,406.94,WWW.ARGOS.CO.UK
OXFORDSHIRE CC,"CHILDRENS, YOUNG PEOPLE AND FAMILIES","	LOOKED AFTER CITY 1",MATERIALS,16/01/2019,000008240637075,25.99,WWW.ARGOS.CO.UK
OXFORDSHIRE CC,ENVIRONMENT AND ECONOMY,"	MUSEUM DEV OFFICER",OTHER TRANSPORT ARRANGEMENTS,16/01/2019,000008240637439,4.00,3C_ OXFORDSHIRE COUNTY
OXFORDSHIRE CC,ENVIRONMENT AND ECONOMY,"	ABBEY HOUSE",POSTAGE AND DELIVERY,16/01/2019,000008240637461,511.18,WWW.NEOPOST.CO.UK
OXFORDSHIRE CC,ENVIRONMENT AND ECONOMY,"	TVERC",IT SERVICES,16/01/2019,000008240637455,7.99,DROPBOX WDH2WD42MRC6
OXFORDSHIRE CC,"CHILDRENS, YOUNG PEOPLE AND FAMILIES",THAME E&A HOME,MATERIALS,16/01/2019,000008240637083,11.48,AMAZON.CO.UK MB1KO75T4
OXFORDSHIRE CC,"CHILDRENS, YOUNG PEOPLE AND FAMILIES",CSS WALLINGFORD,CATERING PROVISIONS,16/01/2019,000008240637101,7.35,SAINSBURYS SACAT 2244
OXFORDSHIRE CC,"CHILDRENS, YOUNG PEOPLE AND FAMILIES","	NCS",PAYMENTS TO TRANSPORT OPERATORS,16/01/2019,000008240637103,68.40,BICESTER VIL SSTP
OXFORDSHIRE CC,"CHILDRENS, YOUNG PEOPLE AND FAMILIES","	LOOKED AFTER CITY 1",PAYMENTS TO TRANSPORT OPERATORS,16/01/2019,000008240637105,105.51,TRAINLINE
OXFORDSHIRE CC,"CHILDRENS, YOUNG PEOPLE AND FAMILIES","	MALTFIELD HOUSE",FURNITURE,16/01/2019,000008240637093,14.00,B & Q 1156
OXFORDSHIRE CC,"CHILDRENS, YOUNG PEOPLE AND FAMILIES","	OSCB",PAYMENTS TO TRANSPORT OPERATORS,16/01/2019,000008240637095,-55.00,TRAINLINE
OXFORDSHIRE CC,"CHILDRENS, YOUNG PEOPLE AND FAMILIES",PUBLIC HEALTH GENERAL,"PUBLICITY, PROMOTIONS AND ADVERTISEMENT",16/01/2019,000008240637097,600.00,FACEBK JXQEDJS8V2
OXFORDSHIRE CC,"CHILDRENS, YOUNG PEOPLE AND FAMILIES",CSS WALLINGFORD,CATERING PROVISIONS,16/01/2019,000008240637099,17.80,SAINSBURYS SACAT 2244
OXFORDSHIRE CC,"CHILDRENS, YOUNG PEOPLE AND FAMILIES","	MALTFIELD HOUSE",CATERING,16/01/2019,000008240637463,51.29,TESCO STORES 2008
OXFORDSHIRE CC,"CHILDRENS, YOUNG PEOPLE AND FAMILIES","	40 THE MOORS",EDUCATIONAL AND VOCATIONAL TRAINING ,16/01/2019,000008240637473,25.00,PARENTPAY E-COM R
OXFORDSHIRE CC,"CHILDRENS, YOUNG PEOPLE AND FAMILIES","	40 THE MOORS",VEHICLE FUEL,16/01/2019,000008240637475,5.50,TESCO PFS 3418
OXFORDSHIRE CC,"CHILDRENS, YOUNG PEOPLE AND FAMILIES","	40 THE MOORS",CATERING,16/01/2019,000008240637477,6.29,MCDONALDS
OXFORDSHIRE CC,"CHILDRENS, YOUNG PEOPLE AND FAMILIES","	MALTFIELD HOUSE",CATERING,16/01/2019,000008240637465,5.85,TESCO STORES 2008
OXFORDSHIRE CC,"CHILDRENS, YOUNG PEOPLE AND FAMILIES","	40 THE MOORS",ENTERTAINMENT EXPENSES,16/01/2019,000008240637479,17.10,CINEWORLD WIT CP
OXFORDSHIRE CC,"CHILDRENS, YOUNG PEOPLE AND FAMILIES","	MALTFIELD HOUSE",CATERING,16/01/2019,000008240637467,3.20,TESCO STORES 2008
OXFORDSHIRE CC,CORPORATE CORE,MOTOR FLEET,MOTOR IF FEES,16/01/2019,000008240637481,102.00,SIDNEY H HOOPER & COMP
OXFORDSHIRE CC,CORPORATE CORE,,"SUPPLIES, STATIONERY AND MATERIALS",16/01/2019,000008240637483,173.32,LYRECO UK LTD
OXFORDSHIRE CC,CORPORATE CORE,,"SUPPLIES, STATIONERY AND MATERIALS",16/01/2019,000008240637485,307.85,LYRECO UK LTD
OXFORDSHIRE CC,"CHILDRENS, YOUNG PEOPLE AND FAMILIES","	LOOKED AFTER CITY 1",PAYMENTS TO TRANSPORT OPERATORS,16/01/2019,000008240637107,73.77,TRAINLINE
OXFORDSHIRE CC,"CHILDRENS, YOUNG PEOPLE AND FAMILIES","	LOOKED AFTER CITY 1",HIRE OF ACCOMMODATION AND FACILITIES,16/01/2019,000008240637109,174.79,SE BOUTIQUE HOTEL
OXFORDSHIRE CC,ENVIRONMENT AND ECONOMY,HARD FM,HARDWARE AND CROCKERY,16/01/2019,000008240637123,28.48,SCREWFIX OXFORD
OXFORDSHIRE CC,ENVIRONMENT AND ECONOMY,HARD FM,HARDWARE AND CROCKERY,16/01/2019,000008240637125,178.49,BUILDBASE LIMITED
OXFORDSHIRE CC,ENVIRONMENT AND ECONOMY,HARD FM,HARDWARE AND CROCKERY,16/01/2019,000008240637127,17.17,BUILDBASE LIMITED
OXFORDSHIRE CC,SOCIAL AND COMMUNITY SERVICES,CSS - OXFORD,DISABILITY AIDS AND EQUIPMENT,16/01/2019,000008240637115,74.99,MOBILITYSMA
OXFORDSHIRE CC,ENVIRONMENT AND ECONOMY,HARD FM,GENERAL MAINTENANCE,16/01/2019,000008240637117,148.46, WOLSELEY UK
OXFORDSHIRE CC,ENVIRONMENT AND ECONOMY,HARD FM,HARDWARE AND CROCKERY,16/01/2019,000008240637119,85.43,DULUX DECORATOR CENTRE
OXFORDSHIRE CC,ENVIRONMENT AND ECONOMY,HARD FM,HARDWARE AND CROCKERY,16/01/2019,000008240637121,52.09,BUILDBASE LIMITED
OXFORDSHIRE CC,"CHILDRENS, YOUNG PEOPLE AND FAMILIES",FAMILY SUPPORT 2,EDUCATIONAL AND VOCATIONAL TRAINING ,16/01/2019,000008240637493,298.35,WESTMINSTER INSIGHT
OXFORDSHIRE CC,"CHILDRENS, YOUNG PEOPLE AND FAMILIES",FAMILY SUPPORT 2,"BOOKS, DVDS AND CDS",16/01/2019,000008240637495,-86.10,AMZ AMAZON WAREHOUSE D
OXFORDSHIRE CC,ENTERPRISEVC,,CAR LEASING - PRIVATE RENTALS,16/01/2019,000008240637497,43.18,ENTERPRISE RENT-A-CAR
OXFORDSHIRE CC,ENTERPRISEVC,,CAR LEASING - PRIVATE RENTALS,16/01/2019,000008240637499,42.96,ENTERPRISE RENT-A-CAR
OXFORDSHIRE CC,ENTERPRISEVC,,CAR LEASING - PRIVATE RENTALS,16/01/2019,000008240637501,64.69,ENTERPRISE RENT-A-CAR
OXFORDSHIRE CC,ENTERPRISEVC,,CAR LEASING - PRIVATE RENTALS,16/01/2019,000008240637503,46.12,ENTERPRISE RENT-A-CAR
OXFORDSHIRE CC,ENTERPRISEVC,,CAR LEASING - PRIVATE RENTALS,16/01/2019,000008240637505,29.30,ENTERPRISE RENT-A-CAR
OXFORDSHIRE CC,ENTERPRISEVC,,CAR LEASING - PRIVATE RENTALS,16/01/2019,000008240637507,161.20,ENTERPRISE RENT-A-CAR
OXFORDSHIRE CC,ENVIRONMENT AND ECONOMY,HARD FM,HARDWARE AND CROCKERY,16/01/2019,000008240637129,63.59,HOWDENS - ABINGDON D59
OXFORDSHIRE CC,ENVIRONMENT AND ECONOMY,HARD FM,HARDWARE AND CROCKERY,16/01/2019,000008240637131,106.24,SCREWFIX OXFORD
OXFORDSHIRE CC,ENVIRONMENT AND ECONOMY,HARD FM,HARDWARE AND CROCKERY,16/01/2019,000008240637133,6.67,SCREWFIX OXFORD
OXFORDSHIRE CC,ENVIRONMENT AND ECONOMY,HARD FM,EQUIPMENT,16/01/2019,000008240637135,88.86,GAP-EDMUNDSON
OXFORDSHIRE CC,ENVIRONMENT AND ECONOMY,HARD FM,EQUIPMENT,16/01/2019,000008240637137,31.46,DENMANS ELECTRICAL
OXFORDSHIRE CC,SOCIAL AND COMMUNITY SERVICES,CSS - OXFORD,CATERING PROVISIONS,16/01/2019,000008240637145,21.52,ALDI STORES 775-142
OXFORDSHIRE CC,"CHILDRENS, YOUNG PEOPLE AND FAMILIES","	DISABILITIES TEAM-C",OTHER EXPENSES,16/01/2019,000008240637147,30.19,AMAZON.CO.UK MB4GF95V4
OXFORDSHIRE CC,ENVIRONMENT AND ECONOMY,COUNTY LIBRARY,GENERAL MAINTENANCE,16/01/2019,000008240637139,28.80, WOLSELEY UK
OXFORDSHIRE CC,ENVIRONMENT AND ECONOMY,COUNTY LIBRARY,EQUIPMENT,16/01/2019,000008240637141,15.31,BSS OXFORD
OXFORDSHIRE CC,"CHILDRENS, YOUNG PEOPLE AND FAMILIES","	LOOKED AFTER NORTH",HIRE OF ACCOMMODATION AND FACILITIES,16/01/2019,000008240637143,-9.50,PREMIER INN
OXFORDSHIRE CC,ENTERPRISEVC,,CAR LEASING - PRIVATE RENTALS,16/01/2019,000008240637509,80.16,ENTERPRISE RENT-A-CAR
OXFORDSHIRE CC,ENTERPRISEVC,,CAR LEASING - PRIVATE RENTALS,16/01/2019,000008240637511,101.58,ENTERPRISE RENT-A-CAR
OXFORDSHIRE CC,ENTERPRISEVC,,CAR LEASING - PRIVATE RENTALS,16/01/2019,000008240637527,43.18,ENTERPRISE RENT-A-CAR
OXFORDSHIRE CC,ENTERPRISEVC,,CAR LEASING - PRIVATE RENTALS,16/01/2019,000008240637513,31.66,ENTERPRISE RENT-A-CAR
OXFORDSHIRE CC,ENTERPRISEVC,,CAR LEASING - PRIVATE RENTALS,16/01/2019,000008240637515,110.68,ENTERPRISE RENT-A-CAR
OXFORDSHIRE CC,ENTERPRISEVC,,CAR LEASING - PRIVATE RENTALS,16/01/2019,000008240637517,113.21,ENTERPRISE RENT-A-CAR
OXFORDSHIRE CC,"CHILDRENS, YOUNG PEOPLE AND FAMILIES","	LEAVING CARE NORTH",OTHER EXPENSES,16/01/2019,000008240637529,30.00,WWW.CITIZENCARD.COM
OXFORDSHIRE CC,ENTERPRISEVC,,CAR LEASING - PRIVATE RENTALS,16/01/2019,000008240637519,80.16,ENTERPRISE RENT-A-CAR
OXFORDSHIRE CC,ENTERPRISEVC,,CAR LEASING - PRIVATE RENTALS,16/01/2019,000008240637521,88.02,ENTERPRISE RENT-A-CAR
OXFORDSHIRE CC,ENTERPRISEVC,,CAR LEASING - PRIVATE RENTALS,16/01/2019,000008240637523,48.94,ENTERPRISE RENT-A-CAR
OXFORDSHIRE CC,ENTERPRISEVC,,CAR LEASING - PRIVATE RENTALS,16/01/2019,000008240637525,65.02,ENTERPRISE RENT-A-CAR
OXFORDSHIRE CC,"CHILDRENS, YOUNG PEOPLE AND FAMILIES",THAME E&A HOME,CATERING PROVISIONS,16/01/2019,000008240637153,6.00,TESCO STORES-2008
OXFORDSHIRE CC,SOCIAL AND COMMUNITY SERVICES,CSS - OXFORD,MATERIALS,16/01/2019,000008240637155,20.34,ALDI STORES 775-142
OXFORDSHIRE CC,"CHILDRENS, YOUNG PEOPLE AND FAMILIES","	LEAVING CARE CITY 1",CATERING,16/01/2019,000008240637157,2.65,CAFFE NERO
OXFORDSHIRE CC,"CHILDRENS, YOUNG PEOPLE AND FAMILIES",THAME E&A HOME,"BOOKS, DVDS AND CDS",16/01/2019,000008240637161,12.99,AMZN MKTP UK MB5HG4MV4
OXFORDSHIRE CC,"CHILDRENS, YOUNG PEOPLE AND FAMILIES",THAME E&A HOME,"BOOKS, DVDS AND CDS",16/01/2019,000008240637163,16.98,AMZN MKTP UK MB8HW3M54
OXFORDSHIRE CC,"CHILDRENS, YOUNG PEOPLE AND FAMILIES",THAME E&A HOME,DRUGS AND MEDICAL SUPPLIES,16/01/2019,000008240637165,4.19,"BOOTS,THAME"
OXFORDSHIRE CC,"CHILDRENS, YOUNG PEOPLE AND FAMILIES",THAME E&A HOME,CATERING PROVISIONS,16/01/2019,000008240637167,7.40,SAINSBURYS SACAT 2096
OXFORDSHIRE CC,"CHILDRENS, YOUNG PEOPLE AND FAMILIES",NORTH FSS- BANBURY,PAYMENT TO GOVERNMENT DEPARTMENTS,16/01/2019,000008240637169,13.00,LBHACKNEY PYMT
OXFORDSHIRE CC,"CHILDRENS, YOUNG PEOPLE AND FAMILIES","	LEAVING CARE NORTH",OTHER EXPENSES,16/01/2019,000008240637533,2.50,WM MORRISONS STORE
OXFORDSHIRE CC,"CHILDRENS, YOUNG PEOPLE AND FAMILIES","	DIRECTOR'S OFFICE",PAYMENTS TO TRANSPORT OPERATORS,16/01/2019,000008240637535,78.55,TRAINLINE
OXFORDSHIRE CC,"CHILDRENS, YOUNG PEOPLE AND FAMILIES","	LEAVING CARE NORTH",OTHER TRANSPORT ARRANGEMENTS,16/01/2019,000008240637531,4.00,WESTGATE OXFORD CAR PA
OXFORDSHIRE CC,"CHILDRENS, YOUNG PEOPLE AND FAMILIES",DEPUTY DIRECTOR &MAN,PAYMENTS TO TRANSPORT OPERATORS,16/01/2019,000008240637537,52.50,TRAINLINE
OXFORDSHIRE CC,"CHILDRENS, YOUNG PEOPLE AND FAMILIES","	OSCB","SUPPLIES, STATIONERY AND MATERIALS",16/01/2019,000008240637539,32.93,EB  YOUTH IN MIND CONF
OXFORDSHIRE CC,"CHILDRENS, YOUNG PEOPLE AND FAMILIES",CNTL ERLY HELP-BBLEY,CATERING PROVISIONS,16/01/2019,000008240637541,3.00,TESCO STORE 2990
OXFORDSHIRE CC,CORPORATE CORE,BUSINESS SUPPORT,PAYMENTS TO TRANSPORT OPERATORS,16/01/2019,000008240637179,41.36,TRAINLINE
OXFORDSHIRE CC,SOCIAL AND COMMUNITY SERVICES,WITNEY MOVE ON HOME,CATERING PROVISIONS,16/01/2019,000008240637197,38.29,SAINSBURYS 0632
OXFORDSHIRE CC,"CHILDRENS, YOUNG PEOPLE AND FAMILIES",EYNSHAM,CATERING,16/01/2019,000008240637555,139.38,TESCO STORES 2008
OXFORDSHIRE CC,SOCIAL AND COMMUNITY SERVICES,WITNEY MOVE ON HOME,CATERING PROVISIONS,16/01/2019,000008240637199,14.20,SAINSBURYS 0632
OXFORDSHIRE CC,"CHILDRENS, YOUNG PEOPLE AND FAMILIES",DIDCOT MOVE-ON HOME,CATERING PROVISIONS,16/01/2019,000008240637203,20.68,ICELAND
OXFORDSHIRE CC,ENVIRONMENT AND ECONOMY,"	ROW MAINT",HARDWARE AND CROCKERY,16/01/2019,000008240637215,202.00,FR JONES AND SON LTD
OXFORDSHIRE CC,ENVIRONMENT AND ECONOMY,"	ROW MAINT",HARDWARE AND CROCKERY,16/01/2019,000008240637215,196.40,FR JONES AND SON LTD
OXFORDSHIRE CC,SOCIAL AND COMMUNITY SERVICES,CSS - BANBURY,CATERING PROVISIONS,15/01/2019,000008236367889,74.03,SAINSBURYS TO YOU 0642
OXFORDSHIRE CC,SOCIAL AND COMMUNITY SERVICES,"	OXF. EMPLOYMENT SERV",CATERING PROVISIONS,15/01/2019,000008236368253,57.91,WAITROSE 581
OXFORDSHIRE CC,"CHILDRENS, YOUNG PEOPLE AND FAMILIES","	MUSIC UNALLOCABLE","BOOKS, DVDS AND CDS",15/01/2019,000008236368265,337.55,WWW.MUSICGIFTS.CO.
OXFORDSHIRE CC,SOCIAL AND COMMUNITY SERVICES,CSS - OXFORD,EQUIPMENT,15/01/2019,000008236368277,19.18,AMAZON.CO.UK MB6GX2VI4
OXFORDSHIRE CC,CORPORATE CORE,INSURANCE TEAM,STAFF SUBSISTENCE,15/01/2019,000008236368283,62.30,GWR CORP WEBBTSECOM
OXFORDSHIRE CC,ENVIRONMENT AND ECONOMY,MEMBERS' BAR,CATERING,15/01/2019,000008236368285,39.42,BOOKER LIMITED OXFORD
OXFORDSHIRE CC,SOCIAL AND COMMUNITY SERVICES,CSS - OXFORD,ENTERTAINMENT EXPENSES,15/01/2019,000008236368281,61.00,ARTS AT THE OLD FIRE S
OXFORDSHIRE CC,SOCIAL AND COMMUNITY SERVICES,"	MUSEUMS COLLECTIONS",HIRE OF EQUIPMENT,15/01/2019,000008236368303,288.00,MICKS SKIPS LTD
OXFORDSHIRE CC,"CHILDRENS, YOUNG PEOPLE AND FAMILIES","	MALTFIELD HOUSE",OTHER EXPENSES,15/01/2019,000008236368317,30.55,VUE BSL LTD
OXFORDSHIRE CC,CORPORATE CORE,"	ORGANISATIONAL DEV'T","SUPPLIES, STATIONERY AND MATERIALS",15/01/2019,000008236368335,"4,500.00",OXFORD BROOKES UNI
OXFORDSHIRE CC,"CHILDRENS, YOUNG PEOPLE AND FAMILIES","	RIVERSIDE CENTRE",CATERING PROVISIONS,15/01/2019,000008236368361,8.10,TESCO STORES 4377
OXFORDSHIRE CC,"CHILDRENS, YOUNG PEOPLE AND FAMILIES","	RIVERSIDE CENTRE",DAY ACTIVITIES,15/01/2019,000008236368363,10.00,ROCKSTAR CLIMBING LTD
OXFORDSHIRE CC,"CHILDRENS, YOUNG PEOPLE AND FAMILIES","	RIVERSIDE CENTRE",CATERING PROVISIONS,15/01/2019,000008236368365,8.49,CO-OPERATIVE FOOD
OXFORDSHIRE CC,"CHILDRENS, YOUNG PEOPLE AND FAMILIES","	LEAVING CARE NORTH",CATERING,15/01/2019,000008236368369,6.49,KFC-BANBURY
OXFORDSHIRE CC,"CHILDRENS, YOUNG PEOPLE AND FAMILIES","	LEAVING CARE NORTH",OTHER EXPENSES,15/01/2019,000008236368373,154.38,TESCO STORE 2064
OXFORDSHIRE CC,SOCIAL AND COMMUNITY SERVICES,LEAVING CARE NORTH,OTHER TRANSPORT ARRANGEMENTS,15/01/2019,000008236368383,4.00,WESTGATE OXFORD CAR PA
OXFORDSHIRE CC,SOCIAL AND COMMUNITY SERVICES,"	MTFC",CATERING,15/01/2019,000008236368385,2.30,MILLETS FARM RESTAURA
OXFORDSHIRE CC,SOCIAL AND COMMUNITY SERVICES,"	MTFC",ENTERTAINMENT EXPENSES,15/01/2019,000008236368389,4.50,SPROUTS PLAY BARN
OXFORDSHIRE CC,ENVIRONMENT AND ECONOMY,CENTRAL TEAM OCS,PAYMENTS TO TRANSPORT OPERATORS,15/01/2019,000008236368395,78.04,TRAINLINE
OXFORDSHIRE CC,"CHILDRENS, YOUNG PEOPLE AND FAMILIES",KINGFISHER,CATERING,15/01/2019,000008236368417,8.92,FRANKLEY N/E BK
OXFORDSHIRE CC,"CHILDRENS, YOUNG PEOPLE AND FAMILIES",KINGFISHER,VEHICLE FUEL,15/01/2019,000008236368421,16.79,TESCO STORES-2064
OXFORDSHIRE CC,"CHILDRENS, YOUNG PEOPLE AND FAMILIES",KINGFISHER,CATERING,15/01/2019,000008236368419,9.99,MOTO FRANKLEY N/E COST
OXFORDSHIRE CC,"CHILDRENS, YOUNG PEOPLE AND FAMILIES","	MALTFIELD HOUSE",MATERIALS,15/01/2019,000008236368425,2.98,WH SMITH
OXFORDSHIRE CC,"CHILDRENS, YOUNG PEOPLE AND FAMILIES","	MALTFIELD HOUSE",CATERING PROVISIONS,15/01/2019,000008236368429,16.61,CO-OPERATIVE FOOD
OXFORDSHIRE CC,"CHILDRENS, YOUNG PEOPLE AND FAMILIES","	LEAVING CARE NORTH",OTHER EXPENSES,15/01/2019,000008236368765,6.29,"BOOTS,BANBURY"
OXFORDSHIRE CC,"CHILDRENS, YOUNG PEOPLE AND FAMILIES","	LEAVING CARE NORTH",OTHER EXPENSES,15/01/2019,000008236368767,3.75,COSTA BICESTER
OXFORDSHIRE CC,"CHILDRENS, YOUNG PEOPLE AND FAMILIES","	LEAVING CARE NORTH",CLOTHING AND UNIFORMS,15/01/2019,000008236368769,55.00,J D SPORTS 681
OXFORDSHIRE CC,ENVIRONMENT AND ECONOMY,"	LEP",MATERIALS,15/01/2019,000008236368459,59.46,MAILCHIMP    MONTHLY
OXFORDSHIRE CC,SOCIAL AND COMMUNITY SERVICES,CSS WITNEY,CATERING PROVISIONS,15/01/2019,000008236368469,180.95,TESCO STORES 2008
OXFORDSHIRE CC,"CHILDRENS, YOUNG PEOPLE AND FAMILIES","	AAC EQUIPMENT",PURCHASE OF IT EQUIPMENT,15/01/2019,000008236368473,45.00,SAINSBURYS LOC4049
OXFORDSHIRE CC,"CHILDRENS, YOUNG PEOPLE AND FAMILIES","	AAC EQUIPMENT",PURCHASE OF IT EQUIPMENT,15/01/2019,000008236368475,45.00,SAINSBURYS LOC4049
OXFORDSHIRE CC,"CHILDRENS, YOUNG PEOPLE AND FAMILIES","	AAC EQUIPMENT",PURCHASE OF IT EQUIPMENT,15/01/2019,000008236368479,45.00,SAINSBURYS LOC4049
OXFORDSHIRE CC,"CHILDRENS, YOUNG PEOPLE AND FAMILIES","	AAC EQUIPMENT",PURCHASE OF IT EQUIPMENT,15/01/2019,000008236368481,65.00,WH SMITH
OXFORDSHIRE CC,"CHILDRENS, YOUNG PEOPLE AND FAMILIES","	FAM SUPP CITY 1",MANAGEMENT CONSULTANT FEES,15/01/2019,000008236368581,150.50,TVLICENSING.CO.UK
OXFORDSHIRE CC,"CHILDRENS, YOUNG PEOPLE AND FAMILIES","	FAM SUPP CITY 1",MATERIALS,15/01/2019,000008236368585,279.99,WWW.ARGOS.CO.UK
OXFORDSHIRE CC,SOCIAL AND COMMUNITY SERVICES,ADULT SERVICES IMPROVEMENT BOARD,CATERING PROVISIONS,15/01/2019,000008236368587,9.15,MARKS&SPENCER PLC SACA
OXFORDSHIRE CC,SOCIAL AND COMMUNITY SERVICES,CSS - BANBURY,CATERING PROVISIONS,15/01/2019,000008236368591,3.85,TESCO STORE 2064
OXFORDSHIRE CC,SOCIAL AND COMMUNITY SERVICES,CSS BICESTER,CATERING PROVISIONS,15/01/2019,000008236367803,73.70,SAINSBURYS (2243)
OXFORDSHIRE CC,"CHILDRENS, YOUNG PEOPLE AND FAMILIES",THAME E&A HOME,CATERING PROVISIONS,15/01/2019,000008236367811,11.20,SAINSBURYS SACAT 2096
OXFORDSHIRE CC,"CHILDRENS, YOUNG PEOPLE AND FAMILIES",THAME E&A HOME,CATERING PROVISIONS,15/01/2019,000008236367815,115.44,SAINSBURYS TO YOU 0600
OXFORDSHIRE CC,"CHILDRENS, YOUNG PEOPLE AND FAMILIES",THAME E&A HOME,OTHER TRANSPORT ARRANGEMENTS,15/01/2019,000008236367819,4.00,WESTGATE OXFORD CAR PA
OXFORDSHIRE CC,"CHILDRENS, YOUNG PEOPLE AND FAMILIES",THAME E&A HOME,DRUGS AND MEDICAL SUPPLIES,15/01/2019,000008236367823,13.00,SUPERDRUG STORES PLC
OXFORDSHIRE CC,"CHILDRENS, YOUNG PEOPLE AND FAMILIES",THAME E&A HOME,MATERIALS,15/01/2019,000008236367829,19.99,ARGOS LTD
OXFORDSHIRE CC,"CHILDRENS, YOUNG PEOPLE AND FAMILIES",KINGFISHER,OTHER TRANSPORT ARRANGEMENTS,15/01/2019,000008236368597,4.30,IPSGROUP.COM
OXFORDSHIRE CC,"CHILDRENS, YOUNG PEOPLE AND FAMILIES","	40 THE MOORS",CATERING PROVISIONS,15/01/2019,000008236368607,6.70,COSTA KIDLINGTON
OXFORDSHIRE CC,"CHILDRENS, YOUNG PEOPLE AND FAMILIES","	40 THE MOORS",DRUGS AND MEDICAL SUPPLIES,15/01/2019,000008236368609,23.18,SUPERDRUG STORES PLC
OXFORDSHIRE CC,"CHILDRENS, YOUNG PEOPLE AND FAMILIES","	LOOKED AFTER CITY 2",PAYMENT TO GOVERNMENT DEPARTMENTS,15/01/2019,000008236367883,54.00,HM PASSPORT OFFICE
OXFORDSHIRE CC,"CHILDRENS, YOUNG PEOPLE AND FAMILIES",DIDCOT MOVE-ON HOME,CATERING PROVISIONS,15/01/2019,000008236368649,5.45,SAINSBURYS SACAT 2067
OXFORDSHIRE CC,"CHILDRENS, YOUNG PEOPLE AND FAMILIES",DIDCOT MOVE-ON HOME,CATERING PROVISIONS,15/01/2019,000008236368653,18.14,MARKS&SPENCER PLC SF
OXFORDSHIRE CC,"CHILDRENS, YOUNG PEOPLE AND FAMILIES",STEP INTO TRAINING,"SUPPLIES, STATIONERY AND MATERIALS",15/01/2019,000008236368663,63.89,AMZN MKTP UK MB6BU5ME4
OXFORDSHIRE CC,SOCIAL AND COMMUNITY SERVICES,LOOKED AFTER NORTH,OTHER TRANSPORT ARRANGEMENTS,15/01/2019,000008236367911,2.00,3C_ OXFORDSHIRE COUNTY
OXFORDSHIRE CC,SOCIAL AND COMMUNITY SERVICES,LOOKED AFTER NORTH,OTHER TRANSPORT ARRANGEMENTS,15/01/2019,000008236367909,2.80,OXFORD BUS COMPANY
OXFORDSHIRE CC,"CHILDRENS, YOUNG PEOPLE AND FAMILIES","	LOOKED AFTER SOUTH",OTHER TRANSPORT ARRANGEMENTS,15/01/2019,000008236367917,75.00,STAGECOACH SERVICE
OXFORDSHIRE CC,"CHILDRENS, YOUNG PEOPLE AND FAMILIES","	LOOKED AFTER SOUTH",PAYMENT TO GOVERNMENT DEPARTMENTS,15/01/2019,000008236367919,70.00,SWINDON BOROUGH COUNCI
OXFORDSHIRE CC,"CHILDRENS, YOUNG PEOPLE AND FAMILIES","	LOOKED AFTER SOUTH",MATERIALS,15/01/2019,000008236367923,244.99,ARGOS RETAIL GROUP
OXFORDSHIRE CC,"CHILDRENS, YOUNG PEOPLE AND FAMILIES",EYNSHAM,OTHER TRANSPORT ARRANGEMENTS,15/01/2019,000008236367931,3.70,STGCOACH/CTYLINK
OXFORDSHIRE CC,"CHILDRENS, YOUNG PEOPLE AND FAMILIES","	OSCB",REGISTRATION AND INSPECTION FEES,15/01/2019,000008236367945,480.00,KALEIDOSCOPE-EVENTS
OXFORDSHIRE CC,"CHILDRENS, YOUNG PEOPLE AND FAMILIES","	40 THE MOORS",HARDWARE AND CROCKERY,15/01/2019,000008236368723,11.23,B & Q 1176
OXFORDSHIRE CC,"CHILDRENS, YOUNG PEOPLE AND FAMILIES","	LOOKED AFTER CITY 2",OTHER TRANSPORT ARRANGEMENTS,15/01/2019,000008236368695,6.80,GWR OXFORD SST
OXFORDSHIRE CC,"CHILDRENS, YOUNG PEOPLE AND FAMILIES","	40 THE MOORS",CATERING,15/01/2019,000008236368727,16.99,WWW.DOMINOS.CO.UK
OXFORDSHIRE CC,CORPORATE CORE,MOTOR FLEET,MOTOR IF OWN DAMAGE,15/01/2019,000008236368731,797.99,WHOLESALE AUTO PARTS
OXFORDSHIRE CC,CORPORATE CORE,,"SUPPLIES, STATIONERY AND MATERIALS",15/01/2019,000008236368737,375.52,LYRECO UK LTD
OXFORDSHIRE CC,"CHILDRENS, YOUNG PEOPLE AND FAMILIES","	MALTFIELD HOUSE",CATERING,15/01/2019,000008236368711,12.27,CO-OPERATIVE FOOD
OXFORDSHIRE CC,"CHILDRENS, YOUNG PEOPLE AND FAMILIES","	40 THE MOORS",CATERING PROVISIONS,15/01/2019,000008236368717,3.85,TESCO STORE 2788
OXFORDSHIRE CC,CORPORATE CORE,,"SUPPLIES, STATIONERY AND MATERIALS",15/01/2019,000008236368743,15.16,LYRECO UK LTD
OXFORDSHIRE CC,"CHILDRENS, YOUNG PEOPLE AND FAMILIES","	40 THE MOORS",CATERING,15/01/2019,000008236368721,41.10,TIFFINS
OXFORDSHIRE CC,SOCIAL AND COMMUNITY SERVICES,CSS - DIDCOT,VEHICLES REPAIRS AND MAINTENANCE,15/01/2019,000008236367959,13.00,WAVES CAR WASH
OXFORDSHIRE CC,"CHILDRENS, YOUNG PEOPLE AND FAMILIES",PUBLIC HEALTH GENERAL,MATERIALS,15/01/2019,000008236367967,444.72,GOOGLE  ADS4755449371
OXFORDSHIRE CC,"CHILDRENS, YOUNG PEOPLE AND FAMILIES",CSS WALLINGFORD,CATERING PROVISIONS,15/01/2019,000008236367971,12.50,TESCO STORE 2413
OXFORDSHIRE CC,"CHILDRENS, YOUNG PEOPLE AND FAMILIES","	RESIDENTIAL STRATEGY",CATERING PROVISIONS,15/01/2019,000008236367991,29.45,SAINSBURYS SACAT 2393
OXFORDSHIRE CC,"CHILDRENS, YOUNG PEOPLE AND FAMILIES","	RESIDENTIAL STRATEGY",CATERING PROVISIONS,15/01/2019,000008236367977,8.95,TOP PALACE LTD 41483
OXFORDSHIRE CC,"CHILDRENS, YOUNG PEOPLE AND FAMILIES","	RESIDENTIAL STRATEGY",CATERING PROVISIONS,15/01/2019,000008236367995,8.05,SAINSBURYS SACAT 2393
OXFORDSHIRE CC,"CHILDRENS, YOUNG PEOPLE AND FAMILIES","	RESIDENTIAL STRATEGY",CATERING,15/01/2019,000008236367981,11.48,BURGER KING
OXFORDSHIRE CC,"CHILDRENS, YOUNG PEOPLE AND FAMILIES","	RESIDENTIAL STRATEGY",OTHER TRANSPORT ARRANGEMENTS,15/01/2019,000008236367983,2.00,PARKJOCKEY LONDON
OXFORDSHIRE CC,"CHILDRENS, YOUNG PEOPLE AND FAMILIES","	SM QUALITY ASSURANCE","BOOKS, DVDS AND CDS",15/01/2019,000008236368005,5.00,AMZN MKTP UK MB6680MM4
OXFORDSHIRE CC,"CHILDRENS, YOUNG PEOPLE AND FAMILIES",FAMILY SUPPORT 2,"BOOKS, DVDS AND CDS",15/01/2019,000008236368753,26.99,AMZN MKTP UK MB8ZS3MI4
OXFORDSHIRE CC,"CHILDRENS, YOUNG PEOPLE AND FAMILIES",FAMILY SUPPORT 2,PAYMENTS TO TRANSPORT OPERATORS,15/01/2019,000008236368757,99.50,GWR CORP WEBBTSECOM
OXFORDSHIRE CC,"CHILDRENS, YOUNG PEOPLE AND FAMILIES",FAMILY SUPPORT 2,EDUCATIONAL AND VOCATIONAL TRAINING ,15/01/2019,000008236368761,298.35,WESTMINSTER INSIGHT
OXFORDSHIRE CC,CORPORATE CORE,,"SUPPLIES, STATIONERY AND MATERIALS",15/01/2019,000008236368747,121.34,LYRECO UK LTD
OXFORDSHIRE CC,"CHILDRENS, YOUNG PEOPLE AND FAMILIES","	LOOKED AFTER CITY 1",HIRE OF ACCOMMODATION AND FACILITIES,15/01/2019,000008236368019,74.00,PREMIER INN
OXFORDSHIRE CC,ENVIRONMENT AND ECONOMY,HARD FM,HARDWARE AND CROCKERY,15/01/2019,000008236368023,27.54,JEWSON LTD
OXFORDSHIRE CC,ENVIRONMENT AND ECONOMY,HARD FM,HARDWARE AND CROCKERY,15/01/2019,000008236368029,10.80,CITY ELECTRICAL FA
OXFORDSHIRE CC,ENVIRONMENT AND ECONOMY,HARD FM,MATERIALS,15/01/2019,000008236368033,398.50,TLC SOUTHERN LTD
OXFORDSHIRE CC,ENVIRONMENT AND ECONOMY,HARD FM,"BOOKS, DVDS AND CDS",15/01/2019,000008236368037,2.78,AMZN MKTP UK MB4MG4V44
OXFORDSHIRE CC,ENVIRONMENT AND ECONOMY,HARD FM,"BOOKS, DVDS AND CDS",15/01/2019,000008236368039,7.97,AMZN MKTP UK MB6GT6V34
OXFORDSHIRE CC,"CHILDRENS, YOUNG PEOPLE AND FAMILIES",THAME E&A HOME,SUBSCRIPTIONS,15/01/2019,000008236368043,9.00,AQUA VALE SWIMMING
OXFORDSHIRE CC,"CHILDRENS, YOUNG PEOPLE AND FAMILIES","	LEAVING CARE CITY 1",FURNITURE,15/01/2019,000008236368075,4.00,ARGOS LTD
OXFORDSHIRE CC,"CHILDRENS, YOUNG PEOPLE AND FAMILIES",EYNSHAM,CATERING PROVISIONS,15/01/2019,000008236368081,1.25,TESCO STORE 2064
OXFORDSHIRE CC,"CHILDRENS, YOUNG PEOPLE AND FAMILIES",THAME E&A HOME,CATERING PROVISIONS,15/01/2019,000008236368085,98.92,TESCO STORE 2132
OXFORDSHIRE CC,"CHILDRENS, YOUNG PEOPLE AND FAMILIES",THAME E&A HOME,CATERING PROVISIONS,15/01/2019,000008236368091,20.00,TESCO STORE 2132
OXFORDSHIRE CC,SOCIAL AND COMMUNITY SERVICES,CSS - OXFORD,MATERIALS,15/01/2019,000008236368071,13.86,ALDI STORES 775-142
OXFORDSHIRE CC,"CHILDRENS, YOUNG PEOPLE AND FAMILIES",THAME E&A HOME,CATERING PROVISIONS,15/01/2019,000008236368095,10.00,TESCO STORE 2132
OXFORDSHIRE CC,CORPORATE CORE,INFORMATION & ADVICE,"PUBLICITY, PROMOTIONS AND ADVERTISEMENT",15/01/2019,000008236368833,205.37,FACEBK  PD34NJ2AZ2
OXFORDSHIRE CC,CORPORATE CORE,"	COMMUNICATIONS","PUBLICITY, PROMOTIONS AND ADVERTISEMENT",15/01/2019,000008236368833,277.01,FACEBK  PD34NJ2AZ2
OXFORDSHIRE CC,CORPORATE CORE,COMM FIRE SAFETY,"PUBLICITY, PROMOTIONS AND ADVERTISEMENT",15/01/2019,000008236368833,17.62,FACEBK  PD34NJ2AZ2
OXFORDSHIRE CC,"CHILDRENS, YOUNG PEOPLE AND FAMILIES",THAME E&A HOME,"BOOKS, DVDS AND CDS",15/01/2019,000008236368099,-18.98,AMZN MKTP UK AMAZON.CO
OXFORDSHIRE CC,"CHILDRENS, YOUNG PEOPLE AND FAMILIES",WITNEY,OTHER TRANSPORT ARRANGEMENTS,15/01/2019,000008236368103,9.00,OXPENS CAR PARK
OXFORDSHIRE CC,"CHILDRENS, YOUNG PEOPLE AND FAMILIES","	FAM SUPP SOUTH",PAYMENTS TO TRANSPORT OPERATORS,15/01/2019,000008236368115,20.30,GWR DIDCOT PKWY TO
OXFORDSHIRE CC,"CHILDRENS, YOUNG PEOPLE AND FAMILIES",NTH FAM SUPRT-BCSTR,PAYMENTS TO TRANSPORT OPERATORS,15/01/2019,000008236368119,9.60,GWR CORP WEBBTSECOM
OXFORDSHIRE CC,"CHILDRENS, YOUNG PEOPLE AND FAMILIES","	40 THE MOORS",MATERIALS,14/01/2019,000008229456003,7.99,AMAZON PRIME MB0B39XV4
OXFORDSHIRE CC,SOCIAL AND COMMUNITY SERVICES,ADULT SERVICES IMPROVEMENT BOARD,CATERING PROVISIONS,14/01/2019,000008229456005,20.76,TESCO STORE 2064
OXFORDSHIRE CC,"CHILDRENS, YOUNG PEOPLE AND FAMILIES",EYNSHAM,RESIDENTIAL ACTIVITIES,14/01/2019,000008229456007,26.00,OXFORD GOLF CENTRE
OXFORDSHIRE CC,"CHILDRENS, YOUNG PEOPLE AND FAMILIES",PLACEMENTS-FRELEVANT,HIRE OF ACCOMMODATION AND FACILITIES,14/01/2019,000008229456085,94.00,PREMIER INN
OXFORDSHIRE CC,"CHILDRENS, YOUNG PEOPLE AND FAMILIES","	LEAVING CARE NORTH",REGISTRATION AND INSPECTION FEES,14/01/2019,000008229456087,11.50,OCC REGISTRARS (M)
OXFORDSHIRE CC,"CHILDRENS, YOUNG PEOPLE AND FAMILIES","	LEAVING CARE NORTH",REGISTRATION AND INSPECTION FEES,14/01/2019,000008229456089,10.00,OCC REGISTRARS (M)
OXFORDSHIRE CC,CORPORATE CORE,LIBRARY COLLECTIONS,"NEWSPAPERS, PERIODICALS AND PUBLICATIONS",14/01/2019,000008229456033,47.62,GUARDIAN NEWS & MEDIA
OXFORDSHIRE CC,CORPORATE CORE,LIBRARY COLLECTIONS,"NEWSPAPERS, PERIODICALS AND PUBLICATIONS",14/01/2019,000008229456035,47.62,GUARDIAN NEWS & MEDIA
OXFORDSHIRE CC,"CHILDRENS, YOUNG PEOPLE AND FAMILIES",DIDCOT MOVE-ON HOME,CATERING PROVISIONS,14/01/2019,000008229456051,22.65,SAINSBURYS 2067
OXFORDSHIRE CC,CORPORATE CORE,LIBRARY COLLECTIONS,"NEWSPAPERS, PERIODICALS AND PUBLICATIONS",14/01/2019,000008229456037,47.62,GUARDIAN NEWS & MEDIA
OXFORDSHIRE CC,"CHILDRENS, YOUNG PEOPLE AND FAMILIES",DIDCOT MOVE-ON HOME,CATERING PROVISIONS,14/01/2019,000008229456047,12.49,SAINSBURYS 2067
OXFORDSHIRE CC,"CHILDRENS, YOUNG PEOPLE AND FAMILIES",DIDCOT MOVE-ON HOME,MATERIALS,14/01/2019,000008229456049,-39.99,B & M RETAIL
OXFORDSHIRE CC,"CHILDRENS, YOUNG PEOPLE AND FAMILIES","	RESIDENTIAL STRATEGY",CATERING,14/01/2019,000008229455589,13.18,TREATZ
OXFORDSHIRE CC,SOCIAL AND COMMUNITY SERVICES,CSS WITNEY,CATERING PROVISIONS,14/01/2019,000008229455573,20.10,TESCO STORES
OXFORDSHIRE CC,"CHILDRENS, YOUNG PEOPLE AND FAMILIES","	LOOKED AFTER CITY 2",POSTAGE AND DELIVERY,14/01/2019,000008229455575,2.97,POST OFFICE COUNTER
OXFORDSHIRE CC,"CHILDRENS, YOUNG PEOPLE AND FAMILIES","	FAMILY SUPPORT CITY3",CATERING,14/01/2019,000008229455579,23.36,BURGER KING
OXFORDSHIRE CC,"CHILDRENS, YOUNG PEOPLE AND FAMILIES","	FAMILY SUPPORT CITY3",CATERING,14/01/2019,000008229455581,5.96,BURGER KING
OXFORDSHIRE CC,"CHILDRENS, YOUNG PEOPLE AND FAMILIES","	FAMILY SUPPORT CITY3",CATERING,14/01/2019,000008229455583,1.89,BURGER KING
OXFORDSHIRE CC,"CHILDRENS, YOUNG PEOPLE AND FAMILIES","	RESIDENTIAL STRATEGY",CATERING PROVISIONS,14/01/2019,000008229455587,20.60,SAINSBURYS SACAT 2393
OXFORDSHIRE CC,"CHILDRENS, YOUNG PEOPLE AND FAMILIES","	AAC EQUIPMENT",PURCHASE OF IT EQUIPMENT,14/01/2019,000008229455943,150.00,TESCO STORE 2994
OXFORDSHIRE CC,"CHILDRENS, YOUNG PEOPLE AND FAMILIES","	AAC EQUIPMENT",PURCHASE OF IT EQUIPMENT,14/01/2019,000008229455945,75.00,BOOTS THE CHEMIST
OXFORDSHIRE CC,"CHILDRENS, YOUNG PEOPLE AND FAMILIES","	MALTFIELD HOUSE",ENTERTAINMENT EXPENSES,14/01/2019,000008229455973,20.00,LINK CENTRE
OXFORDSHIRE CC,"CHILDRENS, YOUNG PEOPLE AND FAMILIES","	MALTFIELD HOUSE",CATERING,14/01/2019,000008229455975,25.89,MCDONALDS
OXFORDSHIRE CC,"CHILDRENS, YOUNG PEOPLE AND FAMILIES","	MALTFIELD HOUSE",CATERING,14/01/2019,000008229455967,30.00,NEDS NOODLES
OXFORDSHIRE CC,"CHILDRENS, YOUNG PEOPLE AND FAMILIES","	MALTFIELD HOUSE",OTHER TRANSPORT ARRANGEMENTS,14/01/2019,000008229455969,3.00,WESTGATE OXFORD CAR PA
OXFORDSHIRE CC,"CHILDRENS, YOUNG PEOPLE AND FAMILIES","	MALTFIELD HOUSE",SUBSCRIPTIONS,14/01/2019,000008229455971,20.08,AMFBOWLING.CO.UK
OXFORDSHIRE CC,"CHILDRENS, YOUNG PEOPLE AND FAMILIES","	RESIDENTIAL STRATEGY",SUBSCRIPTIONS,14/01/2019,000008229455591,38.45,AMFBOWLING.CO.UK
OXFORDSHIRE CC,"CHILDRENS, YOUNG PEOPLE AND FAMILIES","	RESIDENTIAL STRATEGY",CATERING PROVISIONS,14/01/2019,000008229455593,20.79,TESCO STORES 6817
OXFORDSHIRE CC,"CHILDRENS, YOUNG PEOPLE AND FAMILIES","	RESIDENTIAL STRATEGY",SUBSCRIPTIONS,14/01/2019,000008229455595,4.60,AMF BOWLING
OXFORDSHIRE CC,"CHILDRENS, YOUNG PEOPLE AND FAMILIES",CSS WALLINGFORD,CATERING PROVISIONS,14/01/2019,000008229455607,20.95,WAITROSE 675
OXFORDSHIRE CC,"CHILDRENS, YOUNG PEOPLE AND FAMILIES",CSS WALLINGFORD,HARDWARE AND CROCKERY,14/01/2019,000008229455609,38.92,MILL RACE GARDEN CENTR
OXFORDSHIRE CC,"CHILDRENS, YOUNG PEOPLE AND FAMILIES",CSS WALLINGFORD,MATERIALS,14/01/2019,000008229455611,16.98,MULBERRY BUSH LTD
OXFORDSHIRE CC,"CHILDRENS, YOUNG PEOPLE AND FAMILIES","	SENSS TRAINING",EDUCATIONAL AND VOCATIONAL TRAINING ,14/01/2019,000008229455999,270.00,DRAWING & TALKING
OXFORDSHIRE CC,"CHILDRENS, YOUNG PEOPLE AND FAMILIES","	RIVERSIDE CENTRE",CATERING PROVISIONS,14/01/2019,000008229455697,6.26,SAINSBURYS 0600
OXFORDSHIRE CC,"CHILDRENS, YOUNG PEOPLE AND FAMILIES","	RIVERSIDE CENTRE",VEHICLE FUEL,14/01/2019,000008229455699,83.77,SAINSBURYS OPT 0180
OXFORDSHIRE CC,"CHILDRENS, YOUNG PEOPLE AND FAMILIES",WITNEY,CATERING PROVISIONS,14/01/2019,000008229455703,47.99,SAINSBURYS 0632
OXFORDSHIRE CC,"CHILDRENS, YOUNG PEOPLE AND FAMILIES",NORTH FSS- WITNEY,PAYMENTS TO TRANSPORT OPERATORS,14/01/2019,000008229456171,79.40,GWR CORP WEBBTSECOM
OXFORDSHIRE CC,"CHILDRENS, YOUNG PEOPLE AND FAMILIES",EYNSHAM,CATERING,14/01/2019,000008229456177,185.48,TESCO STORES 2008
OXFORDSHIRE CC,"CHILDRENS, YOUNG PEOPLE AND FAMILIES",WITNEY,CATERING PROVISIONS,14/01/2019,000008229455705,3.85,SAINSBURYS 0632
OXFORDSHIRE CC,"CHILDRENS, YOUNG PEOPLE AND FAMILIES",CNTL EARLY HELP-RHIL,MATERIALS,14/01/2019,000008229455707,169.99,WWW.ARGOS.CO.UK
OXFORDSHIRE CC,"CHILDRENS, YOUNG PEOPLE AND FAMILIES","	LOOKED AFTER SOUTH",PAYMENT TO GOVERNMENT DEPARTMENTS,14/01/2019,000008229455709,49.00,HM PASSPORT OFFICE
OXFORDSHIRE CC,"CHILDRENS, YOUNG PEOPLE AND FAMILIES","	FAM SUPP SOUTH",HIRED AND CONTRACTED SERVICES,14/01/2019,000008229455711,215.66,BIG YELLOW S S OXFORD
OXFORDSHIRE CC,"CHILDRENS, YOUNG PEOPLE AND FAMILIES","	LOOKED AFTER CITY 2",MATERIALS,14/01/2019,000008229456091,2.00,POUNDLAND LTD
OXFORDSHIRE CC,"CHILDRENS, YOUNG PEOPLE AND FAMILIES","	40 THE MOORS",CATERING PROVISIONS,14/01/2019,000008229456095,154.75,SAINSBURYS (2243)
OXFORDSHIRE CC,"CHILDRENS, YOUNG PEOPLE AND FAMILIES","	LOOKED AFTER CITY 1",HIRE OF ACCOMMODATION AND FACILITIES,14/01/2019,000008229455629,60.00,THE OLD MILL
OXFORDSHIRE CC,"CHILDRENS, YOUNG PEOPLE AND FAMILIES","	LOOKED AFTER NORTH",CATERING,14/01/2019,000008229455617,6.51,MCDONALDS
OXFORDSHIRE CC,"CHILDRENS, YOUNG PEOPLE AND FAMILIES","	DISABILITIES TEAM-C",OTHER EXPENSES,14/01/2019,000008229455619,29.47,AMAZON.CO.UK MB6P13GJ4
OXFORDSHIRE CC,"CHILDRENS, YOUNG PEOPLE AND FAMILIES","	LOOKED AFTER CITY 1",OTHER TRANSPORT ARRANGEMENTS,14/01/2019,000008229455631,37.00,OXFORD BUS COMPANY
OXFORDSHIRE CC,SOCIAL AND COMMUNITY SERVICES,CSS - OXFORD,MATERIALS,14/01/2019,000008229455633,7.99,AMAZON PRIME MB5CG1GU4
OXFORDSHIRE CC,"CHILDRENS, YOUNG PEOPLE AND FAMILIES","	LOOKED AFTER CITY 1",HIRE OF ACCOMMODATION AND FACILITIES,14/01/2019,000008229455627,80.00,KEY INNS LTD
OXFORDSHIRE CC,"CHILDRENS, YOUNG PEOPLE AND FAMILIES",ATV ADOPTION OXFORD,OTHER TRANSPORT ARRANGEMENTS,14/01/2019,000008229455635,15.00,BUS TICKET OR EMT WIFI
OXFORDSHIRE CC,ENVIRONMENT AND ECONOMY,HARD FM,HARDWARE AND CROCKERY,14/01/2019,000008229455637,68.97,SCREWFIX WITNEY
OXFORDSHIRE CC,CORPORATE CORE,LIBRARY COLLECTIONS,"NEWSPAPERS, PERIODICALS AND PUBLICATIONS",14/01/2019,000008229456025,47.62,GUARDIAN NEWS & MEDIA
OXFORDSHIRE CC,"CHILDRENS, YOUNG PEOPLE AND FAMILIES","	MALTFIELD HOUSE",CATERING,14/01/2019,000008229456011,41.91,SAINSBURYS 0631
OXFORDSHIRE CC,CORPORATE CORE,LIBRARY COLLECTIONS,"NEWSPAPERS, PERIODICALS AND PUBLICATIONS",14/01/2019,000008229456027,47.62,GUARDIAN NEWS & MEDIA
OXFORDSHIRE CC,"CHILDRENS, YOUNG PEOPLE AND FAMILIES","	MALTFIELD HOUSE",OTHER EXPENSES,14/01/2019,000008229456013,30.65,FRANKIE & BENNYS 5260
OXFORDSHIRE CC,"CHILDRENS, YOUNG PEOPLE AND FAMILIES","	MALTFIELD HOUSE",OTHER EXPENSES,14/01/2019,000008229456015,21.60,NEDS NOODLES
OXFORDSHIRE CC,"CHILDRENS, YOUNG PEOPLE AND FAMILIES","	MALTFIELD HOUSE",OTHER EXPENSES,14/01/2019,000008229456017,3.45,NEDS NOODLES
OXFORDSHIRE CC,"CHILDRENS, YOUNG PEOPLE AND FAMILIES","	MALTFIELD HOUSE",OTHER EXPENSES,14/01/2019,000008229456019,13.66,EMPIRE CINEMAS
OXFORDSHIRE CC,"CHILDRENS, YOUNG PEOPLE AND FAMILIES","	MALTFIELD HOUSE",STAFF SUBSISTENCE,14/01/2019,000008229456021,4.00,WESTGATE OXFORD CAR PA
OXFORDSHIRE CC,CORPORATE CORE,LIBRARY COLLECTIONS,"NEWSPAPERS, PERIODICALS AND PUBLICATIONS",14/01/2019,000008229456029,47.62,GUARDIAN NEWS & MEDIA
OXFORDSHIRE CC,CORPORATE CORE,LIBRARY COLLECTIONS,"NEWSPAPERS, PERIODICALS AND PUBLICATIONS",14/01/2019,000008229456023,47.62,GUARDIAN NEWS & MEDIA
OXFORDSHIRE CC,CORPORATE CORE,LIBRARY COLLECTIONS,"NEWSPAPERS, PERIODICALS AND PUBLICATIONS",14/01/2019,000008229456031,47.62,GUARDIAN NEWS & MEDIA
OXFORDSHIRE CC,SOCIAL AND COMMUNITY SERVICES,"	SHARED LIVES",PURCHASE OF IT EQUIPMENT,14/01/2019,000008229456117,184.77,WWW.UK.INSIGHT.COM
OXFORDSHIRE CC,"CHILDRENS, YOUNG PEOPLE AND FAMILIES","	LEAVING CARE SOUTH",OTHER EXPENSES,14/01/2019,000008229456103,149.35,ALLPAY  SANCTUARY HOUS
OXFORDSHIRE CC,CORPORATE CORE,ICT OPERATIONS & MAI,PURCHASE OF IT EQUIPMENT,14/01/2019,000008229456105,20.25,GITHUB.COM
OXFORDSHIRE CC,ENVIRONMENT AND ECONOMY,"	COMMERCIAL MANAGEMEN",HIRE OF ACCOMMODATION AND FACILITIES,14/01/2019,000008229456119,109.10,APEX WATERLOO PLACE HO
OXFORDSHIRE CC,"CHILDRENS, YOUNG PEOPLE AND FAMILIES","	LOOKED AFTER NORTH",VEHICLE FUEL,14/01/2019,000008229456121,29.96,BRIZE NORTON SELF SERV
OXFORDSHIRE CC,"CHILDRENS, YOUNG PEOPLE AND FAMILIES","	MALTFIELD HOUSE",CATERING,14/01/2019,000008229456109,17.11,TESCO STORES 2008
OXFORDSHIRE CC,"CHILDRENS, YOUNG PEOPLE AND FAMILIES","	MALTFIELD HOUSE",OTHER EXPENSES,14/01/2019,000008229456111,69.90,B&M RETAIL
OXFORDSHIRE CC,"CHILDRENS, YOUNG PEOPLE AND FAMILIES","	MALTFIELD HOUSE",CATERING,14/01/2019,000008229456113,14.90,SUBWAY-LEXO RED LTD
OXFORDSHIRE CC,"CHILDRENS, YOUNG PEOPLE AND FAMILIES","	LEAVING CARE NORTH","BOOKS, DVDS AND CDS",14/01/2019,000008229456123,15.99,AMZN MKTP UK MB5BH5PN4
OXFORDSHIRE CC,"CHILDRENS, YOUNG PEOPLE AND FAMILIES","	MALTFIELD HOUSE",HIRE OF ACCOMMODATION AND FACILITIES,14/01/2019,000008229456115,780.64,AIRBNB   HM929P4FYW
OXFORDSHIRE CC,"CHILDRENS, YOUNG PEOPLE AND FAMILIES",THAME E&A HOME,VEHICLE FUEL,14/01/2019,000008229455653,2.95,TESCO PFS 3418
OXFORDSHIRE CC,ENVIRONMENT AND ECONOMY,HARD FM,HARDWARE AND CROCKERY,14/01/2019,000008229455639,21.57,TRAVIS PERKINS
OXFORDSHIRE CC,"CHILDRENS, YOUNG PEOPLE AND FAMILIES",THAME E&A HOME,CATERING,14/01/2019,000008229455655,20.48,HARVESTER BRIDGE
OXFORDSHIRE CC,ENVIRONMENT AND ECONOMY,HARD FM,MATERIALS,14/01/2019,000008229455641,56.32,TOOLSTATION LTD
OXFORDSHIRE CC,ENVIRONMENT AND ECONOMY,HARD FM,HARDWARE AND CROCKERY,14/01/2019,000008229455643,27.84,WICKES
OXFORDSHIRE CC,ENVIRONMENT AND ECONOMY,COUNTY LIBRARY,GENERAL MAINTENANCE,14/01/2019,000008229455659,21.43, WOLSELEY UK
OXFORDSHIRE CC,ENVIRONMENT AND ECONOMY,HARD FM,GENERAL MAINTENANCE,14/01/2019,000008229455645,40.91, WOLSELEY UK
OXFORDSHIRE CC,ENVIRONMENT AND ECONOMY,HARD FM,"BOOKS, DVDS AND CDS",14/01/2019,000008229455647,13.99,AMZN MKTP UK MB6NI6P64
OXFORDSHIRE CC,ENVIRONMENT AND ECONOMY,HARD FM,"BOOKS, DVDS AND CDS",14/01/2019,000008229455649,16.33,AMZN MKTP UK MB10S2PV4
OXFORDSHIRE CC,ENVIRONMENT AND ECONOMY,HARD FM,MATERIALS,14/01/2019,000008229455651,29.40,AMAZON.CO.UK MB5AA5XM4
OXFORDSHIRE CC,"CHILDRENS, YOUNG PEOPLE AND FAMILIES","	MALTFIELD HOUSE",OTHER EXPENSES,14/01/2019,000008229455815,22.00,J D WILLIAMS
OXFORDSHIRE CC,"CHILDRENS, YOUNG PEOPLE AND FAMILIES","	MALTFIELD HOUSE",OTHER EXPENSES,14/01/2019,000008229455817,10.00,J D WILLIAMS
OXFORDSHIRE CC,"CHILDRENS, YOUNG PEOPLE AND FAMILIES","	MALTFIELD HOUSE",OTHER EXPENSES,14/01/2019,000008229455819,10.00,J D WILLIAMS
OXFORDSHIRE CC,"CHILDRENS, YOUNG PEOPLE AND FAMILIES","	MALTFIELD HOUSE",OTHER EXPENSES,14/01/2019,000008229455821,22.00,J D WILLIAMS
OXFORDSHIRE CC,"CHILDRENS, YOUNG PEOPLE AND FAMILIES","	MALTFIELD HOUSE",OTHER EXPENSES,14/01/2019,000008229455823,10.00,GIFFGAFF
OXFORDSHIRE CC,"CHILDRENS, YOUNG PEOPLE AND FAMILIES","	MALTFIELD HOUSE",OTHER EXPENSES,14/01/2019,000008229455825,10.00,GIFFGAFF
OXFORDSHIRE CC,"CHILDRENS, YOUNG PEOPLE AND FAMILIES","	MALTFIELD HOUSE",CATERING,14/01/2019,000008229455827,8.90,BENITOS HAT
OXFORDSHIRE CC,"CHILDRENS, YOUNG PEOPLE AND FAMILIES","	MALTFIELD HOUSE",OTHER EXPENSES,14/01/2019,000008229455829,29.10,EMPIRE CINEMAS
OXFORDSHIRE CC,CORPORATE CORE,HISTORY SERVICE,"BOOKS, DVDS AND CDS",14/01/2019,000008229455835,6.29,AMZN MKTP UK MB4UD3GP4
OXFORDSHIRE CC,"CHILDRENS, YOUNG PEOPLE AND FAMILIES","	LOOKED AFTER NORTH",OTHER TRANSPORT ARRANGEMENTS,14/01/2019,000008229456125,3.50,LONDON BOROUGH OF WALT
OXFORDSHIRE CC,"CHILDRENS, YOUNG PEOPLE AND FAMILIES","	40 THE MOORS",CATERING PROVISIONS,14/01/2019,000008229456127,18.00,TESCO STORE 2788
OXFORDSHIRE CC,"CHILDRENS, YOUNG PEOPLE AND FAMILIES","	40 THE MOORS",OTHER TRANSPORT ARRANGEMENTS,14/01/2019,000008229456129,111.00,WWW.THEKEY.CO.UK
OXFORDSHIRE CC,"CHILDRENS, YOUNG PEOPLE AND FAMILIES","	40 THE MOORS",CATERING PROVISIONS,14/01/2019,000008229456131,10.49,WWW.FETCH.COM
OXFORDSHIRE CC,"CHILDRENS, YOUNG PEOPLE AND FAMILIES",THAME E&A HOME,CATERING,14/01/2019,000008229456133,13.99,TOBY WORCESTER WST
OXFORDSHIRE CC,SOCIAL AND COMMUNITY SERVICES,EMERGENCY DUTY TEAM,MATERIALS,14/01/2019,000008229456135,436.20,WINSTANLEYS PRAMWORLD
OXFORDSHIRE CC,CORPORATE CORE,,"SUPPLIES, STATIONERY AND MATERIALS",14/01/2019,000008229456141,11.89,LYRECO UK LTD
OXFORDSHIRE CC,CORPORATE CORE,,"SUPPLIES, STATIONERY AND MATERIALS",14/01/2019,000008229456143,363.85,LYRECO UK LTD
OXFORDSHIRE CC,CORPORATE CORE,,"SUPPLIES, STATIONERY AND MATERIALS",14/01/2019,000008229456145,5.88,LYRECO UK LTD
OXFORDSHIRE CC,ENVIRONMENT AND ECONOMY,COUNTY LIBRARY,GENERAL MAINTENANCE,14/01/2019,000008229455661,356.47, WOLSELEY UK
OXFORDSHIRE CC,ENVIRONMENT AND ECONOMY,"	COUNTY PRINT FINSHRS","BOOKS, DVDS AND CDS",14/01/2019,000008229455663,22.80,AMZN MKTP UK MB3GK9PT4
OXFORDSHIRE CC,ENVIRONMENT AND ECONOMY,"	COUNTY PRINT FINSHRS",MATERIALS,14/01/2019,000008229455665,57.99,HALFORDS 0988
OXFORDSHIRE CC,SOCIAL AND COMMUNITY SERVICES,BOTLEY LIBRARY,"NEWSPAPERS, PERIODICALS AND PUBLICATIONS",14/01/2019,000008229455677,7.00,MARTIN MCCOLL
OXFORDSHIRE CC,"CHILDRENS, YOUNG PEOPLE AND FAMILIES",THAME E&A HOME,CATERING PROVISIONS,14/01/2019,000008229455679,12.16,CO-OPERATIVE FOOD
OXFORDSHIRE CC,"CHILDRENS, YOUNG PEOPLE AND FAMILIES","	LOOKED AFTER NORTH",HIRE OF ACCOMMODATION AND FACILITIES,14/01/2019,000008229455671,216.50,PREMIER INN
OXFORDSHIRE CC,"CHILDRENS, YOUNG PEOPLE AND FAMILIES",THAME E&A HOME,SUBSCRIPTIONS,14/01/2019,000008229455681,6.00,AQUA VALE SWIMMING
OXFORDSHIRE CC,SOCIAL AND COMMUNITY SERVICES,"	LEADERSHIP TEAM",PAYMENTS TO TRANSPORT OPERATORS,14/01/2019,000008229456069,73.30,GWR CORP WEBBTSECOM
OXFORDSHIRE CC,"CHILDRENS, YOUNG PEOPLE AND FAMILIES",CNTL EARLY HELP-BRTN,MATERIALS,14/01/2019,000008229456071,25.98,WWW.THEWORKS.CO.UK
OXFORDSHIRE CC,"CHILDRENS, YOUNG PEOPLE AND FAMILIES","	RESIDENTIAL STRATEGY",DAY ACTIVITIES,14/01/2019,000008229456075,42.50,COTSWOLD WILDLIFE PARK
OXFORDSHIRE CC,"CHILDRENS, YOUNG PEOPLE AND FAMILIES",EYNSHAM,ENTERTAINMENT EXPENSES,14/01/2019,000008229456077,29.50,COTSWOLD WILDLIFE PARK
OXFORDSHIRE CC,"CHILDRENS, YOUNG PEOPLE AND FAMILIES",UASC POST 18,POSTAGE AND DELIVERY,14/01/2019,000008229456079,1.77,POST OFFICE COUNTER
OXFORDSHIRE CC,"CHILDRENS, YOUNG PEOPLE AND FAMILIES","	LEAVING CARE NORTH",CLOTHING AND UNIFORMS,14/01/2019,000008229456157,-55.00,JD SPORTS INTERNET
OXFORDSHIRE CC,"CHILDRENS, YOUNG PEOPLE AND FAMILIES",EYNSHAM,CATERING PROVISIONS,14/01/2019,000008229456151,16.65,CO-OPERATIVE FOOD
OXFORDSHIRE CC,"CHILDRENS, YOUNG PEOPLE AND FAMILIES",EYNSHAM,CATERING PROVISIONS,14/01/2019,000008229456153,6.00,CO-OPERATIVE FOOD
OXFORDSHIRE CC,CORPORATE CORE,CENTRAL BUYING TEAM,VEHICLE FUEL,14/01/2019,000008229456155,20.01,MFG   COWLEY
OXFORDSHIRE CC,"CHILDRENS, YOUNG PEOPLE AND FAMILIES",THAME E&A HOME,SUBSCRIPTIONS,14/01/2019,000008229455683,2.80,AQUA VALE SWIMMING
OXFORDSHIRE CC,"CHILDRENS, YOUNG PEOPLE AND FAMILIES",THAME E&A HOME,CATERING PROVISIONS,14/01/2019,000008229455685,13.39,TESCO STORE 2162
OXFORDSHIRE CC,"CHILDRENS, YOUNG PEOPLE AND FAMILIES",THAME E&A HOME,CATERING PROVISIONS,14/01/2019,000008229455687,17.42,SAINSBURYS SACAT 2096
OXFORDSHIRE CC,"CHILDRENS, YOUNG PEOPLE AND FAMILIES",THAME E&A HOME,VEHICLE FUEL,14/01/2019,000008229455689,4.50,THAME BP SF CONNECT
OXFORDSHIRE CC,"CHILDRENS, YOUNG PEOPLE AND FAMILIES",THAME E&A HOME,CATERING PROVISIONS,14/01/2019,000008229455691,37.68,ASDA SUPERSTORE
OXFORDSHIRE CC,"CHILDRENS, YOUNG PEOPLE AND FAMILIES",THAME E&A HOME,CATERING PROVISIONS,14/01/2019,000008229455563,-52.50,MARKS&SPENCER PLC
OXFORDSHIRE CC,"CHILDRENS, YOUNG PEOPLE AND FAMILIES","	MALTFIELD HOUSE",CATERING,14/01/2019,000008229455911,52.50,COSMO
OXFORDSHIRE CC,"CHILDRENS, YOUNG PEOPLE AND FAMILIES","	MALTFIELD HOUSE",CATERING,14/01/2019,000008229455901,23.36,"TAYLORS, ST GILES"
OXFORDSHIRE CC,"CHILDRENS, YOUNG PEOPLE AND FAMILIES","	MALTFIELD HOUSE",CATERING PROVISIONS,14/01/2019,000008229455903,42.65,SAINSBURYS (2305)
OXFORDSHIRE CC,"CHILDRENS, YOUNG PEOPLE AND FAMILIES","	MALTFIELD HOUSE",CATERING PROVISIONS,14/01/2019,000008229455905,10.35,SAINSBURYS SACAT 4049
OXFORDSHIRE CC,"CHILDRENS, YOUNG PEOPLE AND FAMILIES","	MALTFIELD HOUSE",CLOTHING AND UNIFORMS,14/01/2019,000008229455907,54.40,PRIMARK 440
OXFORDSHIRE CC,"CHILDRENS, YOUNG PEOPLE AND FAMILIES","	MALTFIELD HOUSE",CATERING,14/01/2019,000008229455909,11.35,COSMO
OXFORDSHIRE CC,ENTERPRISEVC,OPERATIONAL COSTS,MATERIALS,14/01/2019,000008229455713,7.99,AMAZON PRIME MB8OE0P74
OXFORDSHIRE CC,SOCIAL AND COMMUNITY SERVICES,WITNEY MOVE ON HOME,CATERING PROVISIONS,14/01/2019,000008229455741,9.20,SAINSBURYS SACAT 0632
OXFORDSHIRE CC,SOCIAL AND COMMUNITY SERVICES,WITNEY MOVE ON HOME,CATERING PROVISIONS,14/01/2019,000008229455743,.75,SAINSBURYS SACAT 0632
OXFORDSHIRE CC,SOCIAL AND COMMUNITY SERVICES,CSS - ABINGDON,"BOOKS, DVDS AND CDS",14/01/2019,000008229455775,1.99,PRIME VIDEO MB7YZ5G74
OXFORDSHIRE CC,"CHILDRENS, YOUNG PEOPLE AND FAMILIES","	MUSIC UNALLOCABLE","BOOKS, DVDS AND CDS",14/01/2019,000008229455783,77.50,POWERHOUSE
OXFORDSHIRE CC,"CHILDRENS, YOUNG PEOPLE AND FAMILIES","	MUSIC UNALLOCABLE",CATERING PROVISIONS,14/01/2019,000008229455785,5.45,TESCO STORE 2413
OXFORDSHIRE CC,"CHILDRENS, YOUNG PEOPLE AND FAMILIES","	MALTFIELD HOUSE",OTHER EXPENSES,14/01/2019,000008229455809,322.41,AIRBNB   HM9HXRCTP8
OXFORDSHIRE CC,"CHILDRENS, YOUNG PEOPLE AND FAMILIES","	MALTFIELD HOUSE",CATERING,14/01/2019,000008229455811,8.05,TESCO STORES 4377
OXFORDSHIRE CC,"CHILDRENS, YOUNG PEOPLE AND FAMILIES","	MALTFIELD HOUSE",OTHER EXPENSES,14/01/2019,000008229455813,443.45,AIRBNB   HMEK2Z8W4A
OXFORDSHIRE CC,"CHILDRENS, YOUNG PEOPLE AND FAMILIES","	MALTFIELD HOUSE",MATERIALS,14/01/2019,000008229455913,35.00,J D SPORTS FASHION
OXFORDSHIRE CC,"CHILDRENS, YOUNG PEOPLE AND FAMILIES","	MALTFIELD HOUSE",CLOTHING AND UNIFORMS,14/01/2019,000008229455915,24.00,ASDA STORE 4442
OXFORDSHIRE CC,"CHILDRENS, YOUNG PEOPLE AND FAMILIES","	MALTFIELD HOUSE",DRUGS AND MEDICAL SUPPLIES,14/01/2019,000008229455917,14.49,SUPERDRUG STORES PLC
OXFORDSHIRE CC,"CHILDRENS, YOUNG PEOPLE AND FAMILIES","	MALTFIELD HOUSE",CATERING,14/01/2019,000008229455919,11.55,COSTA COFFEE 43043010
OXFORDSHIRE CC,"CHILDRENS, YOUNG PEOPLE AND FAMILIES","	MALTFIELD HOUSE",MATERIALS,14/01/2019,000008229455921,9.00,ARGOS LTD
OXFORDSHIRE CC,"CHILDRENS, YOUNG PEOPLE AND FAMILIES","	MALTFIELD HOUSE",CLOTHING AND UNIFORMS,14/01/2019,000008229455923,39.00,VICTORIAS SECRET UK LT
OXFORDSHIRE CC,"CHILDRENS, YOUNG PEOPLE AND FAMILIES","	MALTFIELD HOUSE",MATERIALS,14/01/2019,000008229455925,13.98,B&M RETAIL
OXFORDSHIRE CC,"CHILDRENS, YOUNG PEOPLE AND FAMILIES","	MALTFIELD HOUSE",CLOTHING AND UNIFORMS,14/01/2019,000008229455927,29.99,SPORTSDIRECT.COM
OXFORDSHIRE CC,SOCIAL AND COMMUNITY SERVICES,CSS BICESTER,"BOOKS, DVDS AND CDS",14/01/2019,000008229455517,4.59,AMZN MKTP UK MB5DQ8PB4
OXFORDSHIRE CC,"CHILDRENS, YOUNG PEOPLE AND FAMILIES",NTH EARLY HELP-WITNY,GAS,14/01/2019,000008229455513,78.29,ALLSTAR BUSINESS SOLUT
OXFORDSHIRE CC,SOCIAL AND COMMUNITY SERVICES,CSS BICESTER,"BOOKS, DVDS AND CDS",14/01/2019,000008229455519,8.07,AMZN MKTP UK MB7Y09P64
OXFORDSHIRE CC,SOCIAL AND COMMUNITY SERVICES,CSS BICESTER,"BOOKS, DVDS AND CDS",14/01/2019,000008229455515,4.56,AMZN MKTP UK MB1B76PC4
OXFORDSHIRE CC,CORPORATE CORE,"	ORGANISATIONAL DEV'T","BOOKS, DVDS AND CDS",14/01/2019,000008229455843,22.14,AMAZON.CO.UK MB6X97XJ4
OXFORDSHIRE CC,"CHILDRENS, YOUNG PEOPLE AND FAMILIES",CNTL EARLY HELP-RHIL,CATERING PROVISIONS,14/01/2019,000008229455847,1.99,ALDI 81 772
OXFORDSHIRE CC,CORPORATE CORE,"	CC TRAINING",EDUCATIONAL AND VOCATIONAL TRAINING ,14/01/2019,000008229455849,800.00,WWW.CILEX LAW SC.AC.UK
OXFORDSHIRE CC,"CHILDRENS, YOUNG PEOPLE AND FAMILIES","	RIVERSIDE CENTRE",CATERING PROVISIONS,14/01/2019,000008229455853,7.49,TESCO STORES 4377
OXFORDSHIRE CC,"CHILDRENS, YOUNG PEOPLE AND FAMILIES","	LEAVING CARE NORTH",CATERING,14/01/2019,000008229455855,8.98,MCDONALDS
OXFORDSHIRE CC,"CHILDRENS, YOUNG PEOPLE AND FAMILIES","	MALTFIELD HOUSE",TELEPHONE - EQUIPMENT,14/01/2019,000008229455865,10.00,GIFFGAFF
OXFORDSHIRE CC,"CHILDRENS, YOUNG PEOPLE AND FAMILIES",THAME E&A HOME,CATERING PROVISIONS,14/01/2019,000008229455539,2.00,SELECTA U.K. LIMITED
OXFORDSHIRE CC,"CHILDRENS, YOUNG PEOPLE AND FAMILIES",THAME E&A HOME,CATERING PROVISIONS,14/01/2019,000008229455541,1.70,SELECTA U.K. LIMITED
OXFORDSHIRE CC,SOCIAL AND COMMUNITY SERVICES,CSS BICESTER,CATERING PROVISIONS,14/01/2019,000008229455521,4.52,ALDI 49 775
OXFORDSHIRE CC,"CHILDRENS, YOUNG PEOPLE AND FAMILIES",THAME E&A HOME,CATERING PROVISIONS,14/01/2019,000008229455523,1.60,SAINSBURYS SACAT 2096
OXFORDSHIRE CC,"CHILDRENS, YOUNG PEOPLE AND FAMILIES",THAME E&A HOME,ENTERTAINMENT EXPENSES,14/01/2019,000008229455525,8.70,THAME LEISURE CENTRE
OXFORDSHIRE CC,"CHILDRENS, YOUNG PEOPLE AND FAMILIES",THAME E&A HOME,CATERING PROVISIONS,14/01/2019,000008229455543,2.00,SELECTA U.K. LIMITED
OXFORDSHIRE CC,"CHILDRENS, YOUNG PEOPLE AND FAMILIES",THAME E&A HOME,SUBSCRIPTIONS,14/01/2019,000008229455537,27.20,OXFORD ICE RINK
OXFORDSHIRE CC,SOCIAL AND COMMUNITY SERVICES,"	MUSEUMS COLLECTIONS",OTHER SERVICES,14/01/2019,000008229455867,26.10,DUNELM LTD
OXFORDSHIRE CC,"CHILDRENS, YOUNG PEOPLE AND FAMILIES","	LOOKED AFTER CITY 1",VEHICLE FUEL,14/01/2019,000008229455887,5.57,BP INGLISTON F/STN
OXFORDSHIRE CC,"CHILDRENS, YOUNG PEOPLE AND FAMILIES",KINGFISHER,CATERING,14/01/2019,000008229455889,10.40,COSTA COFFEE 43036780
OXFORDSHIRE CC,SOCIAL AND COMMUNITY SERVICES,CSS WANTAGE,"BOOKS, DVDS AND CDS",14/01/2019,000008229455549,23.00,TESCO STORES 2413
OXFORDSHIRE CC,"CHILDRENS, YOUNG PEOPLE AND FAMILIES","	FAMILY SUPPORT S'TH2",PAYMENTS TO TRANSPORT OPERATORS,14/01/2019,000008229455551,55.00,TRAINLINE
OXFORDSHIRE CC,SOCIAL AND COMMUNITY SERVICES,LOOKED AFTER SOUTH,PAYMENT TO GOVERNMENT DEPARTMENTS,14/01/2019,000008229455553,10.67,WP-WARWICKSHIRE CO
OXFORDSHIRE CC,"CHILDRENS, YOUNG PEOPLE AND FAMILIES",THAME E&A HOME,"BOOKS, DVDS AND CDS",14/01/2019,000008229455555,15.99,AMZN MKTP UK MB72W3PJ4
OXFORDSHIRE CC,"CHILDRENS, YOUNG PEOPLE AND FAMILIES",THAME E&A HOME,CATERING PROVISIONS,14/01/2019,000008229455559,52.99,MARKS&SPENCER PLC
OXFORDSHIRE CC,"CHILDRENS, YOUNG PEOPLE AND FAMILIES",THAME E&A HOME,CATERING PROVISIONS,14/01/2019,000008229455561,52.50,MARKS&SPENCER PLC
OXFORDSHIRE CC,ENVIRONMENT AND ECONOMY,HARD FM,HARDWARE AND CROCKERY,11/01/2019,000008222218309,45.00,HOMEBASE
OXFORDSHIRE CC,ENVIRONMENT AND ECONOMY,HARD FM,MATERIALS,11/01/2019,000008222218311,42.22,EXECUTIVE SECURITY
OXFORDSHIRE CC,ENVIRONMENT AND ECONOMY,COUNTY LIBRARY,GENERAL MAINTENANCE,11/01/2019,000008222218319,41.44, WOLSELEY UK
OXFORDSHIRE CC,"CHILDRENS, YOUNG PEOPLE AND FAMILIES","	LOOKED AFTER NORTH",VEHICLE FUEL,11/01/2019,000008222218321,16.39,HOPCROFTS HOLT SER
OXFORDSHIRE CC,"CHILDRENS, YOUNG PEOPLE AND FAMILIES","	LEAVING CARE CITY 1",OTHER EXPENSES,11/01/2019,000008222218323,6.00,PHOTO ME INTERNATIONAL
OXFORDSHIRE CC,"CHILDRENS, YOUNG PEOPLE AND FAMILIES",THAME E&A HOME,CATERING PROVISIONS,11/01/2019,000008222218331,14.50,SAINSBURYS 2096
OXFORDSHIRE CC,"CHILDRENS, YOUNG PEOPLE AND FAMILIES",CNTL EARLY HELP-RHIL,CATERING PROVISIONS,11/01/2019,000008222218519,3.50,CO-OPERATIVE FOOD
OXFORDSHIRE CC,"CHILDRENS, YOUNG PEOPLE AND FAMILIES","	LEAVING CARE CITY 1",DISABILITY AIDS AND EQUIPMENT,11/01/2019,000008222218715,135.00,FEELGOODCONTACTS.COM
OXFORDSHIRE CC,SOCIAL AND COMMUNITY SERVICES,"	PUBLIC HEALTH GENERA",PAYMENTS TO TRANSPORT OPERATORS,11/01/2019,000008222218725,24.10,GWR CORP WEBBTSECOM
OXFORDSHIRE CC,"CHILDRENS, YOUNG PEOPLE AND FAMILIES","	40 THE MOORS",CATERING PROVISIONS,11/01/2019,000008222218727,28.75,TESCO STORE 2788
OXFORDSHIRE CC,"CHILDRENS, YOUNG PEOPLE AND FAMILIES","	40 THE MOORS",MATERIALS,11/01/2019,000008222218729,244.94,WWW.ARGOS.CO.UK
OXFORDSHIRE CC,"CHILDRENS, YOUNG PEOPLE AND FAMILIES","	LEAVING CARE SOUTH",MATERIALS,11/01/2019,000008222218733,204.49,ARGOS LTD
OXFORDSHIRE CC,"CHILDRENS, YOUNG PEOPLE AND FAMILIES",WITNEY,CATERING PROVISIONS,11/01/2019,000008222218735,10.66,SAINSBURYS SACAT 0632
OXFORDSHIRE CC,"CHILDRENS, YOUNG PEOPLE AND FAMILIES",WITNEY,MATERIALS,11/01/2019,000008222218737,17.99,WITNEY INSIDE SAINSBUR
OXFORDSHIRE CC,SOCIAL AND COMMUNITY SERVICES,CSS - DIDCOT,CATERING PROVISIONS,11/01/2019,000008222218183,9.40,MILK&MORE
OXFORDSHIRE CC,SOCIAL AND COMMUNITY SERVICES,CSS BICESTER,"BOOKS, DVDS AND CDS",11/01/2019,000008222218185,20.97,AMZN MKTP UK MB0YS70Q4
OXFORDSHIRE CC,SOCIAL AND COMMUNITY SERVICES,CSS BICESTER,"BOOKS, DVDS AND CDS",11/01/2019,000008222218187,7.62,AMZN MKTP UK MB1ZD3194
OXFORDSHIRE CC,SOCIAL AND COMMUNITY SERVICES,CSS BICESTER,"BOOKS, DVDS AND CDS",11/01/2019,000008222218189,3.08,AMZN MKTP UK MB3R750I4
OXFORDSHIRE CC,"CHILDRENS, YOUNG PEOPLE AND FAMILIES",THAME E&A HOME,DRUGS AND MEDICAL SUPPLIES,11/01/2019,000008222218333,7.99,SUPERDRUG STORES PLC
OXFORDSHIRE CC,CORPORATE CORE,SCHOOLS FM,CATERING PROVISIONS,11/01/2019,000008222218335,76.30,TESCO STORE 2653
OXFORDSHIRE CC,"CHILDRENS, YOUNG PEOPLE AND FAMILIES",CNTL EARLY HELP-RHIL,OTHER TRANSPORT ARRANGEMENTS,11/01/2019,000008222218347,10.50,WWW.THEKEY.CO.UK
OXFORDSHIRE CC,"CHILDRENS, YOUNG PEOPLE AND FAMILIES",NTH EARLY HELP-BCSTR,STATIONERY,11/01/2019,000008222218349,3.79,AMZN MKTP UK MB32C60S4
OXFORDSHIRE CC,"CHILDRENS, YOUNG PEOPLE AND FAMILIES",NTH EARLY HELP-BCSTR,STATIONERY,11/01/2019,000008222218351,7.94,AMZN MKTP UK MB0KX91A4
OXFORDSHIRE CC,"CHILDRENS, YOUNG PEOPLE AND FAMILIES",NTH EARLY HELP-BCSTR,STATIONERY,11/01/2019,000008222218353,8.33,AMZN MKTP UK MB47Z91J4
OXFORDSHIRE CC,ENTERPRISEVC,OPERATIONAL COSTS,CATERING,11/01/2019,000008222218355,3.46,ART CAFE
OXFORDSHIRE CC,CORPORATE CORE,"	LEGAL SERVICES",SUBSCRIPTIONS,11/01/2019,000008222218525,41.99,BOOKPOINT LIMITED
OXFORDSHIRE CC,"CHILDRENS, YOUNG PEOPLE AND FAMILIES",THAME E&A HOME,ENTERTAINMENT EXPENSES,11/01/2019,000008222218529,25.20,THAME LEISURE CENTRE
OXFORDSHIRE CC,"CHILDRENS, YOUNG PEOPLE AND FAMILIES","	LOOKED AFTER CITY 2",VEHICLE FUEL,11/01/2019,000008222218537,56.35,MFG CHERWELL
OXFORDSHIRE CC,"CHILDRENS, YOUNG PEOPLE AND FAMILIES","	LOOKED AFTER CITY 2",CATERING,11/01/2019,000008222218539,19.16,MCDONALDS
OXFORDSHIRE CC,SOCIAL AND COMMUNITY SERVICES,LEAVING CARE NORTH,CATERING,11/01/2019,000008222218547,1.79,MCDONALDS
OXFORDSHIRE CC,"CHILDRENS, YOUNG PEOPLE AND FAMILIES",WITNEY,CATERING PROVISIONS,11/01/2019,000008222218739,9.00,CO-OP GROUP 070582
OXFORDSHIRE CC,SOCIAL AND COMMUNITY SERVICES,"	SHARED LIVES",OTHER EXPENSES,11/01/2019,000008222218741,23.40,INTERFLORA BRITISH UNI
OXFORDSHIRE CC,SOCIAL AND COMMUNITY SERVICES,"	SHARED LIVES",OTHER EXPENSES,11/01/2019,000008222218743,21.00,WAITROSE 211
OXFORDSHIRE CC,"CHILDRENS, YOUNG PEOPLE AND FAMILIES",WITNEY,CATERING,11/01/2019,000008222218745,17.09,WILLIAM MORRIS
OXFORDSHIRE CC,"CHILDRENS, YOUNG PEOPLE AND FAMILIES","	LEAVING CARE NORTH",MATERIALS,11/01/2019,000008222218747,29.99,CURRYS SUPERSTORE2460
OXFORDSHIRE CC,"CHILDRENS, YOUNG PEOPLE AND FAMILIES","	LEAVING CARE NORTH",CATERING,11/01/2019,000008222218749,5.44,STARBUCKS
OXFORDSHIRE CC,"CHILDRENS, YOUNG PEOPLE AND FAMILIES","	LOOKED AFTER SOUTH",OTHER TRANSPORT ARRANGEMENTS,11/01/2019,000008222218751,75.00,SGP THAMES TRANSIT
OXFORDSHIRE CC,"CHILDRENS, YOUNG PEOPLE AND FAMILIES","	40 THE MOORS","BOOKS, DVDS AND CDS",11/01/2019,000008222218753,15.99,AMZN MKTP UK MB8UD41Q4
OXFORDSHIRE CC,"CHILDRENS, YOUNG PEOPLE AND FAMILIES","	40 THE MOORS",MATERIALS,11/01/2019,000008222218755,24.29,AMAZON.CO.UK MB1X980Z4
OXFORDSHIRE CC,"CHILDRENS, YOUNG PEOPLE AND FAMILIES",THAME E&A HOME,CATERING,11/01/2019,000008222218757,16.25,BODEGA WORCESTER
OXFORDSHIRE CC,"CHILDRENS, YOUNG PEOPLE AND FAMILIES",THAME E&A HOME,CATERING,11/01/2019,000008222218759,8.29,SUBWAY
OXFORDSHIRE CC,SOCIAL AND COMMUNITY SERVICES,"	EMERGENCY DUTY TEAM",CATERING PROVISIONS,11/01/2019,000008222218761,64.12,SAINSBURYS 0600
OXFORDSHIRE CC,SOCIAL AND COMMUNITY SERVICES,CSS BICESTER,"BOOKS, DVDS AND CDS",11/01/2019,000008222218191,7.99,AMZN MKTP UK MB9NM31W4
OXFORDSHIRE CC,"CHILDRENS, YOUNG PEOPLE AND FAMILIES",KINGFISHER,MATERIALS,11/01/2019,000008222218193,15.00,WILKO RETAIL LIMIT
OXFORDSHIRE CC,"CHILDRENS, YOUNG PEOPLE AND FAMILIES",STH EARLY HELP-ABNDN,MATERIALS,11/01/2019,000008222218199,79.99,ARGOS RETAIL GROUP
OXFORDSHIRE CC,"CHILDRENS, YOUNG PEOPLE AND FAMILIES","	FAMILY SUPPORT S'TH2",CLIENT LODGINGS AND ACCOMMODATION,11/01/2019,000008222218201,70.00,THE GEORGE HOTEL
OXFORDSHIRE CC,SOCIAL AND COMMUNITY SERVICES,LOOKED AFTER SOUTH,POSTAGE AND DELIVERY,11/01/2019,000008222218203,1.77,POST OFFICE COUNTER
OXFORDSHIRE CC,"CHILDRENS, YOUNG PEOPLE AND FAMILIES",THAME E&A HOME,MATERIALS,11/01/2019,000008222218205,29.75,WWW.JOHNLEWIS.COM
OXFORDSHIRE CC,"CHILDRENS, YOUNG PEOPLE AND FAMILIES",THAME E&A HOME,CATERING PROVISIONS,11/01/2019,000008222218209,15.00,SAINSBURYS SACAT 2096
OXFORDSHIRE CC,SOCIAL AND COMMUNITY SERVICES,CSS WALLINGFORD,MATERIALS,11/01/2019,000008222218359,31.99,KERI HARVEY THE FLORIS
OXFORDSHIRE CC,SOCIAL AND COMMUNITY SERVICES,WITNEY MOVE ON HOME,CATERING PROVISIONS,11/01/2019,000008222218377,18.41,LIDL UK  WITNEY
OXFORDSHIRE CC,SOCIAL AND COMMUNITY SERVICES,"	MTFC",CATERING PROVISIONS,11/01/2019,000008222218551,6.10,SAINSBURYS SACAT 2244
OXFORDSHIRE CC,SOCIAL AND COMMUNITY SERVICES,"	MTFC",CATERING PROVISIONS,11/01/2019,000008222218551,3.10,SAINSBURYS SACAT 2244
OXFORDSHIRE CC,SOCIAL AND COMMUNITY SERVICES,"	MTFC",CATERING,11/01/2019,000008222218553,3.90,COSTA COFFEE
OXFORDSHIRE CC,"CHILDRENS, YOUNG PEOPLE AND FAMILIES","	ADOPTION","BOOKS, DVDS AND CDS",11/01/2019,000008222218555,25.90,WWW.CORAM.ORG.UK
OXFORDSHIRE CC,"CHILDRENS, YOUNG PEOPLE AND FAMILIES","	ANTI-BULLYING","SUPPLIES, STATIONERY AND MATERIALS",11/01/2019,000008222218557,3.98,RYMAN 1172
OXFORDSHIRE CC,SOCIAL AND COMMUNITY SERVICES,"	EMERGENCY DUTY TEAM",MATERIALS,11/01/2019,000008222218763,79.99,ARGOS HEYFORD HILL
OXFORDSHIRE CC,CORPORATE CORE,,"SUPPLIES, STATIONERY AND MATERIALS",11/01/2019,000008222218765,86.21,LYRECO UK LTD
OXFORDSHIRE CC,"CHILDRENS, YOUNG PEOPLE AND FAMILIES",FAMILY SUPPORT 2,MATERIALS,11/01/2019,000008222218767,79.99,ARGOS RETAIL GROUP
OXFORDSHIRE CC,"CHILDRENS, YOUNG PEOPLE AND FAMILIES","	LEAVING CARE NORTH",RESIDENTIAL ACTIVITIES,11/01/2019,000008222218769,10.00,WM MORRISONS STORE
OXFORDSHIRE CC,"CHILDRENS, YOUNG PEOPLE AND FAMILIES","	LEAVING CARE NORTH",RESIDENTIAL ACTIVITIES,11/01/2019,000008222218771,50.50,TALKTALK TELECOM
OXFORDSHIRE CC,"CHILDRENS, YOUNG PEOPLE AND FAMILIES","	LEAVING CARE NORTH",OTHER EXPENSES,11/01/2019,000008222218773,10.00,VODAFONE LTD
OXFORDSHIRE CC,"CHILDRENS, YOUNG PEOPLE AND FAMILIES","	LEAVING CARE NORTH",CLOTHING AND UNIFORMS,11/01/2019,000008222218775,15.04,SHOE ZONE
OXFORDSHIRE CC,"CHILDRENS, YOUNG PEOPLE AND FAMILIES","	LEAVING CARE NORTH",OTHER EXPENSES,11/01/2019,000008222218777,4.86,STARBUCKS
OXFORDSHIRE CC,"CHILDRENS, YOUNG PEOPLE AND FAMILIES","	LOOKED AFTER SOUTH",STATIONERY,11/01/2019,000008222218779,6.00,PHOTO ME INTERNATIONAL
OXFORDSHIRE CC,"CHILDRENS, YOUNG PEOPLE AND FAMILIES","	LOOKED AFTER SOUTH",CATERING,11/01/2019,000008222218781,8.86,MCDONALDS
OXFORDSHIRE CC,"CHILDRENS, YOUNG PEOPLE AND FAMILIES","	LOOKED AFTER SOUTH",CATERING PROVISIONS,11/01/2019,000008222218783,14.99,TESCO STORE 2919
OXFORDSHIRE CC,"CHILDRENS, YOUNG PEOPLE AND FAMILIES","	LOOKED AFTER SOUTH",CATERING,11/01/2019,000008222218785,5.13,MCDONALDS
OXFORDSHIRE CC,"CHILDRENS, YOUNG PEOPLE AND FAMILIES",EYNSHAM,OTHER EXPENSES,11/01/2019,000008222218221,5.00,TESCO STORES-2064
OXFORDSHIRE CC,"CHILDRENS, YOUNG PEOPLE AND FAMILIES","	MALTFIELD HOUSE",CATERING PROVISIONS,11/01/2019,000008222218225,8.10,SAINSBURYS SACAT 0631
OXFORDSHIRE CC,"CHILDRENS, YOUNG PEOPLE AND FAMILIES","	MALTFIELD HOUSE",OTHER EXPENSES,11/01/2019,000008222218227,7.00,CURZON OXFORD
OXFORDSHIRE CC,"CHILDRENS, YOUNG PEOPLE AND FAMILIES",DIDCOT MOVE-ON HOME,CATERING PROVISIONS,11/01/2019,000008222218381,22.81,ICELAND
OXFORDSHIRE CC,"CHILDRENS, YOUNG PEOPLE AND FAMILIES","	MALTFIELD HOUSE",CATERING,11/01/2019,000008222218573,5.00,JOE'S RESTAURANTS
OXFORDSHIRE CC,"CHILDRENS, YOUNG PEOPLE AND FAMILIES","	MALTFIELD HOUSE",CATERING,11/01/2019,000008222218575,19.70,KASAN (UK) LIMITED
OXFORDSHIRE CC,"CHILDRENS, YOUNG PEOPLE AND FAMILIES","	MALTFIELD HOUSE",CATERING,11/01/2019,000008222218577,20.35,THE MIDCOUNTIES CO-OPE
OXFORDSHIRE CC,"CHILDRENS, YOUNG PEOPLE AND FAMILIES","	MALTFIELD HOUSE",CATERING,11/01/2019,000008222218579,38.33,ORDERIN HOLDINGS LTD
OXFORDSHIRE CC,"CHILDRENS, YOUNG PEOPLE AND FAMILIES","	MALTFIELD HOUSE",CATERING PROVISIONS,11/01/2019,000008222218581,8.99,CO-OPERATIVE FOOD
OXFORDSHIRE CC,"CHILDRENS, YOUNG PEOPLE AND FAMILIES","	MALTFIELD HOUSE",CATERING PROVISIONS,11/01/2019,000008222218583,1.49,CO-OPERATIVE FOOD
OXFORDSHIRE CC,"CHILDRENS, YOUNG PEOPLE AND FAMILIES","	MALTFIELD HOUSE",CATERING PROVISIONS,11/01/2019,000008222218585,4.79,CO-OPERATIVE FOOD
OXFORDSHIRE CC,"CHILDRENS, YOUNG PEOPLE AND FAMILIES","	RESIDENTIAL STRATEGY","SUPPLIES, STATIONERY AND MATERIALS",11/01/2019,000008222218793,60.00,EB  AN INSPIRATIONAL J
OXFORDSHIRE CC,"CHILDRENS, YOUNG PEOPLE AND FAMILIES","	LOOKED AFTER CITY 1",OTHER TRANSPORT ARRANGEMENTS,11/01/2019,000008222218797,25.00,OXFORD BUS CO
OXFORDSHIRE CC,"CHILDRENS, YOUNG PEOPLE AND FAMILIES","	LOOKED AFTER CITY 1",OTHER TRANSPORT ARRANGEMENTS,11/01/2019,000008222218799,4.00,3C_ OXFORDSHIRE COUNTY
OXFORDSHIRE CC,CORPORATE CORE,SNR LEADERSHIP TEAM,PAYMENTS TO TRANSPORT OPERATORS,11/01/2019,000008222218809,80.50,GWR CORP WEBBTSECOM
OXFORDSHIRE CC,SOCIAL AND COMMUNITY SERVICES,CSS - DIDCOT,VEHICLES REPAIRS AND MAINTENANCE,11/01/2019,000008222218243,13.00,WAVES CAR WASH
OXFORDSHIRE CC,"CHILDRENS, YOUNG PEOPLE AND FAMILIES",PUBLIC HEALTH GENERAL,MATERIALS,11/01/2019,000008222218249,30.98,ARGOS RETAIL GROUP
OXFORDSHIRE CC,"CHILDRENS, YOUNG PEOPLE AND FAMILIES","	LOOKED AFTER NORTH",CATERING,11/01/2019,000008222218255,7.13,MCDONALDS
OXFORDSHIRE CC,"CHILDRENS, YOUNG PEOPLE AND FAMILIES","	LOOKED AFTER SOUTH",CATERING PROVISIONS,11/01/2019,000008222218257,10.00,TESCO STORES 5054
OXFORDSHIRE CC,ENVIRONMENT AND ECONOMY,"	WORK EXPERIENCE",PAYMENTS TO TRANSPORT OPERATORS,11/01/2019,000008222218259,361.42,TRAINLINE
OXFORDSHIRE CC,ENVIRONMENT AND ECONOMY,"	WORK EXPERIENCE",PAYMENTS TO TRANSPORT OPERATORS,11/01/2019,000008222218261,181.57,TRAINLINE
OXFORDSHIRE CC,"CHILDRENS, YOUNG PEOPLE AND FAMILIES",NTH EARLY HELP-BCSTR,CATERING PROVISIONS,11/01/2019,000008222218427,7.82,MILK&MORE
OXFORDSHIRE CC,SOCIAL AND COMMUNITY SERVICES,CSS WITNEY,CATERING PROVISIONS,11/01/2019,000008222218611,11.11,CO-OP GROUP 070582
OXFORDSHIRE CC,"CHILDRENS, YOUNG PEOPLE AND FAMILIES","	AAC EQUIPMENT",PURCHASE OF IT EQUIPMENT,11/01/2019,000008222218613,75.00,WH SMITH
OXFORDSHIRE CC,"CHILDRENS, YOUNG PEOPLE AND FAMILIES","	HOME SUPPORT",PAYMENT TO GOVERNMENT DEPARTMENTS,11/01/2019,000008222218811,-5.95,ESPO
OXFORDSHIRE CC,ENVIRONMENT AND ECONOMY,"	WORK EXPERIENCE",STAFF SUBSISTENCE,11/01/2019,000008222218263,172.00,TRAVELODGE
OXFORDSHIRE CC,"CHILDRENS, YOUNG PEOPLE AND FAMILIES","	LEAVING CARE CITY 1",PAYMENTS TO OTHER ESTABLISHMENTS,11/01/2019,000008222218265,150.50,TVLICENSING.CO.UK
OXFORDSHIRE CC,"CHILDRENS, YOUNG PEOPLE AND FAMILIES","	LOOKED AFTER CITY 1",PAYMENT TO GOVERNMENT DEPARTMENTS,11/01/2019,000008222218267,162.00,LBBRENT HOTLINE PAYMEN
OXFORDSHIRE CC,"CHILDRENS, YOUNG PEOPLE AND FAMILIES","	SM QUALITY ASSURANCE",HIRE OF ACCOMMODATION AND FACILITIES,11/01/2019,000008222218269,57.25,TRAVELODGE
OXFORDSHIRE CC,CORPORATE CORE,DEPUTY DIRECTOR &MAN,ADMIN FURNITURE,11/01/2019,000008222218625,604.54,INSPIRE HIRE
OXFORDSHIRE CC,CORPORATE CORE,DEPUTY DIRECTOR &MAN,"PUBLICITY, PROMOTIONS AND ADVERTISEMENT",11/01/2019,000008222218627,"2,253.96",BRIGHT IDEAS PROMOTION
OXFORDSHIRE CC,ENVIRONMENT AND ECONOMY,"	FLEET OPERATIONS",TELEPHONE - EQUIPMENT,11/01/2019,000008222218629,64.76,BT BILL PAYMENT 2
OXFORDSHIRE CC,"CHILDRENS, YOUNG PEOPLE AND FAMILIES",UASC 16&17,TRANSPORT TO SCHOOL,11/01/2019,000008222218289,55.00,TOTTENHAM HALE TICKET
OXFORDSHIRE CC,ENVIRONMENT AND ECONOMY,"	FM RECHARGES",GENERAL MAINTENANCE,11/01/2019,000008222218291,"1,446.07", WOLSELEY UK
OXFORDSHIRE CC,ENVIRONMENT AND ECONOMY,HARD FM,HARDWARE AND CROCKERY,11/01/2019,000008222218293,36.00,B & Q 1156
OXFORDSHIRE CC,ENVIRONMENT AND ECONOMY,HARD FM,HARDWARE AND CROCKERY,11/01/2019,000008222218295,39.99,SCREWFIX ABINGDON
OXFORDSHIRE CC,ENVIRONMENT AND ECONOMY,HARD FM,HARDWARE AND CROCKERY,11/01/2019,000008222218297,39.99,SCREWFIX OXFORD BOTLEY
OXFORDSHIRE CC,ENVIRONMENT AND ECONOMY,HARD FM,HARDWARE AND CROCKERY,11/01/2019,000008222218299,110.46,SCREWFIX WITNEY
OXFORDSHIRE CC,ENVIRONMENT AND ECONOMY,HARD FM,HARDWARE AND CROCKERY,11/01/2019,000008222218301,185.41,GENERAL BUILDING PLAST
OXFORDSHIRE CC,ENVIRONMENT AND ECONOMY,HARD FM,HARDWARE AND CROCKERY,11/01/2019,000008222218303,24.53,CITY ELECTRICAL FA
OXFORDSHIRE CC,ENVIRONMENT AND ECONOMY,HARD FM,HARDWARE AND CROCKERY,11/01/2019,000008222218305,71.15,CITY PLUMBING
OXFORDSHIRE CC,ENVIRONMENT AND ECONOMY,HARD FM,MATERIALS,11/01/2019,000008222218307,39.54,TOOLSTATION LTD
OXFORDSHIRE CC,"CHILDRENS, YOUNG PEOPLE AND FAMILIES","	LOOKED AFTER CITY 2",PAYMENTS TO TRANSPORT OPERATORS,11/01/2019,000008222218455,41.50,GWR DIDCOT PKWY TO
OXFORDSHIRE CC,"CHILDRENS, YOUNG PEOPLE AND FAMILIES","	LOOKED AFTER CITY 2",OTHER TRANSPORT ARRANGEMENTS,11/01/2019,000008222218457,6.30,APCOA CONNECT - FGW
OXFORDSHIRE CC,"CHILDRENS, YOUNG PEOPLE AND FAMILIES","	MALTFIELD HOUSE",OTHER EXPENSES,11/01/2019,000008222218469,13.50,THE WORKS
OXFORDSHIRE CC,"CHILDRENS, YOUNG PEOPLE AND FAMILIES","	MALTFIELD HOUSE",OTHER EXPENSES,11/01/2019,000008222218471,48.20,SHELL DUCKLINGTON
OXFORDSHIRE CC,"CHILDRENS, YOUNG PEOPLE AND FAMILIES","	MALTFIELD HOUSE",CATERING,11/01/2019,000008222218473,23.85,WWW.DOMINOS.CO.UK
OXFORDSHIRE CC,"CHILDRENS, YOUNG PEOPLE AND FAMILIES","	MALTFIELD HOUSE",OTHER EXPENSES,11/01/2019,000008222218475,48.20,UNIQUE CREATIONS
OXFORDSHIRE CC,"CHILDRENS, YOUNG PEOPLE AND FAMILIES",CNTL EARLY HELP-BRTN,MATERIALS,11/01/2019,000008222218649,-79.00,ARGOS RETAIL GROUP
OXFORDSHIRE CC,"CHILDRENS, YOUNG PEOPLE AND FAMILIES","	MALTFIELD HOUSE",CATERING,11/01/2019,000008222218477,8.50,SAINSBURYS LOC 4264
OXFORDSHIRE CC,"CHILDRENS, YOUNG PEOPLE AND FAMILIES","	MALTFIELD HOUSE",CATERING,11/01/2019,000008222218479,5.00,CURZON OXFORD
OXFORDSHIRE CC,"CHILDRENS, YOUNG PEOPLE AND FAMILIES","	MALTFIELD HOUSE",OTHER EXPENSES,11/01/2019,000008222218481,40.00,WWW.CURZONCINEMAS.COM
OXFORDSHIRE CC,"CHILDRENS, YOUNG PEOPLE AND FAMILIES","	MALTFIELD HOUSE",CATERING,11/01/2019,000008222218483,32.25,NEDS NOODLES
OXFORDSHIRE CC,"CHILDRENS, YOUNG PEOPLE AND FAMILIES","	MALTFIELD HOUSE",OTHER EXPENSES,11/01/2019,000008222218485,19.04,JOHN LEWIS
OXFORDSHIRE CC,"CHILDRENS, YOUNG PEOPLE AND FAMILIES","	MALTFIELD HOUSE",OTHER EXPENSES,11/01/2019,000008222218487,3.50,WESTGATE OXFORD CAR PA
OXFORDSHIRE CC,"CHILDRENS, YOUNG PEOPLE AND FAMILIES","	MALTFIELD HOUSE",OTHER EXPENSES,11/01/2019,000008222218489,2.50,CITY CAR PARKS
OXFORDSHIRE CC,"CHILDRENS, YOUNG PEOPLE AND FAMILIES","	MALTFIELD HOUSE",OTHER EXPENSES,11/01/2019,000008222218491,3.50,CITY CAR PARKS
OXFORDSHIRE CC,"CHILDRENS, YOUNG PEOPLE AND FAMILIES","	MALTFIELD HOUSE",CATERING,11/01/2019,000008222218493,14.20,JACOBS PLOUGH
OXFORDSHIRE CC,"CHILDRENS, YOUNG PEOPLE AND FAMILIES","	FAM SUPP CITY 1",PAYMENT TO GOVERNMENT DEPARTMENTS,11/01/2019,000008222218667,23.40,GRO HM PASSPORT OFFICE
OXFORDSHIRE CC,"CHILDRENS, YOUNG PEOPLE AND FAMILIES","	FAM SUPP CITY 1",REGISTRATION AND INSPECTION FEES,11/01/2019,000008222218669,41.50,OCC REGISTRARS (M)
OXFORDSHIRE CC,"CHILDRENS, YOUNG PEOPLE AND FAMILIES","	40 THE MOORS",HIRE OF ACCOMMODATION AND FACILITIES,11/01/2019,000008222218671,395.25,SANDGATE WORCESTER LTD
OXFORDSHIRE CC,"CHILDRENS, YOUNG PEOPLE AND FAMILIES","	40 THE MOORS",CATERING PROVISIONS,11/01/2019,000008222218673,5.45,TESCO STORE 2788
OXFORDSHIRE CC,SOCIAL AND COMMUNITY SERVICES,CSS - BANBURY,MATERIALS,11/01/2019,000008222218675,79.99,ARGOS LTD
OXFORDSHIRE CC,"CHILDRENS, YOUNG PEOPLE AND FAMILIES","	LOOKED AFTER SOUTH",CATERING,11/01/2019,000008222218677,5.90,COSTA COFFEE
OXFORDSHIRE CC,"CHILDRENS, YOUNG PEOPLE AND FAMILIES","	40 THE MOORS",ENTERTAINMENT EXPENSES,11/01/2019,000008222218679,8.09,BOWLPLEX
OXFORDSHIRE CC,"CHILDRENS, YOUNG PEOPLE AND FAMILIES","	40 THE MOORS",ENTERTAINMENT EXPENSES,11/01/2019,000008222218681,3.79,BOWLPLEX
OXFORDSHIRE CC,"CHILDRENS, YOUNG PEOPLE AND FAMILIES","	LEAVING CARE NORTH",CLOTHING AND UNIFORMS,11/01/2019,000008222218695,34.49,PAYPAL  ZHANGLI
OXFORDSHIRE CC,"CHILDRENS, YOUNG PEOPLE AND FAMILIES","	LEAVING CARE NORTH",MATERIALS,11/01/2019,000008222218697,20.07,PAYPAL  SMARTPRICEH
OXFORDSHIRE CC,"CHILDRENS, YOUNG PEOPLE AND FAMILIES","	LEAVING CARE NORTH",MATERIALS,11/01/2019,000008222218699,175.95,WWW.ARGOS.CO.UK
OXFORDSHIRE CC,"CHILDRENS, YOUNG PEOPLE AND FAMILIES","	MUSIC UNALLOCABLE",IT SOFTWARE,11/01/2019,000008222218713,82.49,BUFFER AWESOME YEARLY
OXFORDSHIRE CC,"CHILDRENS, YOUNG PEOPLE AND FAMILIES",DIDCOT MOVE-ON HOME,CATERING PROVISIONS,10/01/2019,000008217953893,17.51,SAINSBURYS SACAT 2067
OXFORDSHIRE CC,"CHILDRENS, YOUNG PEOPLE AND FAMILIES","	MALTFIELD HOUSE",CATERING,10/01/2019,000008217953695,2.25,MILLETS FARM RESTAURAN
OXFORDSHIRE CC,"CHILDRENS, YOUNG PEOPLE AND FAMILIES","	MALTFIELD HOUSE",CATERING,10/01/2019,000008217953703,26.95,SAINSBURYS 0631
OXFORDSHIRE CC,"CHILDRENS, YOUNG PEOPLE AND FAMILIES","	MALTFIELD HOUSE",CATERING,10/01/2019,000008217953715,10.18,KFC
OXFORDSHIRE CC,CORPORATE CORE,"	LEGAL SERVICES",STAFF SUBSISTENCE,10/01/2019,000008217953761,3.30,GWR CORP WEBBTSECOM
OXFORDSHIRE CC,"CHILDRENS, YOUNG PEOPLE AND FAMILIES","	LOOKED AFTER CITY 2",OTHER TRANSPORT ARRANGEMENTS,10/01/2019,000008217953765,7.00,WESTGATE OXFORD CAR PA
OXFORDSHIRE CC,SOCIAL AND COMMUNITY SERVICES,"	MTFC",CATERING,10/01/2019,000008217953785,5.60,BLENHEIM PALACE(SEARCY
OXFORDSHIRE CC,ENVIRONMENT AND ECONOMY,CENTRAL TEAM OCS,PAYMENTS TO VOLUNTARY BODIES,10/01/2019,000008217953787,672.00,CILIP
OXFORDSHIRE CC,"CHILDRENS, YOUNG PEOPLE AND FAMILIES","	MALTFIELD HOUSE",CATERING PROVISIONS,10/01/2019,000008217953803,18.34,BARTLETTS BUTCHERS
OXFORDSHIRE CC,"CHILDRENS, YOUNG PEOPLE AND FAMILIES","	MALTFIELD HOUSE",CATERING PROVISIONS,10/01/2019,000008217953805,-3.45,SAINSBURYS TO YOU 0600
OXFORDSHIRE CC,ENVIRONMENT AND ECONOMY,"	FLEET OPERATIONS",TRAINING RELATED EXPENDITURE,10/01/2019,000008217953811,360.00,PROTRAININGS
OXFORDSHIRE CC,"CHILDRENS, YOUNG PEOPLE AND FAMILIES","	FAMILY SUPPORT CITY3",OTHER EXPENSES,10/01/2019,000008217953825,220.00,MOTHERCARE DIRECT-E-CO
OXFORDSHIRE CC,"CHILDRENS, YOUNG PEOPLE AND FAMILIES","	FAMILY SUPPORT CITY3",OTHER EXPENSES,10/01/2019,000008217953827,120.00,MOTHERCARE DIRECT-E-CO
OXFORDSHIRE CC,SOCIAL AND COMMUNITY SERVICES,"	FAMILY SUPPORT N'TH2",OTHER EXPENSES,10/01/2019,000008217953833,227.10,ALLPAY  GREENSQUARE
OXFORDSHIRE CC,"CHILDRENS, YOUNG PEOPLE AND FAMILIES","	SENSS TRAINING",OTHER TRAINING COURSES AND QUALIFICATION,10/01/2019,000008217953837,142.80,ACM TRAINING
OXFORDSHIRE CC,ENVIRONMENT AND ECONOMY,"	E&I STAFF",OTHER TRAINING COURSES AND QUALIFICATION,10/01/2019,000008217953839,900.00,WWW.CIPFA.ORG.UK/PFMCO
OXFORDSHIRE CC,CORPORATE CORE,LIBRARY COLLECTIONS,"NEWSPAPERS, PERIODICALS AND PUBLICATIONS",10/01/2019,000008217953851,47.62,GUARDIAN NEWS & MEDIA
OXFORDSHIRE CC,"CHILDRENS, YOUNG PEOPLE AND FAMILIES","	LEAVING CARE NORTH",FURNITURE,10/01/2019,000008217953869,139.00,DREAMS LTD
OXFORDSHIRE CC,"CHILDRENS, YOUNG PEOPLE AND FAMILIES",DIDCOT MOVE-ON HOME,CATERING PROVISIONS,10/01/2019,000008217953873,27.55,SAINSBURYS 2067
OXFORDSHIRE CC,"CHILDRENS, YOUNG PEOPLE AND FAMILIES",DIDCOT MOVE-ON HOME,CATERING PROVISIONS,10/01/2019,000008217953875,6.00,SAINSBURYS SACAT 2067
OXFORDSHIRE CC,"CHILDRENS, YOUNG PEOPLE AND FAMILIES",DIDCOT MOVE-ON HOME,CATERING PROVISIONS,10/01/2019,000008217953877,11.30,SAINSBURYS SACAT 2067
OXFORDSHIRE CC,ENVIRONMENT AND ECONOMY,"	MUSEUM DEV OFFICER",PAYMENTS TO TRANSPORT OPERATORS,10/01/2019,000008217953885,40.95,TRAINLINE
OXFORDSHIRE CC,"CHILDRENS, YOUNG PEOPLE AND FAMILIES","	RESIDENTIAL STRATEGY",CATERING PROVISIONS,10/01/2019,000008217953525,5.99,TOP PALACE LTD 41483
OXFORDSHIRE CC,"CHILDRENS, YOUNG PEOPLE AND FAMILIES","	LOOKED AFTER NORTH",CATERING,10/01/2019,000008217953527,11.20,KFC-CHICHESTER
OXFORDSHIRE CC,"CHILDRENS, YOUNG PEOPLE AND FAMILIES","	LOOKED AFTER SOUTH",POSTAGE AND DELIVERY,10/01/2019,000008217953529,73.25,POST OFFICE COUNTER
OXFORDSHIRE CC,SOCIAL AND COMMUNITY SERVICES,CSS BICESTER,CATERING PROVISIONS,10/01/2019,000008217953531,53.53,MARTIN MCCOLL
OXFORDSHIRE CC,"CHILDRENS, YOUNG PEOPLE AND FAMILIES",UASC 16&17,OTHER EXPENSES,10/01/2019,000008217953537,1.49,BARNARDOS
OXFORDSHIRE CC,"CHILDRENS, YOUNG PEOPLE AND FAMILIES",ATV ADOPTION OXFORD,HIRE OF ACCOMMODATION AND FACILITIES,10/01/2019,000008217953539,-85.00,B.COM THE WIND IN THE
OXFORDSHIRE CC,ENVIRONMENT AND ECONOMY,HARD FM,HARDWARE AND CROCKERY,10/01/2019,000008217953541,27.70,THE FENCING CENTRE
OXFORDSHIRE CC,ENVIRONMENT AND ECONOMY,HARD FM,HARDWARE AND CROCKERY,10/01/2019,000008217953543,475.63,TRAVIS PERKINS
OXFORDSHIRE CC,ENVIRONMENT AND ECONOMY,HARD FM,MATERIALS,10/01/2019,000008217953545,159.93,TOOLSTATION LTD
OXFORDSHIRE CC,ENVIRONMENT AND ECONOMY,HARD FM,MATERIALS,10/01/2019,000008217953547,52.59,TOOLSTATION LTD
OXFORDSHIRE CC,ENVIRONMENT AND ECONOMY,HARD FM,MATERIALS,10/01/2019,000008217953549,13.98,TOOLSTATION LTD
OXFORDSHIRE CC,ENVIRONMENT AND ECONOMY,HARD FM,HARDWARE AND CROCKERY,10/01/2019,000008217953553,327.36,TRAVIS PERKINS
OXFORDSHIRE CC,ENVIRONMENT AND ECONOMY,HARD FM,GENERAL MAINTENANCE,10/01/2019,000008217953567,15.34, WOLSELEY UK
OXFORDSHIRE CC,ENVIRONMENT AND ECONOMY,WASTE REDUCTION GEN,"PUBLICITY, PROMOTIONS AND ADVERTISEMENT",10/01/2019,000008217953573,184.66,WWW.LETSRECYCLE.COM
OXFORDSHIRE CC,"CHILDRENS, YOUNG PEOPLE AND FAMILIES","	DISABILITIES TEAM-C",OTHER EXPENSES,10/01/2019,000008217953575,127.98,AMZN MKTP UK MB17C1EI4
OXFORDSHIRE CC,"CHILDRENS, YOUNG PEOPLE AND FAMILIES",THAME E&A HOME,CATERING PROVISIONS,10/01/2019,000008217953579,4.70,SAINSBURYS SACAT 2096
